,Directorate,Supplier Name,Supplier Invoice No,Payment Date,Gross Invoice Value,Vat Amount,Vendor Id,Purpose of Expenditure,Description,Redact flag,Year,Period
1,Community and Housing,SOUTHPARK RESIDENTIAL HOME,9,08-Mar-23,3199.68,0,19,Com Care Placement Contingency,321017              Nursing & Residential Care Homes,A,2022,12
2,Community and Housing,SOUTHPARK RESIDENTIAL HOME,944439,15-Mar-23,3220.32,0,19,Older People Placements - East,321017              Nursing & Residential Care Homes,A,2022,12
3,Community and Housing,SOUTHPARK RESIDENTIAL HOME,944789,15-Mar-23,2965.2,0,19,Older People Placements - East,321017              Nursing & Residential Care Homes,A,2022,12
4,"Children, Schools and Family",MORE HOUSE SCHOOL,29875,20-Mar-23,3046.5,0,345,Non-Delegated Statements,170000              Education,A,2022,12
5,Community and Housing,THE WHITE HOUSE NURSING HOME,944767,15-Mar-23,3396,0,611,Older People Placements - East,321000              Social Community Care Supplies & Services - Adult,A,2022,12
6,Unassigned,PERSEID SCHOOL,SCHOOLS 2223/12,07-Mar-23,347699.39,0,983,Schools,170000              Education,A,2022,12
7,"Children, Schools and Family",PERSEID SCHOOL,PER12CFADVANCE,16-Mar-23,100000,0,983,Delegated Special Schools,170000              Education,A,2022,12
8,Unassigned,PERSEID SCHOOL,SCHOOLS 2223/13,27-Mar-23,356323.87,0,983,Schools,170000              Education,A,2022,12
9,Community and Housing,MOUNT CARMEL HOSTEL,23181R,09-Mar-23,1565.83,0,1053,ASC - Substance Misuse - Drugs,321017              Nursing & Residential Care Homes,A,2022,12
10,Community and Housing,MOUNT CARMEL HOSTEL,23185,09-Mar-23,1740,0,1053,ASC - Substance Misuse - Drugs,321017              Nursing & Residential Care Homes,A,2022,12
11,Community and Housing,MOUNT CARMEL HOSTEL,944722,15-Mar-23,3124.29,0,1053,ASC - Substance Misuse - Drugs,321017              Nursing & Residential Care Homes,A,2022,12
12,Community and Housing,SUTTON NURSING HOMES LTD,944393,15-Mar-23,3056.44,0,1208,Older People Placements - East,321017              Nursing & Residential Care Homes,A,2022,12
13,Community and Housing,SUTTON NURSING HOMES LTD,944478,15-Mar-23,3087.16,0,1208,Older People Placements - East,321017              Nursing & Residential Care Homes,A,2022,12
14,Environment and Regeneration,LONDON BOROUGH OF CROYDON,3020486,10-Mar-23,133773.73,22295.62,1258,PARK OPERATIONS,OLA,A,2022,12
15,Environment and Regeneration,LONDON BOROUGH OF CROYDON,3020600,06-Mar-23,8744.47,0,1258,Greenspaces Team (General),OLA,A,2022,12
16,Corporate Services,L.B OF RICHMOND UPON THAMES,20140813,21-Mar-23,21180,0,1353,SLLP Client Income,OLA,A,2022,12
17,Unassigned,L.B OF RICHMOND UPON THAMES,�S102/20/1496/,31-Mar-23,3648,0,1353,Corporate Services,OLA,A,2022,12
18,Unassigned,MELROSE SPECIAL SCHOOL,SCHOOLS 2223/12,07-Mar-23,257832.97,0,1393,Schools,170000              Education,A,2022,12
19,Unassigned,MELROSE SPECIAL SCHOOL,SCHOOLS 2223/13,27-Mar-23,746017.62,0,1393,Schools,170000              Education,A,2022,12
20,Unassigned,WILLIAM MORRIS PRIMARY SCHOOL,SCHOOLS 2223/12,07-Mar-23,131097.02,0,1416,Schools,170000              Education,A,2022,12
21,Unassigned,WILLIAM MORRIS PRIMARY SCHOOL,WMCFADV12,16-Mar-23,25000,0,1416,Children Schools and Families,170000              Education,A,2022,12
22,Unassigned,WILLIAM MORRIS PRIMARY SCHOOL,SCHOOLS 2223/13,27-Mar-23,53998.99,0,1416,Schools,170000              Education,A,2022,12
23,Unassigned,ST THOMAS OF CANTERBURY PRIMARY,SCHOOLS 2223/12,07-Mar-23,164770.47,0,1418,Schools,170000              Education,A,2022,12
24,Unassigned,ST THOMAS OF CANTERBURY PRIMARY,SCHOOLS 2223/13,27-Mar-23,80013.99,0,1418,Schools,170000              Education,A,2022,12
25,Unassigned,PRIORY C OF E MIDDLE SCHOOL,SCHOOLS 2223/12,07-Mar-23,86656.97,0,1420,Schools,170000              Education,A,2022,12
26,Unassigned,PRIORY C OF E MIDDLE SCHOOL,SCHOOLS 2223/13,27-Mar-23,80046,0,1420,Schools,170000              Education,A,2022,12
27,Unassigned,LIBERTY PRIMARY SCHOOL,SCHOOLS 2223/12,07-Mar-23,138309.86,0,1424,Schools,170000              Education,A,2022,12
28,Unassigned,LIBERTY PRIMARY SCHOOL,SCHOOLS 2223/13,27-Mar-23,219775.84,0,1424,Schools,170000              Education,A,2022,12
29,Unassigned,HILLCROSS PRIMARY SCHOOL,SCHOOLS 2223/12,07-Mar-23,100879.75,0,1425,Schools,170000              Education,A,2022,12
30,Unassigned,HILLCROSS PRIMARY SCHOOL,SCHOOLS 2223/13,27-Mar-23,195869.6,0,1425,Schools,170000              Education,A,2022,12
31,Unassigned,CRANMER PRIMARY SCHOOL,SCHOOLS 2223/12,07-Mar-23,199304.44,0,1426,Schools,170000              Education,A,2022,12
32,"Children, Schools and Family",CRANMER PRIMARY SCHOOL,CINV000552,23-Mar-23,3707,0,1426,EY Back Office,170000              Education,A,2022,12
33,"Children, Schools and Family",CRANMER PRIMARY SCHOOL,CINV000548,23-Mar-23,6403,0,1426,EY Back Office,170000              Education,A,2022,12
34,Unassigned,CRANMER PRIMARY SCHOOL,SCHOOLS 2223/13,27-Mar-23,257357.02,0,1426,Schools,170000              Education,A,2022,12
35,Unassigned,WIMBLEDON COLLEGE SCHOOL,SCHOOLS 2223/12,07-Mar-23,571594.28,0,1428,Schools,170000              Education,A,2022,12
36,Unassigned,WIMBLEDON COLLEGE SCHOOL,SCHOOLS 2223/13,27-Mar-23,60773.87,0,1428,Schools,170000              Education,A,2022,12
37,Unassigned,URSULINE HIGH SCHOOL,SCHOOLS 2223/12,07-Mar-23,531011.36,0,1429,Schools,170000              Education,A,2022,12
38,Unassigned,URSULINE HIGH SCHOOL,SCHOOLS 2223/13,27-Mar-23,100486.86,0,1429,Schools,170000              Education,A,2022,12
39,Unassigned,RUTLISH SCHOOL,SCHOOLS 2223/12,07-Mar-23,628164.58,0,1431,Schools,170000              Education,A,2022,12
40,Unassigned,RUTLISH SCHOOL,SCHOOLS 2223/13,27-Mar-23,608780.48,0,1431,Schools,170000              Education,A,2022,12
41,Unassigned,RICARDS LODGE SECONDARY SCHOOL,SCHOOLS 2223/12,07-Mar-23,639933.01,0,1433,Schools,170000              Education,A,2022,12
42,Unassigned,RICARDS LODGE SECONDARY SCHOOL,SCHOOLS 2223/13,27-Mar-23,593427.92,0,1433,Schools,170000              Education,A,2022,12
43,Unassigned,WIMBLEDON PARK PRIMARY SCHOOL,SCHOOLS 2223/12,07-Mar-23,170683.25,0,1436,Schools,170000              Education,A,2022,12
44,Unassigned,WIMBLEDON PARK PRIMARY SCHOOL,SCHOOLS 2223/13,27-Mar-23,215212.19,0,1436,Schools,170000              Education,A,2022,12
45,Unassigned,ST TERESA'S R C PRIMARY SCHOOL,SCHOOLS 2223/12,07-Mar-23,176816.13,0,1438,Schools,170000              Education,A,2022,12
46,Unassigned,ST TERESA'S R C PRIMARY SCHOOL,SCHOOLS 2223/13,27-Mar-23,168265.9,0,1438,Schools,170000              Education,A,2022,12
47,Unassigned,ST MARYS CATHOLIC PRIMARY SCHOOL,SCHOOLS 2223/12,07-Mar-23,134786.89,0,1439,Schools,170000              Education,A,2022,12
48,Unassigned,ST MARYS CATHOLIC PRIMARY SCHOOL,SCHOOLS 2223/13,27-Mar-23,148609.33,0,1439,Schools,170000              Education,A,2022,12
49,Unassigned,ST MARKS PRIMARY SCHOOL,SCHOOLS 2223/12,07-Mar-23,83569.86,0,1440,Schools,170000              Education,A,2022,12
50,Unassigned,ST MARKS PRIMARY SCHOOL,SCHOOLS 2223/13,27-Mar-23,111337.28,0,1440,Schools,170000              Education,A,2022,12
51,Unassigned,ST JOHN FISHER RC PRIMARY SCH.,SCHOOLS 2223/12,07-Mar-23,150855.34,0,1441,Schools,170000              Education,A,2022,12
52,Unassigned,ST JOHN FISHER RC PRIMARY SCH.,SCHOOLS 2223/13,27-Mar-23,142132.11,0,1441,Schools,170000              Education,A,2022,12
53,Unassigned,SINGLEGATE PRIMARY SCHOOL,SCHOOLS 2223/12,07-Mar-23,207074.4,0,1442,Schools,170000              Education,A,2022,12
54,Unassigned,SINGLEGATE PRIMARY SCHOOL,SPCADV12,17-Mar-23,67000,0,1442,Children Schools and Families,170000              Education,A,2022,12
55,Unassigned,SINGLEGATE PRIMARY SCHOOL,SCHOOLS 2223/13,27-Mar-23,94505.53,0,1442,Schools,170000              Education,A,2022,12
56,Unassigned,SHERWOOD PRIMARY SCHOOL,SCHOOLS 2223/12,07-Mar-23,109523.7,0,1443,Schools,170000              Education,A,2022,12
57,Unassigned,SHERWOOD PRIMARY SCHOOL,SCHOOLS 2223/13,27-Mar-23,176743.23,0,1443,Schools,170000              Education,A,2022,12
58,Unassigned,POPLAR PRIMARY SCHOOL,SCHOOLS 2223/12,07-Mar-23,214852.08,0,1444,Schools,170000              Education,A,2022,12
59,Unassigned,POPLAR PRIMARY SCHOOL,SCHOOLS 2223/13,27-Mar-23,261341.75,0,1444,Schools,170000              Education,A,2022,12
60,Unassigned,PELHAM PRIMARY SCHOOL,SCHOOLS 2223/12,07-Mar-23,161574.68,0,1445,Schools,170000              Education,A,2022,12
61,Unassigned,PELHAM PRIMARY SCHOOL,SCHOOLS 2223/13,27-Mar-23,164248.61,0,1445,Schools,170000              Education,A,2022,12
62,Unassigned,MORDEN PRIMARY SCHOOL,SCHOOLS 2223/12,07-Mar-23,95224.87,0,1446,Schools,170000              Education,A,2022,12
63,Unassigned,MORDEN PRIMARY SCHOOL,SCHOOLS 2223/13,27-Mar-23,112409.58,0,1446,Schools,170000              Education,A,2022,12
64,Unassigned,MERTON PARK PRIMARY SCHOOL,SCHOOLS 2223/12,07-Mar-23,77599.53,0,1447,Schools,170000              Education,A,2022,12
65,Unassigned,MERTON PARK PRIMARY SCHOOL,SCHOOLS 2223/13,27-Mar-23,85785.97,0,1447,Schools,170000              Education,A,2022,12
66,Unassigned,MERTON ABBEY PRIMARY SCHOOL,SCHOOLS 2223/12,07-Mar-23,110359.26,0,1448,Schools,170000              Education,A,2022,12
67,"Children, Schools and Family",MERTON ABBEY PRIMARY SCHOOL,MA12CFADVANCE,16-Mar-23,100000,0,1448,Delegated Secondary Schools,170000              Education,A,2022,12
68,"Children, Schools and Family",MERTON ABBEY PRIMARY SCHOOL,AAA065,16-Mar-23,8031,0,1448, Information & Systems Team,170000              Education,A,2022,12
69,Unassigned,MERTON ABBEY PRIMARY SCHOOL,SCHOOLS 2223/13,27-Mar-23,22561.03,0,1448,Schools,170000              Education,A,2022,12
70,Unassigned,LONESOME PRIMARY SCHOOL,SCHOOLS 2223/12,07-Mar-23,125703.41,0,1450,Schools,170000              Education,A,2022,12
71,Unassigned,LONESOME PRIMARY SCHOOL,LPCADV12,16-Mar-23,50000,0,1450,Children Schools and Families,170000              Education,A,2022,12
72,Unassigned,LONESOME PRIMARY SCHOOL,SCHOOLS 2223/13,27-Mar-23,76209.87,0,1450,Schools,170000              Education,A,2022,12
73,Unassigned,LINKS PRIMARY SCHOOL,SCHOOLS 2223/12,07-Mar-23,131279.41,0,1451,Schools,170000              Education,A,2022,12
74,Unassigned,LINKS PRIMARY SCHOOL,SCHOOLS 2223/13,27-Mar-23,170364.26,0,1451,Schools,170000              Education,A,2022,12
75,Unassigned,JOSEPH HOOD PRIMARY SCHOOL,SCHOOLS 2223/12,07-Mar-23,106512.96,0,1452,Schools,170000              Education,A,2022,12
76,Unassigned,JOSEPH HOOD PRIMARY SCHOOL,SCHOOLS 2223/13,27-Mar-23,163740.36,0,1452,Schools,170000              Education,A,2022,12
77,Unassigned,HOLY TRINITY C OF E PRIMARY SCHOOL,SCHOOLS 2223/12,07-Mar-23,146847.19,0,1453,Schools,170000              Education,A,2022,12
78,Unassigned,HOLY TRINITY C OF E PRIMARY SCHOOL,SCHOOLS 2223/13,27-Mar-23,156033.38,0,1453,Schools,170000              Education,A,2022,12
79,Unassigned,HOLLYMOUNT PRIMARY SCHOOL,SCHOOLS 2223/12,07-Mar-23,144631.02,0,1454,Schools,170000              Education,A,2022,12
80,Unassigned,HOLLYMOUNT PRIMARY SCHOOL,SCHOOLS 2223/13,27-Mar-23,150661.38,0,1454,Schools,170000              Education,A,2022,12
81,Unassigned,HATFEILD PRIMARY SCHOOL,SCHOOLS 2223/12,07-Mar-23,141910.74,0,1455,Schools,170000              Education,A,2022,12
82,Unassigned,HATFEILD PRIMARY SCHOOL,SCHOOLS 2223/13,27-Mar-23,185537.03,0,1455,Schools,170000              Education,A,2022,12
83,Unassigned,HASLEMERE PRIMARY SCHOOL,SCHOOLS 2223/12,07-Mar-23,158550.59,0,1456,Schools,170000              Education,A,2022,12
84,"Children, Schools and Family",HASLEMERE PRIMARY SCHOOL,HP12CFADVANCE,17-Mar-23,50000,0,1456,Delegated Primary Schools,170000              Education,A,2022,12
85,Unassigned,HASLEMERE PRIMARY SCHOOL,SCHOOLS 2223/13,27-Mar-23,21860.73,0,1456,Schools,170000              Education,A,2022,12
86,Unassigned,GARFIELD PRIMARY SCHOOL,SCHOOLS 2223/12,07-Mar-23,116216.21,0,1460,Schools,170000              Education,A,2022,12
87,Unassigned,GARFIELD PRIMARY SCHOOL,SCHOOLS 2223/13,27-Mar-23,144059.71,0,1460,Schools,170000              Education,A,2022,12
88,Unassigned,BOND PRIMARY SCHOOL,SCHOOLS 2223/12,07-Mar-23,139182.94,0,1462,Schools,170000              Education,A,2022,12
89,Unassigned,BOND PRIMARY SCHOOL,SCHOOLS 2223/13,27-Mar-23,174170.77,0,1462,Schools,170000              Education,A,2022,12
90,Unassigned,BISHOP GILPIN C OF E PRIMARY,SCHOOLS 2223/12,07-Mar-23,157408.72,0,1463,Schools,170000              Education,A,2022,12
91,Unassigned,BISHOP GILPIN C OF E PRIMARY,SCHOOLS 2223/13,27-Mar-23,170502.65,0,1463,Schools,170000              Education,A,2022,12
92,Unassigned,ABBOTSBURY PRIMARY SCHOOL,SCHOOLS 2223/12,07-Mar-23,141918.02,0,1467,Schools,170000              Education,A,2022,12
93,"Children, Schools and Family",ABBOTSBURY PRIMARY SCHOOL,TBROOKS090323,09-Mar-23,519,0,1467,PupilPremium- Virtual School,170000              Education,A,2022,12
94,Unassigned,ABBOTSBURY PRIMARY SCHOOL,SCHOOLS 2223/13,27-Mar-23,167205.39,0,1467,Schools,170000              Education,A,2022,12
95,Unassigned,WIMBLEDON CHASE PRIMARY SCHOOL,SCHOOLS 2223/12,07-Mar-23,273518.6,0,1469,Schools,170000              Education,A,2022,12
96,Unassigned,WIMBLEDON CHASE PRIMARY SCHOOL,SCHOOLS 2223/13,27-Mar-23,263866.6,0,1469,Schools,170000              Education,A,2022,12
97,Unassigned,GORRINGE PARK PRIMARY SCHOOL,SCHOOLS 2223/12,07-Mar-23,149244.59,0,1470,Schools,170000              Education,A,2022,12
98,Unassigned,GORRINGE PARK PRIMARY SCHOOL,SCHOOLS 2223/13,27-Mar-23,170512.32,0,1470,Schools,170000              Education,A,2022,12
99,Unassigned,RAYNES PARK SECONDARY SCHOOL,SCHOOLS 2223/12,07-Mar-23,552542.74,0,1471,Schools,170000              Education,A,2022,12
100,Unassigned,RAYNES PARK SECONDARY SCHOOL,SCHOOLS 2223/13,27-Mar-23,547142.07,0,1471,Schools,170000              Education,A,2022,12
101,Unassigned,SS PETER AND PAUL RC PRIMARY SCH,SCHOOLS 2223/12,07-Mar-23,119449.92,0,1472,Schools,170000              Education,A,2022,12
102,Unassigned,SS PETER AND PAUL RC PRIMARY SCH,SCHOOLS 2223/13,27-Mar-23,132408,0,1472,Schools,170000              Education,A,2022,12
103,Unassigned,DUNDONALD PRIMARY SCHOOL,SCHOOLS 2223/12,07-Mar-23,145347.09,0,1473,Schools,170000              Education,A,2022,12
104,Unassigned,DUNDONALD PRIMARY SCHOOL,SCHOOLS 2223/13,27-Mar-23,142543.45,0,1473,Schools,170000              Education,A,2022,12
105,Environment and Regeneration,DUNDONALD PRIMARY SCHOOL,DPS0085,29-Mar-23,4566.26,0,1473,Park Utilities,170000              Education,A,2022,12
106,"Children, Schools and Family",MERTON MENCAP,4318,21-Mar-23,46500,0,1519, Centralised Commiss Services,200000              Financial Services,A,2022,12
107,Unassigned,ALL SAINTS C OF E PRIMARY SCH,SCHOOLS 2223/12,07-Mar-23,127702.29,0,1680,Schools,170000              Education,A,2022,12
108,"Children, Schools and Family",ALL SAINTS C OF E PRIMARY SCH,AS12CFADVANCE,17-Mar-23,120000,0,1680,Delegated Primary Schools,170000              Education,A,2022,12
109,Unassigned,ALL SAINTS C OF E PRIMARY SCH,SCHOOLS 2223/13,27-Mar-23,45622.74,0,1680,Schools,170000              Education,A,2022,12
110,"Children, Schools and Family",REDACTED PERSONAL DATA,940024,03-Mar-23,514.75,0,1801,Placements Under 18,321100              Social Community Care Supplies & Services - Children,R,2022,12
111,"Children, Schools and Family",REDACTED PERSONAL DATA,940081,03-Mar-23,514.75,0,1801,Placements Under 18,321100              Social Community Care Supplies & Services - Children,R,2022,12
112,"Children, Schools and Family",REDACTED PERSONAL DATA,943548,10-Mar-23,514.75,0,1801,Placements Under 18,321100              Social Community Care Supplies & Services - Children,R,2022,12
113,"Children, Schools and Family",REDACTED PERSONAL DATA,943628,10-Mar-23,514.75,0,1801,Placements Under 18,321100              Social Community Care Supplies & Services - Children,R,2022,12
114,"Children, Schools and Family",REDACTED PERSONAL DATA,946028,17-Mar-23,514.75,0,1801,Placements Under 18,321100              Social Community Care Supplies & Services - Children,R,2022,12
115,"Children, Schools and Family",REDACTED PERSONAL DATA,946066,17-Mar-23,565.5,0,1801,Placements Under 18,321100              Social Community Care Supplies & Services - Children,R,2022,12
116,"Children, Schools and Family",REDACTED PERSONAL DATA,946085,17-Mar-23,514.75,0,1801,Placements Under 18,321100              Social Community Care Supplies & Services - Children,R,2022,12
117,"Children, Schools and Family",REDACTED PERSONAL DATA,950222,24-Mar-23,514.75,0,1801,Placements Under 18,321100              Social Community Care Supplies & Services - Children,R,2022,12
118,"Children, Schools and Family",REDACTED PERSONAL DATA,950278,24-Mar-23,514.75,0,1801,Placements Under 18,321100              Social Community Care Supplies & Services - Children,R,2022,12
119,"Children, Schools and Family",REDACTED PERSONAL DATA,953213,31-Mar-23,514.75,0,1801,Placements Under 18,321100              Social Community Care Supplies & Services - Children,R,2022,12
120,"Children, Schools and Family",REDACTED PERSONAL DATA,953266,31-Mar-23,514.75,0,1801,Placements Under 18,321100              Social Community Care Supplies & Services - Children,R,2022,12
121,Corporate Services,CIVICA UK LIMITED,C/LN265884,22-Mar-23,56644.19,9440.7,1873,Local Taxation Services,270000              Information Communication Technology,A,2022,12
122,Community and Housing,CIVICA UK LIMITED,C/BN263670,15-Mar-23,7358.4,1226.4,1873,Financial Assessment Team (FA),270000              Information Communication Technology,A,2022,12
123,Community and Housing,CIVICA UK LIMITED,C/BN263671,15-Mar-23,7358.4,1226.4,1873,Financial Assessment Team (FA),270000              Information Communication Technology,A,2022,12
124,Community and Housing,CIVICA UK LIMITED,C/BN263672,15-Mar-23,7879.2,1313.2,1873,Financial Assessment Team (FA),270000              Information Communication Technology,A,2022,12
125,Community and Housing,CIVICA UK LIMITED,C/BN265760,29-Mar-23,6174,1029,1873,Financial Assessment Team (FA),270000              Information Communication Technology,A,2022,12
126,"Children, Schools and Family",THE CHILDRENS TRUST,5832,20-Mar-23,5927.82,0,1980,Non-Delegated Statements,170000              Education,A,2022,12
127,"Children, Schools and Family",THE CHILDRENS TRUST,5836,20-Mar-23,7805.18,0,1980,Non-Delegated Statements,170000              Education,A,2022,12
128,"Children, Schools and Family",THE CHILDRENS TRUST,5757,24-Mar-23,5785,0,1980,Child Disabilities - Placement,170000              Education,A,2022,12
129,Community and Housing,THE FRANCES TAYLOR FOUNDATION,944371,13-Mar-23,2678.58,0,2011,Phys/Sens Placements - East,321017              Nursing & Residential Care Homes,A,2022,12
130,Community and Housing,THE FRANCES TAYLOR FOUNDATION,944461,15-Mar-23,3812.04,0,2011,Learning Disabilities Placemnt,321017              Nursing & Residential Care Homes,A,2022,12
131,Community and Housing,THE FRANCES TAYLOR FOUNDATION,950368,24-Mar-23,3214.29,0,2011,Older People Placements - East,321017              Nursing & Residential Care Homes,A,2022,12
132,Unassigned,SACRED HEART R C PRIMARY SCH.,SCHOOLS 2223/12,07-Mar-23,120248.74,0,2076,Schools,170000              Education,A,2022,12
133,Unassigned,SACRED HEART R C PRIMARY SCH.,SCHOOLS 2223/13,27-Mar-23,133850.58,0,2076,Schools,170000              Education,A,2022,12
134,Community and Housing,GENEVA ROAD LIMITED,280223JW,22-Mar-23,721.01,120.17,2198,Older People Placements - East,321000              Social Community Care Supplies & Services - Adult,A,2022,12
135,Corporate Services,LONDON BOROUGH OF SUTTON,SLLPINCOMEM1122,07-Mar-23,4880.3,0,2313,SLLP Client Income,OLA,A,2022,12
136,Environment and Regeneration,LONDON BOROUGH OF SUTTON,3190518676,09-Mar-23,66447.9,0,2313,Road Safety - TFL,OLA,A,2022,12
137,Corporate Services,LONDON BOROUGH OF SUTTON,3190331757,10-Mar-23,91900.84,0,2313,HR TRANSACTIONS,OLA,A,2022,12
138,Environment and Regeneration,LONDON BOROUGH OF SUTTON,3190333591,15-Mar-23,11273.4,0,2313,Recycling Activities,OLA,A,2022,12
139,Corporate Services,LONDON BOROUGH OF SUTTON,3190594248,20-Mar-23,192252,32042,2313,HR TRANSACTIONS,OLA,A,2022,12
140,Environment and Regeneration,LONDON BOROUGH OF SUTTON,3190549144,22-Mar-23,818.4,0,2313,Recycling Activities,OLA,A,2022,12
141,Corporate Services,LONDON BOROUGH OF SUTTON,3190597446,28-Mar-23,110281,18380.16,2313,HR TRANSACTIONS,OLA,A,2022,12
142,Corporate Services,LONDON BOROUGH OF SUTTON,3190609977,29-Mar-23,9205,0,2313,SLLP Client Income,OLA,A,2022,12
143,Corporate Services,LONDON BOROUGH OF SUTTON,3190609986,29-Mar-23,5927.8,0,2313,SLLP Client Income,OLA,A,2022,12
144,Corporate Services,LONDON BOROUGH OF SUTTON,3190609995,31-Mar-23,74557.2,12426.2,2313,HR TRANSACTIONS,OLA,A,2022,12
145,Unassigned,LONDON BOROUGH OF SUTTON,�S106/DM2021/0,31-Mar-23,1000,0,2313,Corporate Services,OLA,A,2022,12
146,Environment and Regeneration,PJ HARVEY AND CO LTD,SI-69990,31-Mar-23,528.98,88.16,2439,Other Industrial Estates,190000              Facilities & Management Services,A,2022,12
147,Corporate Services,GREENHAM TRADING LTD,07/485608,17-Mar-23,1616.16,269.36,2445,Buildings Maintenance,130000              Cleaning & Janitorial,A,2022,12
148,Community and Housing,FREEWAYS TRUST LTD,944374,15-Mar-23,3229.2,0,2474,Learning Disabilities Placemnt,321017              Nursing & Residential Care Homes,A,2022,12
149,Community and Housing,THAMES WATER UTILITIES LTD,9.00047E+15,28-Mar-23,700.93,0,10691,LD Fieldwork SW,370000              Utilities,A,2022,12
150,Community and Housing,THAMES WATER UTILITIES LTD,900045059847MAR2,29-Mar-23,2699.7,0,10691,Riverside Res Home,370000              Utilities,A,2022,12
151,Community and Housing,CLOYDA LTD,944647,15-Mar-23,3294.48,0,10762,Older People Placements - East,321017              Nursing & Residential Care Homes,A,2022,12
152,Community and Housing,CHEGWORTH N.H. (BAYSWIFT LTD),944602,15-Mar-23,3056.4,0,11057,Learning Disabilities Placemnt,321000              Social Community Care Supplies & Services - Adult,A,2022,12
153,"Children, Schools and Family",REDACTED PERSONAL DATA,940031,03-Mar-23,654.24,0,11130,Placements Under 18,321100              Social Community Care Supplies & Services - Children,R,2022,12
154,"Children, Schools and Family",REDACTED PERSONAL DATA,943559,10-Mar-23,654.24,0,11130,Placements Under 18,321100              Social Community Care Supplies & Services - Children,R,2022,12
155,"Children, Schools and Family",REDACTED PERSONAL DATA,946035,17-Mar-23,654.24,0,11130,Placements Under 18,321100              Social Community Care Supplies & Services - Children,R,2022,12
156,"Children, Schools and Family",REDACTED PERSONAL DATA,950229,24-Mar-23,654.24,0,11130,Placements Under 18,321100              Social Community Care Supplies & Services - Children,R,2022,12
157,"Children, Schools and Family",REDACTED PERSONAL DATA,953220,31-Mar-23,654.24,0,11130,Placements Under 18,321100              Social Community Care Supplies & Services - Children,R,2022,12
158,"Children, Schools and Family",ST DOMINIC'S SCHOOL,D1112104761,16-Mar-23,9455.13,0,11569,Non-Delegated Statements,170000              Education,A,2022,12
159,Community and Housing,Queens Court,944407,15-Mar-23,3220.32,0,12747,Older People Placements - East,321017              Nursing & Residential Care Homes,A,2022,12
160,Community and Housing,ASHCROFT CARE SERVICES,944601,15-Mar-23,6161.24,0,13287,Learning Disabilities Placemnt,321017              Nursing & Residential Care Homes,A,2022,12
161,Community and Housing,SHARE COMMUNITY LTD,231645,01-Mar-23,900,0,13487,Learning Disabilities Placemnt,321017              Nursing & Residential Care Homes,A,2022,12
162,Community and Housing,SHARE COMMUNITY LTD,231625,01-Mar-23,840,0,13487,Learning Disabilities Placemnt,321017              Nursing & Residential Care Homes,A,2022,12
163,Community and Housing,SHARE COMMUNITY LTD,231636,01-Mar-23,840,0,13487,Learning Disabilities Placemnt,321017              Nursing & Residential Care Homes,A,2022,12
164,Community and Housing,SHARE COMMUNITY LTD,231633,01-Mar-23,1120,0,13487,Learning Disabilities Placemnt,321017              Nursing & Residential Care Homes,A,2022,12
165,Community and Housing,SHARE COMMUNITY LTD,231630,01-Mar-23,560,0,13487,Learning Disabilities Placemnt,321017              Nursing & Residential Care Homes,A,2022,12
166,Community and Housing,SHARE COMMUNITY LTD,231623,01-Mar-23,600,0,13487,Learning Disabilities Placemnt,321017              Nursing & Residential Care Homes,A,2022,12
167,Community and Housing,SHARE COMMUNITY LTD,231783,31-Mar-23,700,0,13487,Learning Disabilities Placemnt,321017              Nursing & Residential Care Homes,A,2022,12
168,Community and Housing,SHARE COMMUNITY LTD,231776,31-Mar-23,750,0,13487,Learning Disabilities Placemnt,321017              Nursing & Residential Care Homes,A,2022,12
169,Community and Housing,FITZROY SUPPORT,944717,15-Mar-23,8304.28,0,13535,Learning Disabilities Placemnt,321017              Nursing & Residential Care Homes,A,2022,12
170,Community and Housing,CANTERBURY OAST TRUST LTD,944386,15-Mar-23,2541.24,0,13566,Learning Disabilities Placemnt,321017              Nursing & Residential Care Homes,A,2022,12
171,Community and Housing,MACINTYRE,944400,15-Mar-23,5776,0,13585,Learning Disabilities Placemnt,321017              Nursing & Residential Care Homes,A,2022,12
172,Community and Housing,MACINTYRE,944571,15-Mar-23,5641.36,0,13585,Learning Disabilities Placemnt,321017              Nursing & Residential Care Homes,A,2022,12
173,Community and Housing,MACINTYRE,944682,15-Mar-23,5641.36,0,13585,Older People Placements - East,321017              Nursing & Residential Care Homes,A,2022,12
174,Community and Housing,MACINTYRE,944715,15-Mar-23,4825.24,0,13585,Learning Disabilities Placemnt,321017              Nursing & Residential Care Homes,A,2022,12
175,Community and Housing,KENT AUTISTIC TRUST,944692,15-Mar-23,7494.72,0,13670,Learning Disabilities Placemnt,321017              Nursing & Residential Care Homes,A,2022,12
176,Environment and Regeneration,ROBERT MORGAN AND SONS LTD,RENTMAR23STOUT,06-Mar-23,4125,0,14355,Other Misc Props,200000              Financial Services,A,2022,12
177,Community and Housing,WANDLE HOUSING ASSOCIATION LTD,AIN10240,28-Mar-23,2783.04,0,14419,Riverside Res Home,250000              Housing Management,A,2022,12
178,Community and Housing,WANDLE HOUSING ASSOCIATION LTD,AIN10239,28-Mar-23,60394.88,0,14419,Riverside Res Home,250000              Housing Management,A,2022,12
179,Community and Housing,UNITED RESPONSE,VSMR819295RH,22-Mar-23,4134.62,689.1,14616,Learning Disabilities Placemnt,321000              Social Community Care Supplies & Services - Adult,A,2022,12
180,Community and Housing,UNITED RESPONSE,VSMR819295DH,22-Mar-23,3842.88,640.48,14616,Learning Disabilities Placemnt,321000              Social Community Care Supplies & Services - Adult,A,2022,12
181,Community and Housing,UNITED RESPONSE,VSMR819295HM,22-Mar-23,4572.24,762.04,14616,Learning Disabilities Placemnt,321000              Social Community Care Supplies & Services - Adult,A,2022,12
182,Community and Housing,UNITED RESPONSE,VSMR819295BS,22-Mar-23,4086.05,681.01,14616,Learning Disabilities Placemnt,321000              Social Community Care Supplies & Services - Adult,A,2022,12
183,Community and Housing,UNITED RESPONSE,VSMR819295CW,22-Mar-23,4766.4,794.4,14616,Learning Disabilities Placemnt,321000              Social Community Care Supplies & Services - Adult,A,2022,12
184,Community and Housing,UNITED RESPONSE,VSMR821171BA,04-Apr-23,4837.78,806.3,14616,Learning Disabilities Placemnt,321000              Social Community Care Supplies & Services - Adult,A,2022,12
185,Community and Housing,UNITED RESPONSE,VSMR821171BO,04-Apr-23,4837.78,806.3,14616,Learning Disabilities Placemnt,321000              Social Community Care Supplies & Services - Adult,A,2022,12
186,Community and Housing,UNITED RESPONSE,VSMR821171ST,04-Apr-23,4837.78,806.3,14616,Learning Disabilities Placemnt,321000              Social Community Care Supplies & Services - Adult,A,2022,12
187,Community and Housing,UNITED RESPONSE,VSMR821171SV,04-Apr-23,4837.78,806.3,14616,Learning Disabilities Placemnt,321000              Social Community Care Supplies & Services - Adult,A,2022,12
188,Community and Housing,UNITED RESPONSE,VSMR821171,04-Apr-23,4837.78,806.3,14616,Learning Disabilities Placemnt,321000              Social Community Care Supplies & Services - Adult,A,2022,12
189,Community and Housing,UNITED RESPONSE,VSMR805415-RH,22-Mar-23,4134.62,689.1,14616,Learning Disabilities Placemnt,321000              Social Community Care Supplies & Services - Adult,A,2022,12
190,Community and Housing,UNITED RESPONSE,VSMR805415-DHH,22-Mar-23,3842.88,640.48,14616,Learning Disabilities Placemnt,321000              Social Community Care Supplies & Services - Adult,A,2022,12
191,Community and Housing,UNITED RESPONSE,VSMR805415-HM,22-Mar-23,4572.24,762.04,14616,Learning Disabilities Placemnt,321000              Social Community Care Supplies & Services - Adult,A,2022,12
192,Community and Housing,UNITED RESPONSE,VSMR805415-BS,22-Mar-23,4086.05,681.01,14616,Learning Disabilities Placemnt,321000              Social Community Care Supplies & Services - Adult,A,2022,12
193,Community and Housing,UNITED RESPONSE,VSMR805415-CFW,22-Mar-23,4766.4,794.4,14616,Learning Disabilities Placemnt,321000              Social Community Care Supplies & Services - Adult,A,2022,12
194,Community and Housing,UNITED RESPONSE,VSMR816322-BAA,24-Mar-23,4837.78,806.3,14616,Learning Disabilities Placemnt,321000              Social Community Care Supplies & Services - Adult,A,2022,12
195,Community and Housing,UNITED RESPONSE,VSMR816322-BA,24-Mar-23,4837.78,806.3,14616,Learning Disabilities Placemnt,321000              Social Community Care Supplies & Services - Adult,A,2022,12
196,Community and Housing,UNITED RESPONSE,VSMR816322-SAT,24-Mar-23,4837.78,806.3,14616,Learning Disabilities Placemnt,321000              Social Community Care Supplies & Services - Adult,A,2022,12
197,Community and Housing,UNITED RESPONSE,VSMR816322-RW,24-Mar-23,4837.78,806.3,14616,Learning Disabilities Placemnt,321000              Social Community Care Supplies & Services - Adult,A,2022,12
198,Community and Housing,UNITED RESPONSE,VSMR816322-SV,24-Mar-23,4837.78,806.3,14616,Learning Disabilities Placemnt,321000              Social Community Care Supplies & Services - Adult,A,2022,12
199,Environment and Regeneration,MERTON CHAMBER OF COMMERCE,20249,07-Mar-23,14400,2400,15375,EDS2,180000              Environmental Services,A,2022,12
200,"Children, Schools and Family",CONNEVANS LTD,IN525159,29-Mar-23,10280.28,1713.37,18972,Sensory Team,270000              Information Communication Technology,A,2022,12
201,Corporate Services,KINGSTON CORPORATION,M11LEGAL22/23',07-Mar-23,9210.5,0,21573,SLLP Client Income,180000              Environmental Services,A,2022,12
202,Environment and Regeneration,KINGSTON CORPORATION,37471718,17-Mar-23,43654.86,7275.81,21573,Food Waste Service,180000              Environmental Services,A,2022,12
203,Corporate Services,KINGSTON CORPORATION,37483538,20-Mar-23,300202.8,50033.8,21573,HR TRANSACTIONS,180000              Environmental Services,A,2022,12
204,Corporate Services,KINGSTON CORPORATION,37483511,20-Mar-23,13909.92,2318.32,21573,HR TRANSACTIONS,180000              Environmental Services,A,2022,12
205,Corporate Services,KINGSTON CORPORATION,37483520,20-Mar-23,40800,6800,21573,HR TRANSACTIONS,180000              Environmental Services,A,2022,12
206,Environment and Regeneration,KINGSTON CORPORATION,37471700,27-Mar-23,110244.48,18374.08,21573,Garden Waste Service,180000              Environmental Services,A,2022,12
207,Environment and Regeneration,KINGSTON CORPORATION,37487541,27-Mar-23,15776.62,2629.43,21573,Garden Waste Service,180000              Environmental Services,A,2022,12
208,Environment and Regeneration,KINGSTON CORPORATION,37488106,27-Mar-23,7631.59,1271.93,21573,Food Waste Service,180000              Environmental Services,A,2022,12
209,Environment and Regeneration,KINGSTON CORPORATION,37488238,27-Mar-23,24115.93,4019.32,21573,Recycling Activities,180000              Environmental Services,A,2022,12
210,Corporate Services,KINGSTON CORPORATION,37492332,30-Mar-23,10860,1810,21573,Legal Shared Service,180000              Environmental Services,A,2022,12
211,Unassigned,KINGSTON CORPORATION,�S106/21/03876,31-Mar-23,1000,0,21573,Corporate Services,180000              Environmental Services,A,2022,12
212,Corporate Services,MORGANA SYSTEMS LIMITED,230503221,10-Mar-23,1618.8,269.8,23250,PrintUnit-HighVolPhtcopying,"390000              Works - Construction, Repair & Maintenance",A,2022,12
213,Corporate Services,I J BEIM AND ASSOCIATES LTD,13170,29-Mar-23,607.68,101.28,24949,SLLP - Disbursements,280000              Legal Services,A,2022,12
214,Corporate Services,I J BEIM AND ASSOCIATES LTD,13104,27-Mar-23,528,88,24949,SLLP - Disbursements,280000              Legal Services,A,2022,12
215,Capital,MITCHAM COMMON CONSERVATORS,FUTUREMER1,01-Mar-23,1250,0,28571,Highways & Footways,190000              Facilities & Management Services,A,2022,12
216,"Children, Schools and Family",THE NATIONAL TRUST,3142597,17-Mar-23,8700,0,28577, Children & Yth Participation,200000              Financial Services,A,2022,12
217,Community and Housing,TRINITY COURT NURSING HOME,944358,13-Mar-23,656.4,0,30306,Older People Placements - East,321017              Nursing & Residential Care Homes,A,2022,12
218,Community and Housing,TRINITY COURT NURSING HOME,944435,15-Mar-23,2861.6,0,30306,Older People Placements - East,321017              Nursing & Residential Care Homes,A,2022,12
219,Community and Housing,TRINITY COURT NURSING HOME,944572,15-Mar-23,2985.6,0,30306,Older People Placements - East,321017              Nursing & Residential Care Homes,A,2022,12
220,Community and Housing,TRINITY COURT NURSING HOME,944590,15-Mar-23,984.61,0,30306,Older People Placements - East,321017              Nursing & Residential Care Homes,A,2022,12
221,Community and Housing,TRINITY COURT NURSING HOME,944609,15-Mar-23,3063.24,0,30306,Older People Placements - East,321017              Nursing & Residential Care Homes,A,2022,12
222,Community and Housing,TRINITY COURT NURSING HOME,944624,15-Mar-23,3313.84,0,30306,Phys/Sens Placements - East,321017              Nursing & Residential Care Homes,A,2022,12
223,Community and Housing,TRINITY COURT NURSING HOME,944649,15-Mar-23,3135.72,0,30306,Older People Placements - East,321017              Nursing & Residential Care Homes,A,2022,12
224,Community and Housing,TRINITY COURT NURSING HOME,944691,15-Mar-23,2985.6,0,30306,Older People Placements - East,321017              Nursing & Residential Care Homes,A,2022,12
225,Community and Housing,TRINITY COURT NURSING HOME,944698,15-Mar-23,2861.6,0,30306,Older People Placements - East,321017              Nursing & Residential Care Homes,A,2022,12
226,Community and Housing,TRINITY COURT NURSING HOME,944706,15-Mar-23,3063.24,0,30306,Older People Placements - East,321017              Nursing & Residential Care Homes,A,2022,12
227,Community and Housing,TRINITY COURT NURSING HOME,944764,15-Mar-23,2985.6,0,30306,Older People Placements - East,321017              Nursing & Residential Care Homes,A,2022,12
228,Community and Housing,TRINITY COURT NURSING HOME,944793,15-Mar-23,2876.32,0,30306,Older People Placements - East,321017              Nursing & Residential Care Homes,A,2022,12
229,Community and Housing,TRINITY COURT NURSING HOME,944794,15-Mar-23,3063.24,0,30306,Older People Placements - East,321017              Nursing & Residential Care Homes,A,2022,12
230,Community and Housing,TRINITY COURT NURSING HOME,944796,15-Mar-23,3149.6,0,30306,Older People Placements - East,321017              Nursing & Residential Care Homes,A,2022,12
231,Community and Housing,TRINITY COURT NURSING HOME,944798,15-Mar-23,2521.12,0,30306,Older People Placements - East,321017              Nursing & Residential Care Homes,A,2022,12
232,Community and Housing,TRINITY COURT NURSING HOME,950310,24-Mar-23,1531.62,0,30306,Older People Placements - East,321017              Nursing & Residential Care Homes,A,2022,12
233,Community and Housing,HAYDON PARK LODGE,944392,15-Mar-23,4680,0,31434,Learning Disabilities Placemnt,321017              Nursing & Residential Care Homes,A,2022,12
234,Community and Housing,HAYDON PARK LODGE,944522,15-Mar-23,3485,0,31434,Learning Disabilities Placemnt,321017              Nursing & Residential Care Homes,A,2022,12
235,Community and Housing,HAYDON PARK LODGE,944547,15-Mar-23,4591.44,0,31434,Learning Disabilities Placemnt,321017              Nursing & Residential Care Homes,A,2022,12
236,Community and Housing,HAYDON PARK LODGE,944634,15-Mar-23,5070.76,0,31434,Learning Disabilities Placemnt,321017              Nursing & Residential Care Homes,A,2022,12
237,Community and Housing,HAYDON PARK LODGE,944676,15-Mar-23,4420.08,0,31434,Learning Disabilities Placemnt,321017              Nursing & Residential Care Homes,A,2022,12
238,Community and Housing,Barchester Healthcare Wimbledon Beaumont,939591,02-Mar-23,2220.43,0,33384,Older People Placements - East,321017              Nursing & Residential Care Homes,A,2022,12
239,Community and Housing,Barchester Healthcare Wimbledon Beaumont,147028738,09-Mar-23,2773.28,0,33384,Phys/Sens Placements - East,321017              Nursing & Residential Care Homes,A,2022,12
240,Community and Housing,Barchester Healthcare Wimbledon Beaumont,944467,15-Mar-23,4056,0,33384,Older People Placements - East,321017              Nursing & Residential Care Homes,A,2022,12
241,Community and Housing,Barchester Healthcare Wimbledon Beaumont,944486,15-Mar-23,3000,0,33384,Older People Placements - East,321017              Nursing & Residential Care Homes,A,2022,12
242,Community and Housing,Barchester Healthcare Wimbledon Beaumont,945010,21-Mar-23,3105.3,0,33384,Older People Placements - East,321017              Nursing & Residential Care Homes,A,2022,12
243,Community and Housing,Barchester Healthcare Wimbledon Beaumont,950339,24-Mar-23,3220.32,0,33384,Older People Placements - East,321017              Nursing & Residential Care Homes,A,2022,12
244,Community and Housing,Barchester Healthcare Wimbledon Beaumont,147028757,31-Mar-23,2773.28,0,33384,Phys/Sens Placements - East,321017              Nursing & Residential Care Homes,A,2022,12
245,Community and Housing,COMFORT CARE SERVICES (UK) LTD,SU0291/1097,04-Apr-23,2380,0,34932,Mental Health Placements,321000              Social Community Care Supplies & Services - Adult,A,2022,12
246,Community and Housing,COMFORT CARE SERVICES (UK) LTD,SU1051/1254-55,04-Apr-23,3295,0,34932,Mental Health Placements,321000              Social Community Care Supplies & Services - Adult,A,2022,12
247,Community and Housing,COMFORT CARE SERVICES (UK) LTD,SU1102/1546,04-Apr-23,2380,0,34932,Mental Health Placements,321000              Social Community Care Supplies & Services - Adult,A,2022,12
248,Community and Housing,COMFORT CARE SERVICES (UK) LTD,SU0266/1468,04-Apr-23,2380,0,34932,Mental Health Placements,321000              Social Community Care Supplies & Services - Adult,A,2022,12
249,Community and Housing,COMFORT CARE SERVICES (UK) LTD,SU0208/1547,04-Apr-23,2380,0,34932,Mental Health Placements,321000              Social Community Care Supplies & Services - Adult,A,2022,12
250,Community and Housing,COMFORT CARE SERVICES (UK) LTD,SU0210/1096,04-Apr-23,2380,0,34932,Mental Health Placements,321000              Social Community Care Supplies & Services - Adult,A,2022,12
251,Community and Housing,COMFORT CARE SERVICES (UK) LTD,SU0133/1095,04-Apr-23,2380,0,34932,Mental Health Placements,321000              Social Community Care Supplies & Services - Adult,A,2022,12
252,Community and Housing,COMFORT CARE SERVICES (UK) LTD,SU0298/969,04-Apr-23,2380,0,34932,Mental Health Placements,321000              Social Community Care Supplies & Services - Adult,A,2022,12
253,Community and Housing,COMFORT CARE SERVICES (UK) LTD,SU0201/1417,04-Apr-23,2380,0,34932,Mental Health Placements,321000              Social Community Care Supplies & Services - Adult,A,2022,12
254,Community and Housing,COMFORT CARE SERVICES (UK) LTD,SU0294/1530,04-Apr-23,2380,0,34932,Mental Health Placements,321000              Social Community Care Supplies & Services - Adult,A,2022,12
255,Community and Housing,COMFORT CARE SERVICES (UK) LTD,SU0146/1416,04-Apr-23,2380,0,34932,Mental Health Placements,321000              Social Community Care Supplies & Services - Adult,A,2022,12
256,Community and Housing,COMFORT CARE SERVICES (UK) LTD,SU0184/968,04-Apr-23,2380,0,34932,Mental Health Placements,321000              Social Community Care Supplies & Services - Adult,A,2022,12
257,Community and Housing,COMFORT CARE SERVICES (UK) LTD,SU1041/829,23-Mar-23,1632.15,0,34932,Mental Health Placements,321000              Social Community Care Supplies & Services - Adult,A,2022,12
258,"Children, Schools and Family",CASTLE KINDERGARTEN,P3 23 SENDIF,07-Mar-23,1239,0,35082,EARLY YEARS NURSERY GRANTS,170000              Education,A,2022,12
259,"Children, Schools and Family",CASTLE KINDERGARTEN,P1 23 UPFRONTPAY,30-Mar-23,35466.55,0,35082,EARLY YEARS NURSERY GRANTS,170000              Education,A,2022,12
260,"Children, Schools and Family",CROWN KINDERGARTEN,P1 23 UPFRONTPAY,30-Mar-23,10704.96,0,35084,EARLY YEARS NURSERY GRANTS,170000              Education,A,2022,12
261,"Children, Schools and Family",JIGSAW DAY NURSERY,P3 23 SENDIF,07-Mar-23,4284,0,35097,EARLY YEARS NURSERY GRANTS,170000              Education,A,2022,12
262,"Children, Schools and Family",JIGSAW DAY NURSERY,P1 23 UPFRONTPAY,30-Mar-23,30821.76,0,35097,EARLY YEARS NURSERY GRANTS,170000              Education,A,2022,12
263,"Children, Schools and Family",NURSERY ON THE GREEN,P3 23 LATE START,27-Mar-23,1083.6,0,35101,EARLY YEARS NURSERY GRANTS,170000              Education,A,2022,12
264,"Children, Schools and Family",NURSERY ON THE GREEN,P1 23 UPFRONTPAY,30-Mar-23,15729.12,0,35101,EARLY YEARS NURSERY GRANTS,170000              Education,A,2022,12
265,"Children, Schools and Family",URSULINE PREPARATORY SCHOOL,P1 23 UPFRONTPAY,30-Mar-23,23194.08,0,35109,EARLY YEARS NURSERY GRANTS,170000              Education,A,2022,12
266,"Children, Schools and Family",WILLINGTON SCH.FOUNDATION LTD,P1 23 UPFRONTPAY,30-Mar-23,11469.6,0,35111,EARLY YEARS NURSERY GRANTS,170000              Education,A,2022,12
267,"Children, Schools and Family",BUSY BEES DAY NURSERY - MORDEN,P3 23 SENDIF,07-Mar-23,504,0,35564,EARLY YEARS NURSERY GRANTS,170000              Education,A,2022,12
268,"Children, Schools and Family",BUSY BEES DAY NURSERY - MORDEN,P1 23 UPFRONTPAY,30-Mar-23,58913.28,0,35564,EARLY YEARS NURSERY GRANTS,170000              Education,A,2022,12
269,Unassigned,ST MATTHEW'S C OF E PRIMARY,SCHOOLS 2223/12,07-Mar-23,62301.42,0,36050,Schools,170000              Education,A,2022,12
270,Unassigned,ST MATTHEW'S C OF E PRIMARY,SCHOOLS 2223/13,27-Mar-23,25893.39,0,36050,Schools,170000              Education,A,2022,12
271,Community and Housing,MORDEN BAPTIST CHURCH,387,29-Mar-23,595,0,37583,Long-term Support Team,190000              Facilities & Management Services,A,2022,12
272,"Children, Schools and Family",LITTLE LEARNERS,P1 23 UPFRONTPAY,30-Mar-23,4911.7,0,39413,EARLY YEARS NURSERY GRANTS,170000              Education,A,2022,12
273,Unassigned,I AND  J BUSHELL LTD,4771,22-Mar-23,1080,180,42221,Mitcham Common Conservators,"390000              Works - Construction, Repair & Maintenance",A,2022,12
274,Community and Housing,JESMUND CARE LTD,944632,15-Mar-23,4000,0,46751,Older People Placements - East,321017              Nursing & Residential Care Homes,A,2022,12
275,Community and Housing,JESMUND CARE LTD,944752,15-Mar-23,3600,0,46751,Older People Placements - East,321017              Nursing & Residential Care Homes,A,2022,12
276,"Children, Schools and Family",CAPITA BUSINESS SERVICES LTD,6004138581,22-Mar-23,20645.82,3440.97,47966, Information & Systems Team,270000              Information Communication Technology,A,2022,12
277,"Children, Schools and Family",BOOK TRUST,SIN011078,04-Apr-23,705.43,117.57,50389,PupilPremium- Virtual School,200000              Financial Services,A,2022,12
278,"Children, Schools and Family",BOOK TRUST,INV-11260-D6M2H8,04-Apr-23,2465,124.95,50389,PupilPremium- Virtual School,200000              Financial Services,A,2022,12
279,Community and Housing,REDACTED PERSONAL DATA,951534,29-Mar-23,4900.28,0,50448,Older People Placements - East,DIRECT PAYMENTS,R,2022,12
280,Community and Housing,LINKAGE COMMUNITY TR.LONG-STAY,944667,15-Mar-23,3340.08,0,52552,Learning Disabilities Placemnt,321017              Nursing & Residential Care Homes,A,2022,12
281,Community and Housing,RUTLAND HOUSE CARE HOME,944540,15-Mar-23,3156,0,53424,Older People Placements - East,321017              Nursing & Residential Care Homes,A,2022,12
282,Community and Housing,RUTLAND HOUSE CARE HOME,944658,15-Mar-23,3200,0,53424,Older People Placements - East,321017              Nursing & Residential Care Homes,A,2022,12
283,"Children, Schools and Family",HASLEMERE HOUSE DAY NURSERY,P3 23 SENDIF,07-Mar-23,504,0,55612,EARLY YEARS NURSERY GRANTS,170000              Education,A,2022,12
284,"Children, Schools and Family",HASLEMERE HOUSE DAY NURSERY,P1 23 UPFRONTPAY,30-Mar-23,27999.36,0,55612,EARLY YEARS NURSERY GRANTS,170000              Education,A,2022,12
285,Community and Housing,PARK LODGE,944508,15-Mar-23,2940,0,56878,Learning Disabilities Placemnt,321017              Nursing & Residential Care Homes,A,2022,12
286,Community and Housing,PARK LODGE,944607,15-Mar-23,3026.8,0,56878,Learning Disabilities Placemnt,321017              Nursing & Residential Care Homes,A,2022,12
287,Unassigned,CRICKET GREEN SCHOOL,SCHOOLS 2223/12,07-Mar-23,341796.53,0,57057,Schools,170000              Education,A,2022,12
288,"Children, Schools and Family",CRICKET GREEN SCHOOL,MBKHAN09032023,09-Mar-23,1177,0,57057,PupilPremium- Virtual School,170000              Education,A,2022,12
289,Unassigned,CRICKET GREEN SCHOOL,SCHOOLS 2223/13,27-Mar-23,213743.64,0,57057,Schools,170000              Education,A,2022,12
290,"Children, Schools and Family",CRICKET GREEN SCHOOL,CRICKET GREEN SC,28-Mar-23,340000,0,57057,Delegated Special Schools,170000              Education,A,2022,12
291,Community and Housing,KENWARD TRUST,944377,15-Mar-23,2853.57,0,57058,ASC - Substance Misuse - Drugs,321100              Social Community Care Supplies & Services - Children,A,2022,12
292,Corporate Services,MERTON VOLUNTARY SERV COUNCIL,5215,23-Mar-23,10416.67,0,57560,Healthwatch,190000              Facilities & Management Services,A,2022,12
293,Corporate Services,JADE SECURITY SERVICE LTD,5052,22-Mar-23,2969.5,494.92,57563,Cash Collections,200000              Financial Services,A,2022,12
294,Community and Housing,WALSINGHAM,944479,15-Mar-23,5486.52,0,58466,Learning Disabilities Placemnt,321017              Nursing & Residential Care Homes,A,2022,12
295,Community and Housing,WALSINGHAM,944665,15-Mar-23,5486.4,0,58466,Learning Disabilities Placemnt,321017              Nursing & Residential Care Homes,A,2022,12
296,Community and Housing,WALSINGHAM,944726,15-Mar-23,7365.64,0,58466,Learning Disabilities Placemnt,321017              Nursing & Residential Care Homes,A,2022,12
297,Community and Housing,WALSINGHAM,944732,15-Mar-23,5476.12,0,58466,Learning Disabilities Placemnt,321017              Nursing & Residential Care Homes,A,2022,12
298,Community and Housing,HATS GROUP LTD,223344,16-Mar-23,1993.8,332.28,58532,Learning Disabilities Placemnt,360000              Passenger Transport,A,2022,12
299,Community and Housing,HATS GROUP LTD,223030,20-Mar-23,664.61,110.77,58532,Learning Disabilities Placemnt,360000              Passenger Transport,A,2022,12
300,Community and Housing,CARE UK,CUMBE008327,21-Mar-23,15707.52,0,58851,Com Care Placement Contingency,321017              Nursing & Residential Care Homes,A,2022,12
301,Community and Housing,CARE UK,944359,13-Mar-23,797.83,0,58851,Older People Placements - East,321017              Nursing & Residential Care Homes,A,2022,12
302,Community and Housing,CARE UK,944372,15-Mar-23,3229.52,0,58851,Older People Placements - East,321017              Nursing & Residential Care Homes,A,2022,12
303,Community and Housing,CARE UK,944390,15-Mar-23,3800,0,58851,Older People Placements - East,321017              Nursing & Residential Care Homes,A,2022,12
304,Community and Housing,CARE UK,944455,15-Mar-23,3963.24,0,58851,Older People Placements - East,321017              Nursing & Residential Care Homes,A,2022,12
305,Community and Housing,CARE UK,944545,15-Mar-23,3264.32,0,58851,Older People Placements - East,321017              Nursing & Residential Care Homes,A,2022,12
306,Community and Housing,CARE UK,944598,15-Mar-23,3723.24,0,58851,Older People Placements - East,321017              Nursing & Residential Care Homes,A,2022,12
307,Community and Housing,CARE UK,944659,15-Mar-23,3229.52,0,58851,Older People Placements - East,321017              Nursing & Residential Care Homes,A,2022,12
308,Community and Housing,CARE UK,944680,15-Mar-23,3723.24,0,58851,Older People Placements - East,321017              Nursing & Residential Care Homes,A,2022,12
309,Community and Housing,CARE UK,944747,15-Mar-23,4000,0,58851,Older People Placements - East,321017              Nursing & Residential Care Homes,A,2022,12
310,Community and Housing,CARE UK,944750,15-Mar-23,3229.52,0,58851,Older People Placements - East,321017              Nursing & Residential Care Homes,A,2022,12
311,"Children, Schools and Family",ST MICHAEL'S FELLOWSHIP,C3043B/2100,20-Mar-23,1008,0,59560,Placements Under 18,280000              Legal Services,A,2022,12
312,Capital,BARCHAM TREES P.L.C.,155669,29-Mar-23,15732,2622,62024,Street Trees,240000              Horticultural,A,2022,12
313,Corporate Services,BRITISH TELECOMMUNICATIONS PLC,VP85391270Q085TS,15-Mar-23,13193.18,2198.86,62082,IT-Telecomms,270000              Information Communication Technology,A,2022,12
314,Community and Housing,RUSHTON WORKWEAR LTD,51831,30-Mar-23,612,102,62131,Com Care Placement Contingency,140000              Clothing,A,2022,12
315,Community and Housing,BARONS LODGE NURSING HOME,944431,15-Mar-23,1716,0,62371,Mental Health Placements,321017              Nursing & Residential Care Homes,A,2022,12
316,Community and Housing,BARONS LODGE NURSING HOME,944505,15-Mar-23,3960,0,62371,Older People Placements - East,321017              Nursing & Residential Care Homes,A,2022,12
317,Community and Housing,BARONS LODGE NURSING HOME,944520,15-Mar-23,4360,0,62371,Older People Placements - East,321017              Nursing & Residential Care Homes,A,2022,12
318,Community and Housing,BARONS LODGE NURSING HOME,944626,15-Mar-23,3502,0,62371,Mental Health Placements,321017              Nursing & Residential Care Homes,A,2022,12
319,Community and Housing,BARONS LODGE NURSING HOME,944638,15-Mar-23,4200,0,62371,Mental Health Placements,321017              Nursing & Residential Care Homes,A,2022,12
320,Community and Housing,BARONS LODGE NURSING HOME,944697,15-Mar-23,765.14,0,62371,Learning Disabilities Placemnt,321017              Nursing & Residential Care Homes,A,2022,12
321,Community and Housing,BARONS LODGE NURSING HOME,944700,15-Mar-23,4360,0,62371,Mental Health Placements,321017              Nursing & Residential Care Homes,A,2022,12
322,Community and Housing,BARONS LODGE NURSING HOME,944708,15-Mar-23,4360,0,62371,Older People Placements - East,321017              Nursing & Residential Care Homes,A,2022,12
323,Community and Housing,BARONS LODGE NURSING HOME,944709,15-Mar-23,3807.2,0,62371,Learning Disabilities Placemnt,321017              Nursing & Residential Care Homes,A,2022,12
324,Community and Housing,BARONS LODGE NURSING HOME,944727,15-Mar-23,10176,0,62371,Older People Placements - East,321017              Nursing & Residential Care Homes,A,2022,12
325,Community and Housing,BARONS LODGE NURSING HOME,944743,15-Mar-23,3502,0,62371,Older People Placements - East,321017              Nursing & Residential Care Homes,A,2022,12
326,Community and Housing,SANCTUARY CARE LTD,944402,15-Mar-23,3117.52,0,63458,Learning Disabilities Placemnt,321017              Nursing & Residential Care Homes,A,2022,12
327,Community and Housing,THE REGARD PARTNERSHIP LTD,664000813,14-Mar-23,2577.92,0,63796,Mental Health Placements,321017              Nursing & Residential Care Homes,A,2022,12
328,Community and Housing,THE REGARD PARTNERSHIP LTD,664000828,14-Mar-23,2577.92,0,63796,Mental Health Placements,321017              Nursing & Residential Care Homes,A,2022,12
329,Community and Housing,THE REGARD PARTNERSHIP LTD,944385,15-Mar-23,6220.72,0,63796,Learning Disabilities Placemnt,321017              Nursing & Residential Care Homes,A,2022,12
330,Community and Housing,THE REGARD PARTNERSHIP LTD,944477,15-Mar-23,6010.48,0,63796,Learning Disabilities Placemnt,321017              Nursing & Residential Care Homes,A,2022,12
331,Community and Housing,THE REGARD PARTNERSHIP LTD,944494,15-Mar-23,9681.96,0,63796,Learning Disabilities Placemnt,321017              Nursing & Residential Care Homes,A,2022,12
332,Community and Housing,THE REGARD PARTNERSHIP LTD,944506,15-Mar-23,5765,0,63796,Learning Disabilities Placemnt,321017              Nursing & Residential Care Homes,A,2022,12
333,Community and Housing,THE REGARD PARTNERSHIP LTD,944614,15-Mar-23,6126.52,0,63796,Learning Disabilities Placemnt,321017              Nursing & Residential Care Homes,A,2022,12
334,Community and Housing,THE REGARD PARTNERSHIP LTD,944729,15-Mar-23,4901.24,0,63796,Learning Disabilities Placemnt,321017              Nursing & Residential Care Homes,A,2022,12
335,Community and Housing,WINGREACH LIMITED,929742,31-Mar-23,1386.99,0,64877,Learning Disabilities Placemnt,321017              Nursing & Residential Care Homes,A,2022,12
336,"Children, Schools and Family",CAROUSEL DAY NURSERY,P1 23 UPFRONTPAY,30-Mar-23,33844.32,0,66990,EARLY YEARS NURSERY GRANTS,170000              Education,A,2022,12
337,"Children, Schools and Family",PLAYDAYS DAY NURSERY,P1 23 UPFRONTPAY,30-Mar-23,8411.04,0,66992,EARLY YEARS NURSERY GRANTS,170000              Education,A,2022,12
338,Community and Housing,NAS SERVICES LIMITED,ASU2389006,03-Mar-23,4546.8,757.8,68929,Mental Health Placements,321100              Social Community Care Supplies & Services - Children,A,2022,12
339,Community and Housing,NAS SERVICES LIMITED,ACR2391276,29-Mar-23,1893.6,315.6,68929,Mental Health Placements,321100              Social Community Care Supplies & Services - Children,A,2022,12
340,Community and Housing,NAS SERVICES LIMITED,ASU2390246,31-Mar-23,4546.8,757.8,68929,Mental Health Placements,321100              Social Community Care Supplies & Services - Children,A,2022,12
341,Community and Housing,TRANSPORT TRADING LIMITED [SE1 0AL],4TH QTR CONCESS,02-Mar-23,1225395.33,0,71407,Concessionary Fares,360000              Passenger Transport,A,2022,12
342,Environment and Regeneration,MERTON MUSIC FOUNDATION,INV-00472,10-Mar-23,1500,0,71535,Arts (General Funding),290000              Arts & Leisure Services,A,2022,12
343,Unassigned,LOCAL GOVERNMENT ASSOCIATION,40115527,24-Mar-23,4872,812,71578,Governance & Oversight Cost,260000              Human Resources,A,2022,12
344,"Children, Schools and Family",ETHELBERT SPECIALIST HOMES LTD,LL/0223/1194,07-Mar-23,13255.12,0,72942,Placements Under 18,321100              Social Community Care Supplies & Services - Children,A,2022,12
345,Environment and Regeneration,NEC Software Solutions UK Limited,91471419,28-Mar-23,15300,2550,72946,Reg. Serv - Shared Mgnt Costs,190000              Facilities & Management Services,A,2022,12
346,Community and Housing,CARETECH UK. LIMITED,99684,04-Apr-23,594,99,74201,Equipment,321000              Social Community Care Supplies & Services - Adult,A,2022,12
347,Community and Housing,CARETECH UK. LIMITED,99685,04-Apr-23,594,99,74201,Equipment,321000              Social Community Care Supplies & Services - Adult,A,2022,12
348,Community and Housing,CARETECH UK. LIMITED,99683,04-Apr-23,594,99,74201,Equipment,321000              Social Community Care Supplies & Services - Adult,A,2022,12
349,"Children, Schools and Family",JANCETT CHILDCARE AND  JACE TRNG,P3 23 SENDIF,07-Mar-23,2394,0,75578,EARLY YEARS NURSERY GRANTS,260000              Human Resources,A,2022,12
350,"Children, Schools and Family",JANCETT CHILDCARE AND  JACE TRNG,P1 23 UPFRONTPAY,30-Mar-23,26783.42,0,75578,EARLY YEARS NURSERY GRANTS,260000              Human Resources,A,2022,12
351,Corporate Services,LGIU,306340,17-Mar-23,1074,179,75831,Community Cohesion,260000              Human Resources,A,2022,12
352,Community and Housing,BRANDON TRUST,944395,15-Mar-23,4054,0,76126,Learning Disabilities Placemnt,321017              Nursing & Residential Care Homes,A,2022,12
353,"Children, Schools and Family",DICKY BIRDS PRE SCHOOL NURSERY,P1 23 UPFRONTPAY,30-Mar-23,32624.64,0,76508,EARLY YEARS NURSERY GRANTS,170000              Education,A,2022,12
354,"Children, Schools and Family",NESCOT,328673,01-Mar-23,929.94,0,76517,Non-Maintained Post 16 SEN,170000              Education,A,2022,12
355,"Children, Schools and Family",NESCOT,328941,01-Mar-23,929.94,0,76517,Non-Maintained Post 16 SEN,170000              Education,A,2022,12
356,Unassigned,LONDON BOROUGH OF SUTTON,MSJCB22/23,03-Mar-23,54846.56,0,76615,MSJCB I&E,OLA,A,2022,12
357,Unassigned,LONDON BOROUGH OF SUTTON,BAILIFF FEB 23,09-Mar-23,97819.57,0,76615,Corporate Services,OLA,A,2022,12
358,"Children, Schools and Family",LONDON BOROUGH OF SUTTON,3190593680,16-Mar-23,9000,1500,76615,Head - Help & Family Assessmnt,OLA,A,2022,12
359,"Children, Schools and Family",LONDON BOROUGH OF SUTTON,3190345921,23-Mar-23,15600,2600,76615,Head - Help & Family Assessmnt,OLA,A,2022,12
360,Community and Housing,LONDON BOROUGH OF SUTTON,3190567750,24-Mar-23,4680.72,0,76615,OP/PS Mgt AD Adult Social Care,OLA,A,2022,12
361,Unassigned,POST OFFICE LTD,MERTON22/23PO23,07-Mar-23,16884.75,0,77066,Adults Social Care,200000              Financial Services,A,2022,12
362,Unassigned,POST OFFICE LTD,MERTON2223PO24,23-Mar-23,19988.9,0,77066,Adults Social Care,200000              Financial Services,A,2022,12
363,"Children, Schools and Family",PRIORS COURT FOUNDATION,1747,27-Mar-23,65884.04,10980.67,78722,SEN Residential (DSG),170000              Education,A,2022,12
364,"Children, Schools and Family",PRIORS COURT FOUNDATION,1748,27-Mar-23,65884.04,10980.67,78722,SEN Residential (DSG),170000              Education,A,2022,12
365,Community and Housing,ABBEY HOUSE RESIDENTIAL HOMES,944397,15-Mar-23,4400,0,78937,Older People Placements - East,321017              Nursing & Residential Care Homes,A,2022,12
366,Community and Housing,ABBEY HOUSE RESIDENTIAL HOMES,944419,15-Mar-23,4400,0,78937,Older People Placements - East,321017              Nursing & Residential Care Homes,A,2022,12
367,Community and Housing,ABBEY HOUSE RESIDENTIAL HOMES,944421,15-Mar-23,5520,0,78937,Mental Health Placements,321017              Nursing & Residential Care Homes,A,2022,12
368,"Children, Schools and Family",GLS EDUCATIONAL SUPPLIES LTD,98348085,30-Mar-23,967.32,161.22,79201,lavender Locality Child Cent,170000              Education,A,2022,12
369,"Children, Schools and Family",SOUTHWARK COUNCIL,10010990961,21-Mar-23,12885,0,81552,Fostering Recruit/Assessment,OLA,A,2022,12
370,Community and Housing,REDACTED PERSONAL DATA,951297,29-Mar-23,3904.6,0,81639,Older People Placements - East,DIRECT PAYMENTS,R,2022,12
371,"Children, Schools and Family",DEE'S DAY NURSERY,P1 23 UPFRONTPAY,30-Mar-23,9940.32,0,82343,EARLY YEARS NURSERY GRANTS,170000              Education,A,2022,12
372,Corporate Services,IRON MOUNTAIN (UK) LTD,17148446,22-Mar-23,1225.33,204.22,82409,IT-Telecomms,270000              Information Communication Technology,A,2022,12
373,Environment and Regeneration,S.GRUNDON (WASTE) LTD.,W158324,20-Mar-23,967.68,161.28,82593,Waste Disposal,180000              Environmental Services,A,2022,12
374,Community and Housing,ASKEWS AND HOLTS LIBRARY SRV LTD,6837558,17-Mar-23,590.66,0,82770,Media Fund,200000              Financial Services,A,2022,12
375,Unassigned,GREATER LONDON AUTHORITY,2.02303E+11,21-Mar-23,2476796,0,83050,Collection Fund,PRECEPT,A,2022,12
376,Environment and Regeneration,GREATER LONDON AUTHORITY,1800011566,29-Mar-23,24000,4000,83050,Physical Regeneration,PRECEPT,A,2022,12
377,Unassigned,MALMESBURY PRIMARY SCHOOL,SCHOOLS 2223/12,07-Mar-23,161898.87,0,83593,Schools,170000              Education,A,2022,12
378,Unassigned,MALMESBURY PRIMARY SCHOOL,SCHOOLS 2223/13,27-Mar-23,212213.68,0,83593,Schools,170000              Education,A,2022,12
379,Community and Housing,YOUNG EPILEPSY,INV010872,28-Mar-23,39626.58,0,84094,Learning Disabilities Placemnt,170000              Education,A,2022,12
380,"Children, Schools and Family",ALLSOP AND FRANCIS LTD,148398,21-Mar-23,2760,460,85114,Brightwell,"390000              Works - Construction, Repair & Maintenance",A,2022,12
381,Environment and Regeneration,NEWSQUEST MEDIA GROUP LTD,42241100,27-Mar-23,968.11,161.35,85566,CPZ Implementation & Consult,190000              Facilities & Management Services,A,2022,12
382,Environment and Regeneration,NEWSQUEST MEDIA GROUP LTD,42275472,29-Mar-23,597.6,99.6,85566,Development Control,190000              Facilities & Management Services,A,2022,12
383,Environment and Regeneration,NEWSQUEST MEDIA GROUP LTD,42287855,04-Apr-23,1721.09,286.85,85566,CPZ Implementation & Consult,190000              Facilities & Management Services,A,2022,12
384,Community and Housing,L.B.RICHMOND UPON THAMES,3001648892,22-Mar-23,34604,0,86993,OP/PS Mgt AD Adult Social Care,OLA,A,2022,12
385,Capital,CITY OF WESTMINSTER,3660083441,14-Mar-23,158424,0,89641,Westminster Ccl Coroners Court,OLA,A,2022,12
386,Corporate Services,CITY OF WESTMINSTER,3660084005,15-Mar-23,104205.44,17367.57,89641,Coroners Courts,OLA,A,2022,12
387,Corporate Services,CITY OF WESTMINSTER,3760009500,21-Mar-23,333506.35,55584.39,89641,Coroners Courts,OLA,A,2022,12
388,Corporate Services,Vuelio,INV61554,28-Mar-23,7965.61,1327.6,90411,Marketing & Communication,270000              Information Communication Technology,A,2022,12
389,Community and Housing,LONDON GRID FOR LEARNING TRUST,2020014825,23-Mar-23,7794,1299,90449,Libraries Service-Civic Centre,270000              Information Communication Technology,A,2022,12
390,"Children, Schools and Family",LONDON GRID FOR LEARNING TRUST,2020014516,21-Mar-23,1438.8,239.8,90449, Schools IT Support,270000              Information Communication Technology,A,2022,12
391,Community and Housing,SUPREME CARE SERVICES LIMITED,85644,09-Mar-23,728.76,0,91840,Older People Placements - East,321000              Social Community Care Supplies & Services - Adult,A,2022,12
392,Community and Housing,SUPREME CARE SERVICES LIMITED,85648,09-Mar-23,1056.73,0,91840,Older People Placements - East,321000              Social Community Care Supplies & Services - Adult,A,2022,12
393,Community and Housing,SUPREME CARE SERVICES LIMITED,85649,09-Mar-23,1172.36,0,91840,Older People Placements - East,321000              Social Community Care Supplies & Services - Adult,A,2022,12
394,Community and Housing,SUPREME CARE SERVICES LIMITED,85650,09-Mar-23,2778.72,0,91840,Older People Placements - East,321000              Social Community Care Supplies & Services - Adult,A,2022,12
395,Community and Housing,SUPREME CARE SERVICES LIMITED,85653,09-Mar-23,735.57,0,91840,Older People Placements - East,321000              Social Community Care Supplies & Services - Adult,A,2022,12
396,Community and Housing,SUPREME CARE SERVICES LIMITED,85645,16-Mar-23,2988.16,0,91840,Older People Placements - East,321000              Social Community Care Supplies & Services - Adult,A,2022,12
397,Community and Housing,SUPREME CARE SERVICES LIMITED,85641,16-Mar-23,1493.52,0,91840,Older People Placements - East,321000              Social Community Care Supplies & Services - Adult,A,2022,12
398,Community and Housing,SUPREME CARE SERVICES LIMITED,85647,22-Mar-23,1165.44,0,91840,Older People Placements - East,321000              Social Community Care Supplies & Services - Adult,A,2022,12
399,Community and Housing,SUPREME CARE SERVICES LIMITED,85617,28-Mar-23,1955.97,0,91840,Older People Placements - East,321000              Social Community Care Supplies & Services - Adult,A,2022,12
400,Community and Housing,SUPREME CARE SERVICES LIMITED,85561,31-Mar-23,2778.44,0,91840,Older People Placements - East,321000              Social Community Care Supplies & Services - Adult,A,2022,12
401,Community and Housing,THE GARWOOD FOUNDATION,MWDFMAR23,09-Mar-23,1121,0,92268,Older People Placements - East,321000              Social Community Care Supplies & Services - Adult,A,2022,12
402,Community and Housing,Allied Healthcare,RF/264/1064896,09-Mar-23,808.88,0,92896,Older People Placements - East,321000              Social Community Care Supplies & Services - Adult,A,2022,12
403,Community and Housing,Allied Healthcare,2641065186/16,31-Mar-23,757.2,0,92896,Learning Disabilities Placemnt,321000              Social Community Care Supplies & Services - Adult,A,2022,12
404,Community and Housing,Allied Healthcare,2641065186/36,31-Mar-23,657.23,0,92896,Older People Placements - East,321000              Social Community Care Supplies & Services - Adult,A,2022,12
405,Community and Housing,Allied Healthcare,2641065186/35,31-Mar-23,1094.01,0,92896,Phys/Sens Placements - East,321000              Social Community Care Supplies & Services - Adult,A,2022,12
406,Community and Housing,Allied Healthcare,2641065186/45,31-Mar-23,1076.38,0,92896,Older People Placements - East,321000              Social Community Care Supplies & Services - Adult,A,2022,12
407,Community and Housing,Allied Healthcare,2641065186/46,31-Mar-23,1049.95,0,92896,Older People Placements - East,321000              Social Community Care Supplies & Services - Adult,A,2022,12
408,Community and Housing,Allied Healthcare,2641065186/18,31-Mar-23,714.33,0,92896,Older People Placements - East,321000              Social Community Care Supplies & Services - Adult,A,2022,12
409,Community and Housing,Allied Healthcare,2641065186/28,31-Mar-23,522.9,0,92896,Learning Disabilities Placemnt,321000              Social Community Care Supplies & Services - Adult,A,2022,12
410,Community and Housing,Allied Healthcare,2641065186/55,31-Mar-23,1381.33,0,92896,Older People Placements - East,321000              Social Community Care Supplies & Services - Adult,A,2022,12
411,Community and Housing,Allied Healthcare,2641065186/6,31-Mar-23,1045.5,0,92896,Older People Placements - East,321000              Social Community Care Supplies & Services - Adult,A,2022,12
412,Community and Housing,Allied Healthcare,2641065186/20,31-Mar-23,2784.9,0,92896,Older People Placements - East,321000              Social Community Care Supplies & Services - Adult,A,2022,12
413,Community and Housing,Allied Healthcare,2641065186/61,31-Mar-23,1144.93,0,92896,Older People Placements - East,321000              Social Community Care Supplies & Services - Adult,A,2022,12
414,Community and Housing,Allied Healthcare,2641065186/59,31-Mar-23,1005.16,0,92896,Older People Placements - East,321000              Social Community Care Supplies & Services - Adult,A,2022,12
415,Community and Housing,Allied Healthcare,2641065186/39,31-Mar-23,2658.26,0,92896,Older People Placements - East,321000              Social Community Care Supplies & Services - Adult,A,2022,12
416,Community and Housing,Allied Healthcare,2641065186/30,31-Mar-23,2135.85,0,92896,Older People Placements - East,321000              Social Community Care Supplies & Services - Adult,A,2022,12
417,Community and Housing,Allied Healthcare,2641065186/21,31-Mar-23,1712.86,0,92896,Learning Disabilities Placemnt,321000              Social Community Care Supplies & Services - Adult,A,2022,12
418,Community and Housing,Allied Healthcare,2641065186/33,31-Mar-23,2879.97,0,92896,Older People Placements - East,321000              Social Community Care Supplies & Services - Adult,A,2022,12
419,Community and Housing,Allied Healthcare,2641065186/41,31-Mar-23,719.15,0,92896,Older People Placements - East,321000              Social Community Care Supplies & Services - Adult,A,2022,12
420,Community and Housing,Allied Healthcare,2641065186/25,31-Mar-23,2659.89,0,92896,Older People Placements - East,321000              Social Community Care Supplies & Services - Adult,A,2022,12
421,Community and Housing,Allied Healthcare,2641065186/23,31-Mar-23,525,0,92896,Learning Disabilities Placemnt,321000              Social Community Care Supplies & Services - Adult,A,2022,12
422,Community and Housing,Allied Healthcare,2641065186/54,31-Mar-23,2615.12,0,92896,Older People Placements - East,321000              Social Community Care Supplies & Services - Adult,A,2022,12
423,Community and Housing,Allied Healthcare,2641065186/10,31-Mar-23,1254.11,0,92896,Older People Placements - East,321000              Social Community Care Supplies & Services - Adult,A,2022,12
424,Community and Housing,Allied Healthcare,2641065186/32,31-Mar-23,679.55,0,92896,Older People Placements - East,321000              Social Community Care Supplies & Services - Adult,A,2022,12
425,Community and Housing,Allied Healthcare,2641065186/48,31-Mar-23,2563.55,0,92896,Older People Placements - East,321000              Social Community Care Supplies & Services - Adult,A,2022,12
426,Community and Housing,Allied Healthcare,2641065186/5,31-Mar-23,1569.85,0,92896,Older People Placements - East,321000              Social Community Care Supplies & Services - Adult,A,2022,12
427,Community and Housing,Allied Healthcare,2641065186/34,31-Mar-23,2389.11,0,92896,Phys/Sens Placements - East,321000              Social Community Care Supplies & Services - Adult,A,2022,12
428,Community and Housing,Allied Healthcare,2641065186/17,31-Mar-23,692.92,0,92896,Older People Placements - East,321000              Social Community Care Supplies & Services - Adult,A,2022,12
429,Community and Housing,Allied Healthcare,2641065186/60,31-Mar-23,1408.98,0,92896,Older People Placements - East,321000              Social Community Care Supplies & Services - Adult,A,2022,12
430,Community and Housing,Allied Healthcare,2641065186/12,31-Mar-23,531.95,0,92896,Older People Placements - East,321000              Social Community Care Supplies & Services - Adult,A,2022,12
431,Community and Housing,Allied Healthcare,2641065186/43,31-Mar-23,707.09,0,92896,Older People Placements - East,321000              Social Community Care Supplies & Services - Adult,A,2022,12
432,Community and Housing,Allied Healthcare,2641065186/15,31-Mar-23,675.67,0,92896,Older People Placements - East,321000              Social Community Care Supplies & Services - Adult,A,2022,12
433,Community and Housing,Allied Healthcare,2641065186/24,31-Mar-23,1551.27,0,92896,Older People Placements - East,321000              Social Community Care Supplies & Services - Adult,A,2022,12
434,Community and Housing,Allied Healthcare,2641065186/7,31-Mar-23,2939.44,0,92896,Older People Placements - East,321000              Social Community Care Supplies & Services - Adult,A,2022,12
435,Community and Housing,Allied Healthcare,2641065186/53,31-Mar-23,2870,0,92896,Older People Placements - East,321000              Social Community Care Supplies & Services - Adult,A,2022,12
436,Community and Housing,Allied Healthcare,2641065186/58,31-Mar-23,570.06,0,92896,Older People Placements - East,321000              Social Community Care Supplies & Services - Adult,A,2022,12
437,Community and Housing,Allied Healthcare,2641065186/57,31-Mar-23,2671.27,0,92896,Older People Placements - East,321000              Social Community Care Supplies & Services - Adult,A,2022,12
438,Community and Housing,Allied Healthcare,2641065186/22,31-Mar-23,1205.01,0,92896,Older People Placements - East,321000              Social Community Care Supplies & Services - Adult,A,2022,12
439,Community and Housing,Allied Healthcare,2641065186/50,31-Mar-23,1081.93,0,92896,Older People Placements - East,321000              Social Community Care Supplies & Services - Adult,A,2022,12
440,Community and Housing,Allied Healthcare,2641065186/8,31-Mar-23,1701.41,0,92896,Older People Placements - East,321000              Social Community Care Supplies & Services - Adult,A,2022,12
441,Community and Housing,Allied Healthcare,2641065186/4,31-Mar-23,820.1,0,92896,Older People Placements - East,321000              Social Community Care Supplies & Services - Adult,A,2022,12
442,"Children, Schools and Family",BUILDING BLOCKS NURSERY,P1 23 UPFRONTPAY,30-Mar-23,28240.7,0,93437,EARLY YEARS NURSERY GRANTS,170000              Education,A,2022,12
443,Community and Housing,CARE MANAGEMENT GROUP,944361,15-Mar-23,579.79,0,93533,Learning Disabilities Placemnt,321017              Nursing & Residential Care Homes,A,2022,12
444,Community and Housing,CARE MANAGEMENT GROUP,944379,15-Mar-23,4593.88,0,93533,Mental Health Placements,321017              Nursing & Residential Care Homes,A,2022,12
445,Community and Housing,CARE MANAGEMENT GROUP,944442,15-Mar-23,6279.2,0,93533,Learning Disabilities Placemnt,321017              Nursing & Residential Care Homes,A,2022,12
446,Community and Housing,CARE MANAGEMENT GROUP,944543,15-Mar-23,5936.6,0,93533,Learning Disabilities Placemnt,321017              Nursing & Residential Care Homes,A,2022,12
447,Community and Housing,CARE MANAGEMENT GROUP,944591,15-Mar-23,8733.64,0,93533,Phys/Sens Placements - East,321017              Nursing & Residential Care Homes,A,2022,12
448,Community and Housing,CARE MANAGEMENT GROUP,944628,15-Mar-23,7712.12,0,93533,Learning Disabilities Placemnt,321017              Nursing & Residential Care Homes,A,2022,12
449,Community and Housing,CARE MANAGEMENT GROUP,944758,15-Mar-23,7974.36,0,93533,Learning Disabilities Placemnt,321017              Nursing & Residential Care Homes,A,2022,12
450,Community and Housing,CARE MANAGEMENT GROUP,397000682,17-Mar-23,4961.72,0,93533,Learning Disabilities Placemnt,321017              Nursing & Residential Care Homes,A,2022,12
451,"Children, Schools and Family",ST OLAVES NURSERY,P1 23 UPFRONTPAY,30-Mar-23,16093.44,0,94303,EARLY YEARS NURSERY GRANTS,170000              Education,A,2022,12
452,Community and Housing,A AND R CARE LTD,944434,15-Mar-23,3300,0,94357,Older People Placements - East,321017              Nursing & Residential Care Homes,A,2022,12
453,Community and Housing,A AND R CARE LTD,944552,15-Mar-23,3763.24,0,94357,Older People Placements - East,321017              Nursing & Residential Care Homes,A,2022,12
454,Community and Housing,A AND R CARE LTD,944693,15-Mar-23,3400,0,94357,Older People Placements - East,321017              Nursing & Residential Care Homes,A,2022,12
455,Community and Housing,A AND R CARE LTD,944786,15-Mar-23,3824.32,0,94357,Phys/Sens Placements - East,321017              Nursing & Residential Care Homes,A,2022,12
456,Community and Housing,A AND R CARE LTD,949916,24-Mar-23,31028.57,0,94357,Older People Placements - East,321017              Nursing & Residential Care Homes,A,2022,12
457,Corporate Services,JCDECAUX UNITED KINGDOM,SF/I220533,30-Mar-23,558,93,94678,Cost of Living Fund,190000              Facilities & Management Services,A,2022,12
458,Community and Housing,COMMONSIDE COMMUNITY DEV TRUST,UKRAINE SUPPORT,08-Mar-23,43660,0,95839,UKRAINE,321000              Social Community Care Supplies & Services - Adult,A,2022,12
459,Community and Housing,COMMONSIDE COMMUNITY DEV TRUST,9918,22-Mar-23,2000,0,95839,UKRAINE,321000              Social Community Care Supplies & Services - Adult,A,2022,12
460,Community and Housing,Aspens Charities Ltd,36937,09-Mar-23,18309.2,0,96019,Learning Disabilities Placemnt,321017              Nursing & Residential Care Homes,A,2022,12
461,Community and Housing,Aspens Charities Ltd,944570,15-Mar-23,8954.28,0,96019,Learning Disabilities Placemnt,321017              Nursing & Residential Care Homes,A,2022,12
462,Community and Housing,REDACTED PERSONAL DATA,951144,29-Mar-23,4260.16,0,96859,Learning Disabilities Placemnt,DIRECT PAYMENTS,R,2022,12
463,Community and Housing,THE ABBEYFIELD SOCIETY,944711,15-Mar-23,4000,0,97539,Older People Placements - East,321000              Social Community Care Supplies & Services - Adult,A,2022,12
464,Community and Housing,EL-SHADDAI,940484,06-Mar-23,1052.08,0,97709,MH Housing Support Placements,321000              Social Community Care Supplies & Services - Adult,A,2022,12
465,Community and Housing,EL-SHADDAI,940503,06-Mar-23,780.68,0,97709,Phys/Sens Placements - East,321000              Social Community Care Supplies & Services - Adult,A,2022,12
466,Community and Housing,EL-SHADDAI,940507,06-Mar-23,1502.92,0,97709,Learning Disabilities Placemnt,321000              Social Community Care Supplies & Services - Adult,A,2022,12
467,Community and Housing,EL-SHADDAI,940513,06-Mar-23,1052.08,0,97709,Learning Disabilities Placemnt,321000              Social Community Care Supplies & Services - Adult,A,2022,12
468,Community and Housing,EL-SHADDAI,953387,31-Mar-23,1052.08,0,97709,MH Housing Support Placements,321000              Social Community Care Supplies & Services - Adult,A,2022,12
469,Community and Housing,EL-SHADDAI,953408,31-Mar-23,780.68,0,97709,Phys/Sens Placements - East,321000              Social Community Care Supplies & Services - Adult,A,2022,12
470,Community and Housing,EL-SHADDAI,953412,31-Mar-23,1315.04,0,97709,Learning Disabilities Placemnt,321000              Social Community Care Supplies & Services - Adult,A,2022,12
471,Community and Housing,EL-SHADDAI,953421,31-Mar-23,1052.08,0,97709,Learning Disabilities Placemnt,321000              Social Community Care Supplies & Services - Adult,A,2022,12
472,Community and Housing,Rosenmanor Ltd,944564,15-Mar-23,2924.24,0,97808,Mental Health Placements,321017              Nursing & Residential Care Homes,A,2022,12
473,Community and Housing,MERTON COMMUNITY TRANSPORT,16938,16-Mar-23,1598.4,266.4,98164,Learning Disabilities Placemnt,360000              Passenger Transport,A,2022,12
474,Community and Housing,MERTON COMMUNITY TRANSPORT,16952,16-Mar-23,1209.6,201.6,98164,Learning Disabilities Placemnt,360000              Passenger Transport,A,2022,12
475,Unassigned,BEECHOLME PRIMARY ACADEMY,SCHOOLS 2223/13,27-Mar-23,19994.91,0,98168,Schools,170000              Education,A,2022,12
476,"Children, Schools and Family",Evolve Housing + Support,2955,17-Mar-23,1054.64,0,98536,UASC Care Leavers over 18,321000              Social Community Care Supplies & Services - Adult,A,2022,12
477,"Children, Schools and Family",Evolve Housing + Support,3172,20-Mar-23,2200,0,98536,UASC Care Leavers Over 18,321000              Social Community Care Supplies & Services - Adult,A,2022,12
478,"Children, Schools and Family",Evolve Housing + Support,3171,20-Mar-23,2200,0,98536,UASC Care Leavers Over 18,321000              Social Community Care Supplies & Services - Adult,A,2022,12
479,"Children, Schools and Family",Evolve Housing + Support,3269,20-Mar-23,1850,0,98536,Placements Over 18,321000              Social Community Care Supplies & Services - Adult,A,2022,12
480,"Children, Schools and Family",Evolve Housing + Support,3270,20-Mar-23,1850,0,98536,UASC Care Leavers Over 18,321000              Social Community Care Supplies & Services - Adult,A,2022,12
481,"Children, Schools and Family",Evolve Housing + Support,3271,20-Mar-23,1603.65,0,98536,UASC Care Leavers Over 18,321000              Social Community Care Supplies & Services - Adult,A,2022,12
482,"Children, Schools and Family",Evolve Housing + Support,3268,22-Mar-23,2750,0,98536,UASC Care Leavers Over 18,321000              Social Community Care Supplies & Services - Adult,A,2022,12
483,"Children, Schools and Family",Evolve Housing + Support,3275,22-Mar-23,1850,0,98536,Placements Over 18,321000              Social Community Care Supplies & Services - Adult,A,2022,12
484,"Children, Schools and Family",Evolve Housing + Support,3274,22-Mar-23,1603.65,0,98536,UASC Care Leavers Over 18,321000              Social Community Care Supplies & Services - Adult,A,2022,12
485,"Children, Schools and Family",Evolve Housing + Support,3273,22-Mar-23,1238.02,0,98536,Placements Over 18,321000              Social Community Care Supplies & Services - Adult,A,2022,12
486,"Children, Schools and Family",Evolve Housing + Support,3272,23-Mar-23,1603.65,0,98536,UASC Care Leavers Over 18,321000              Social Community Care Supplies & Services - Adult,A,2022,12
487,Community and Housing,ROYAL MENCAP SOCIETY,3748977,04-Apr-23,2290.96,0,98713,Learning Disabilities Placemnt,321000              Social Community Care Supplies & Services - Adult,A,2022,12
488,Community and Housing,ROYAL MENCAP SOCIETY,3748978,04-Apr-23,2613.96,0,98713,Learning Disabilities Placemnt,321000              Social Community Care Supplies & Services - Adult,A,2022,12
489,Unassigned,WEST WIMBLEDON PRIMARY SCHOOL,SCHOOLS 2223/12,07-Mar-23,190777.94,0,101674,Schools,170000              Education,A,2022,12
490,Unassigned,WEST WIMBLEDON PRIMARY SCHOOL,SCHOOLS 2223/13,27-Mar-23,200312.79,0,101674,Schools,170000              Education,A,2022,12
491,Unassigned,NORMAN ROAD HAULAGE LTD,230595,04-Apr-23,743.42,123.9,101898,Mitcham Common Conservators,380000              Vehicle Management,A,2022,12
492,"Children, Schools and Family",A.K. GULATI AND CO,AKG/HALLA,14-Mar-23,504,84,102244,CIC Care Exp under 18 staffing,280000              Legal Services,A,2022,12
493,"Children, Schools and Family",DEE'S DAYS NURSERY,P1 23 UPFRONTPAY,30-Mar-23,16057.44,0,103590,EARLY YEARS NURSERY GRANTS,170000              Education,A,2022,12
494,Community and Housing,HILLDALE AND NORTHVIEW,944525,15-Mar-23,2072.52,0,103592,Older People Placements - East,321000              Social Community Care Supplies & Services - Adult,A,2022,12
495,Environment and Regeneration,G.P HADEN ASSOCIATES,9032023,14-Mar-23,4505.38,0,103632,Other Misc Props,"390000              Works - Construction, Repair & Maintenance",A,2022,12
496,Community and Housing,BUPA CARE HOMES,944403,15-Mar-23,3154.12,0,105027,Older People Placements - East,321017              Nursing & Residential Care Homes,A,2022,12
497,Community and Housing,BUPA CARE HOMES,944410,15-Mar-23,3289.24,0,105027,Older People Placements - East,321017              Nursing & Residential Care Homes,A,2022,12
498,Community and Housing,BUPA CARE HOMES,944422,15-Mar-23,3289.24,0,105027,Older People Placements - East,321017              Nursing & Residential Care Homes,A,2022,12
499,Community and Housing,BUPA CARE HOMES,944433,15-Mar-23,3154.12,0,105027,Older People Placements - East,321017              Nursing & Residential Care Homes,A,2022,12
500,Community and Housing,BUPA CARE HOMES,944484,15-Mar-23,3289.24,0,105027,Older People Placements - East,321017              Nursing & Residential Care Homes,A,2022,12
501,Community and Housing,BUPA CARE HOMES,944497,15-Mar-23,3154.12,0,105027,Older People Placements - East,321017              Nursing & Residential Care Homes,A,2022,12
502,Community and Housing,BUPA CARE HOMES,944514,15-Mar-23,3154.12,0,105027,Older People Placements - East,321017              Nursing & Residential Care Homes,A,2022,12
503,Community and Housing,BUPA CARE HOMES,944528,15-Mar-23,3289.24,0,105027,Older People Placements - East,321017              Nursing & Residential Care Homes,A,2022,12
504,Community and Housing,BUPA CARE HOMES,944536,15-Mar-23,3154.12,0,105027,Older People Placements - East,321017              Nursing & Residential Care Homes,A,2022,12
505,Community and Housing,BUPA CARE HOMES,944586,15-Mar-23,3289.24,0,105027,Older People Placements - East,321017              Nursing & Residential Care Homes,A,2022,12
506,Community and Housing,BUPA CARE HOMES,944600,15-Mar-23,3154.12,0,105027,Older People Placements - East,321017              Nursing & Residential Care Homes,A,2022,12
507,Community and Housing,BUPA CARE HOMES,944615,15-Mar-23,3289.24,0,105027,Older People Placements - East,321017              Nursing & Residential Care Homes,A,2022,12
508,Community and Housing,BUPA CARE HOMES,944618,15-Mar-23,3154.12,0,105027,Older People Placements - East,321017              Nursing & Residential Care Homes,A,2022,12
509,Community and Housing,BUPA CARE HOMES,944627,15-Mar-23,3289.24,0,105027,Older People Placements - East,321017              Nursing & Residential Care Homes,A,2022,12
510,Community and Housing,BUPA CARE HOMES,944663,15-Mar-23,3289.24,0,105027,Older People Placements - East,321017              Nursing & Residential Care Homes,A,2022,12
511,Community and Housing,BUPA CARE HOMES,944671,15-Mar-23,4321.08,0,105027,Phys/Sens Placements - East,321017              Nursing & Residential Care Homes,A,2022,12
512,Community and Housing,BUPA CARE HOMES,944687,15-Mar-23,3569.4,0,105027,Older People Placements - East,321017              Nursing & Residential Care Homes,A,2022,12
513,Community and Housing,BUPA CARE HOMES,944720,15-Mar-23,3154.12,0,105027,Older People Placements - East,321017              Nursing & Residential Care Homes,A,2022,12
514,Community and Housing,BUPA CARE HOMES,944751,15-Mar-23,3289.24,0,105027,Older People Placements - East,321017              Nursing & Residential Care Homes,A,2022,12
515,Community and Housing,BUPA CARE HOMES,944785,15-Mar-23,3289.24,0,105027,Older People Placements - East,321017              Nursing & Residential Care Homes,A,2022,12
516,Community and Housing,BUPA CARE HOMES,944806,15-Mar-23,3154.12,0,105027,Older People Placements - East,321017              Nursing & Residential Care Homes,A,2022,12
517,Environment and Regeneration,APSE,2223/2525,15-Mar-23,1755.6,292.6,105284,Energy Projects,260000              Human Resources,A,2022,12
518,Community and Housing,REDACTED PERSONAL DATA,951520,29-Mar-23,2689.24,0,105300,Learning Disabilities Placemnt,DIRECT PAYMENTS,R,2022,12
519,"Children, Schools and Family",NEWSCHOOLS (MERTON) LIMITED,NSM01051,28-Mar-23,3377.08,562.85,106428, PFI Unitary Charges,200000              Financial Services,A,2022,12
520,"Children, Schools and Family",NEWSCHOOLS (MERTON) LIMITED,NSM01015,28-Mar-23,5004.48,834.08,106428, PFI Unitary Charges,200000              Financial Services,A,2022,12
521,"Children, Schools and Family",NEWSCHOOLS (MERTON) LIMITED,NSM01052,30-Mar-23,3678962.32,613160.39,106428, PFI Unitary Charges,200000              Financial Services,A,2022,12
522,Capital,ASCENDIT LIFTS LTD,39689,01-Mar-23,2584,0,107196,Disabled Facilities Grant,"390000              Works - Construction, Repair & Maintenance",A,2022,12
523,Community and Housing,ASCENDIT LIFTS LTD,40089,28-Mar-23,999.6,166.6,107196,Occupational Therapy,"390000              Works - Construction, Repair & Maintenance",A,2022,12
524,"Children, Schools and Family",The Eveline Day and Nursery Schools Ltd,P1 23 UPFRONTPAY,30-Mar-23,35428.32,0,108282,EARLY YEARS NURSERY GRANTS,170000              Education,A,2022,12
525,"Children, Schools and Family",The Eveline Day and Nursery Schools Ltd,00000130/03/2023,31-Mar-23,3056.33,0,108282,Non-Delegated Statements,170000              Education,A,2022,12
526,Community and Housing,REDACTED PERSONAL DATA,940472,06-Mar-23,789.04,0,110403,MH Housing Support Placements,321000              Social Community Care Supplies & Services - Adult,R,2022,12
527,Community and Housing,REDACTED PERSONAL DATA,940474,06-Mar-23,1052.04,0,110403,Learning Disabilities Placemnt,321000              Social Community Care Supplies & Services - Adult,R,2022,12
528,Community and Housing,REDACTED PERSONAL DATA,940475,06-Mar-23,780.68,0,110403,MH Housing Support Placements,321000              Social Community Care Supplies & Services - Adult,R,2022,12
529,Community and Housing,REDACTED PERSONAL DATA,940486,06-Mar-23,780.68,0,110403,MH Housing Support Placements,321000              Social Community Care Supplies & Services - Adult,R,2022,12
530,Community and Housing,REDACTED PERSONAL DATA,940487,06-Mar-23,789.04,0,110403,MH Housing Support Placements,321000              Social Community Care Supplies & Services - Adult,R,2022,12
531,Community and Housing,REDACTED PERSONAL DATA,940492,06-Mar-23,1586.16,0,110403,Mental Health Placements,321000              Social Community Care Supplies & Services - Adult,R,2022,12
532,Community and Housing,REDACTED PERSONAL DATA,940498,06-Mar-23,780.68,0,110403,MH Housing Support Placements,321000              Social Community Care Supplies & Services - Adult,R,2022,12
533,Community and Housing,REDACTED PERSONAL DATA,940509,06-Mar-23,780.68,0,110403,MH Housing Support Placements,321000              Social Community Care Supplies & Services - Adult,R,2022,12
534,Community and Housing,REDACTED PERSONAL DATA,940510,06-Mar-23,780.68,0,110403,Mental Health Placements,321000              Social Community Care Supplies & Services - Adult,R,2022,12
535,Community and Housing,REDACTED PERSONAL DATA,940512,06-Mar-23,520.48,0,110403,MH Housing Support Placements,321000              Social Community Care Supplies & Services - Adult,R,2022,12
536,Community and Housing,REDACTED PERSONAL DATA,953370,31-Mar-23,789.04,0,110403,MH Housing Support Placements,321000              Social Community Care Supplies & Services - Adult,R,2022,12
537,Community and Housing,REDACTED PERSONAL DATA,953373,31-Mar-23,1052.04,0,110403,Learning Disabilities Placemnt,321000              Social Community Care Supplies & Services - Adult,R,2022,12
538,Community and Housing,REDACTED PERSONAL DATA,953375,31-Mar-23,780.68,0,110403,MH Housing Support Placements,321000              Social Community Care Supplies & Services - Adult,R,2022,12
539,Community and Housing,REDACTED PERSONAL DATA,953389,31-Mar-23,780.68,0,110403,MH Housing Support Placements,321000              Social Community Care Supplies & Services - Adult,R,2022,12
540,Community and Housing,REDACTED PERSONAL DATA,953390,31-Mar-23,789.04,0,110403,MH Housing Support Placements,321000              Social Community Care Supplies & Services - Adult,R,2022,12
541,Community and Housing,REDACTED PERSONAL DATA,953394,31-Mar-23,1052.08,0,110403,Phys/Sens Placements - East,321000              Social Community Care Supplies & Services - Adult,R,2022,12
542,Community and Housing,REDACTED PERSONAL DATA,953397,31-Mar-23,1753.44,0,110403,Mental Health Placements,321000              Social Community Care Supplies & Services - Adult,R,2022,12
543,Community and Housing,REDACTED PERSONAL DATA,953405,31-Mar-23,780.68,0,110403,MH Housing Support Placements,321000              Social Community Care Supplies & Services - Adult,R,2022,12
544,Community and Housing,REDACTED PERSONAL DATA,953417,31-Mar-23,780.68,0,110403,MH Housing Support Placements,321000              Social Community Care Supplies & Services - Adult,R,2022,12
545,Community and Housing,REDACTED PERSONAL DATA,953418,31-Mar-23,947.96,0,110403,Mental Health Placements,321000              Social Community Care Supplies & Services - Adult,R,2022,12
546,Community and Housing,REDACTED PERSONAL DATA,953420,31-Mar-23,520.48,0,110403,MH Housing Support Placements,321000              Social Community Care Supplies & Services - Adult,R,2022,12
547,Community and Housing,REDACTED PERSONAL DATA,940480,06-Mar-23,780.68,0,110406,LD Housing Support Placements,321000              Social Community Care Supplies & Services - Adult,R,2022,12
548,Community and Housing,REDACTED PERSONAL DATA,953381,31-Mar-23,780.68,0,110406,LD Housing Support Placements,321000              Social Community Care Supplies & Services - Adult,R,2022,12
549,Environment and Regeneration,ANDREW SCOTT ROBERTSON,15326VC,06-Mar-23,3638.4,606.4,111834,Property Mgt & Review,150000              Consultancy,A,2022,12
550,Community and Housing,CHARTERED INST.OF ENVIR.HEALTH,PS017958,06-Mar-23,920,0,112693,Hsg. Env. Health (Enforcement),200000              Financial Services,A,2022,12
551,Environment and Regeneration,CHARTERED INST.OF ENVIR.HEALTH,PS018957,29-Mar-23,960,160,112693, EH Commercial Food - RSP,200000              Financial Services,A,2022,12
552,Community and Housing,MEADBANK NURSING CENTRE,940545,06-Mar-23,1753.84,0,113139,Older People Placements - East,321017              Nursing & Residential Care Homes,A,2022,12
553,Community and Housing,MEADBANK NURSING CENTRE,944352,13-Mar-23,3507.69,0,113139,Older People Placements - East,321017              Nursing & Residential Care Homes,A,2022,12
554,Community and Housing,MEADBANK NURSING CENTRE,944353,13-Mar-23,605.56,0,113139,Older People Placements - East,321017              Nursing & Residential Care Homes,A,2022,12
555,Community and Housing,MEADBANK NURSING CENTRE,944378,15-Mar-23,1052.31,0,113139,Older People Placements - East,321017              Nursing & Residential Care Homes,A,2022,12
556,Community and Housing,MEADBANK NURSING CENTRE,944453,15-Mar-23,1090,0,113139,Older People Placements - East,321017              Nursing & Residential Care Homes,A,2022,12
557,Community and Housing,MEADBANK NURSING CENTRE,944783,15-Mar-23,2995.28,0,113139,Older People Placements - East,321017              Nursing & Residential Care Homes,A,2022,12
558,Community and Housing,MEADBANK NURSING CENTRE,950138,24-Mar-23,2301.12,0,113139,Older People Placements - East,321017              Nursing & Residential Care Homes,A,2022,12
559,Community and Housing,MEADBANK NURSING CENTRE,950142,24-Mar-23,2221.53,0,113139,Older People Placements - East,321017              Nursing & Residential Care Homes,A,2022,12
560,Community and Housing,REDACTED PERSONAL DATA,951282,29-Mar-23,28500.88,0,113331,Learning Disabilities Placemnt,DIRECT PAYMENTS,R,2022,12
561,"Children, Schools and Family",JIGSAW4U,2964,13-Mar-23,18750,0,113501, Centralised Commiss Services,321100              Social Community Care Supplies & Services - Children,A,2022,12
562,"Children, Schools and Family",JIGSAW4U,3019,16-Mar-23,14000,0,113501,Insight,321100              Social Community Care Supplies & Services - Children,A,2022,12
563,"Children, Schools and Family",Dicky Birds Pre Sch. Nurseries Dundonald,P1 23 UPFRONTPAY,30-Mar-23,21256.99,0,114041,EARLY YEARS NURSERY GRANTS,170000              Education,A,2022,12
564,Corporate Services,POST OFFICE LTD,1000/90062665,15-Mar-23,13164.2,0,114362,Household Support Grant,200000              Financial Services,A,2022,12
565,Community and Housing,MIHOMECARE LIMITED,LIVE1W-269713,15-Mar-23,1113.7,0,114370,Learning Disabilities Placemnt,321000              Social Community Care Supplies & Services - Adult,A,2022,12
566,Community and Housing,MIHOMECARE LIMITED,LIVE1W-269685,03-Mar-23,1113.7,0,114370,Learning Disabilities Placemnt,321000              Social Community Care Supplies & Services - Adult,A,2022,12
567,Community and Housing,MIHOMECARE LIMITED,LIVE1W-269647,03-Mar-23,1113.7,0,114370,Learning Disabilities Placemnt,321000              Social Community Care Supplies & Services - Adult,A,2022,12
568,Community and Housing,MIHOMECARE LIMITED,LIVE1W-269715,15-Mar-23,1113.7,0,114370,Learning Disabilities Placemnt,321000              Social Community Care Supplies & Services - Adult,A,2022,12
569,Community and Housing,MIHOMECARE LIMITED,LIVE1W-269725,24-Mar-23,1113.7,0,114370,Learning Disabilities Placemnt,321000              Social Community Care Supplies & Services - Adult,A,2022,12
570,Community and Housing,REDACTED PERSONAL DATA,940481,06-Mar-23,780.68,0,114970,MH Housing Support Placements,321000              Social Community Care Supplies & Services - Adult,R,2022,12
571,Community and Housing,REDACTED PERSONAL DATA,940483,06-Mar-23,1857.56,0,114970,Mental Health Placements,321000              Social Community Care Supplies & Services - Adult,R,2022,12
572,Community and Housing,REDACTED PERSONAL DATA,940505,06-Mar-23,1052.08,0,114970,MH Housing Support Placements,321000              Social Community Care Supplies & Services - Adult,R,2022,12
573,Community and Housing,REDACTED PERSONAL DATA,940516,06-Mar-23,1586.2,0,114970,Mental Health Placements,321000              Social Community Care Supplies & Services - Adult,R,2022,12
574,Community and Housing,REDACTED PERSONAL DATA,940493,07-Mar-23,1040.92,0,114970,Hospital To Home,321000              Social Community Care Supplies & Services - Adult,R,2022,12
575,Community and Housing,REDACTED PERSONAL DATA,953384,31-Mar-23,780.68,0,114970,MH Housing Support Placements,321000              Social Community Care Supplies & Services - Adult,R,2022,12
576,Community and Housing,REDACTED PERSONAL DATA,953385,31-Mar-23,2908.64,0,114970,Mental Health Placements,321000              Social Community Care Supplies & Services - Adult,R,2022,12
577,Community and Housing,REDACTED PERSONAL DATA,953398,31-Mar-23,826.63,0,114970,Mental Health Placements,321000              Social Community Care Supplies & Services - Adult,R,2022,12
578,Community and Housing,REDACTED PERSONAL DATA,953400,31-Mar-23,613.39,0,114970,Mental Health Placements,321000              Social Community Care Supplies & Services - Adult,R,2022,12
579,Community and Housing,REDACTED PERSONAL DATA,953410,31-Mar-23,1052.08,0,114970,MH Housing Support Placements,321000              Social Community Care Supplies & Services - Adult,R,2022,12
580,Community and Housing,REDACTED PERSONAL DATA,953424,31-Mar-23,2375.24,0,114970,Mental Health Placements,321000              Social Community Care Supplies & Services - Adult,R,2022,12
581,Community and Housing,REDACTED PERSONAL DATA,953433,31-Mar-23,817.87,0,114970,Older People Placements - East,321000              Social Community Care Supplies & Services - Adult,R,2022,12
582,Community and Housing,ASTRA HOMES,GB/33/23,16-Mar-23,1978.12,0,114991,Mental Health Placements,321000              Social Community Care Supplies & Services - Adult,A,2022,12
583,Community and Housing,ASTRA HOMES,AK/33/23,16-Mar-23,2034.24,0,114991,Mental Health Placements,321000              Social Community Care Supplies & Services - Adult,A,2022,12
584,Community and Housing,ASTRA HOMES,MJ/33/23,16-Mar-23,1816.76,0,114991,Mental Health Placements,321000              Social Community Care Supplies & Services - Adult,A,2022,12
585,Community and Housing,ASTRA HOMES,EC/33/23,16-Mar-23,2071.68,0,114991,Mental Health Placements,321000              Social Community Care Supplies & Services - Adult,A,2022,12
586,"Children, Schools and Family",The Eveline Day Nursery Grand Drive,P3 23 SENDIF,07-Mar-23,1890,0,116784,EARLY YEARS NURSERY GRANTS,170000              Education,A,2022,12
587,"Children, Schools and Family",The Eveline Day Nursery Grand Drive,P1 23 UPFRONTPAY,30-Mar-23,45568.8,0,116784,EARLY YEARS NURSERY GRANTS,170000              Education,A,2022,12
588,Community and Housing,GRANGE COTTAGE LIMITED,944441,15-Mar-23,2680,0,117931,Older People Placements - East,321017              Nursing & Residential Care Homes,A,2022,12
589,Community and Housing,GRANGE COTTAGE LIMITED,944495,15-Mar-23,2680,0,117931,Older People Placements - East,321017              Nursing & Residential Care Homes,A,2022,12
590,Community and Housing,GRANGE COTTAGE LIMITED,944499,15-Mar-23,3200,0,117931,Older People Placements - East,321017              Nursing & Residential Care Homes,A,2022,12
591,Community and Housing,GRANGE COTTAGE LIMITED,944611,15-Mar-23,3600,0,117931,Older People Placements - East,321017              Nursing & Residential Care Homes,A,2022,12
592,Community and Housing,GRANGE COTTAGE LIMITED,944705,15-Mar-23,2680,0,117931,Older People Placements - East,321017              Nursing & Residential Care Homes,A,2022,12
593,Community and Housing,REDACTED PERSONAL DATA,940478,06-Mar-23,789.04,0,117970,MH Housing Support Placements,321000              Social Community Care Supplies & Services - Adult,R,2022,12
594,Community and Housing,REDACTED PERSONAL DATA,940488,06-Mar-23,1052.08,0,117970,Mental Health Placements,321000              Social Community Care Supplies & Services - Adult,R,2022,12
595,Community and Housing,REDACTED PERSONAL DATA,940501,06-Mar-23,1052.08,0,117970,Mental Health Placements,321000              Social Community Care Supplies & Services - Adult,R,2022,12
596,Community and Housing,REDACTED PERSONAL DATA,953379,31-Mar-23,789.04,0,117970,MH Housing Support Placements,321000              Social Community Care Supplies & Services - Adult,R,2022,12
597,Community and Housing,REDACTED PERSONAL DATA,953391,31-Mar-23,1052.08,0,117970,Mental Health Placements,321000              Social Community Care Supplies & Services - Adult,R,2022,12
598,Community and Housing,REDACTED PERSONAL DATA,953407,31-Mar-23,1351.53,0,117970,Mental Health Placements,321000              Social Community Care Supplies & Services - Adult,R,2022,12
599,Community and Housing,L'ARCHE,944736,15-Mar-23,3094.6,0,118483,Learning Disabilities Placemnt,321017              Nursing & Residential Care Homes,A,2022,12
600,Community and Housing,Alexander House c/o Keychange Charity,944457,15-Mar-23,3100,0,119109,Older People Placements - East,321017              Nursing & Residential Care Homes,A,2022,12
601,Community and Housing,Alexander House c/o Keychange Charity,944529,15-Mar-23,3220.32,0,119109,Older People Placements - East,321017              Nursing & Residential Care Homes,A,2022,12
602,Community and Housing,Alexander House c/o Keychange Charity,944745,15-Mar-23,4000,0,119109,Older People Placements - East,321017              Nursing & Residential Care Homes,A,2022,12
603,Community and Housing,Alexander House c/o Keychange Charity,944795,15-Mar-23,3840,0,119109,Older People Placements - East,321017              Nursing & Residential Care Homes,A,2022,12
604,"Children, Schools and Family",REDACTED PERSONAL DATA,P1 23 UPFRONTPAY,30-Mar-23,851.04,0,119701,EARLY YEARS NURSERY GRANTS,200000              Financial Services,R,2022,12
605,"Children, Schools and Family",PLAYDAYS DAY NURSERY,P1 23 UPFRONTPAY,30-Mar-23,17586.72,0,121668,EARLY YEARS NURSERY GRANTS,170000              Education,A,2022,12
606,"Children, Schools and Family",EDWARD THOMAS & SON,23518S,22-Mar-23,595,0,121921, Youth Service,360000              Passenger Transport,A,2022,12
607,"Children, Schools and Family",REDACTED PERSONAL DATA,P1 23 UPFRONTPAY,30-Mar-23,6071.04,0,122848,EARLY YEARS NURSERY GRANTS,200000              Financial Services,R,2022,12
608,Environment and Regeneration,KINGDOM SECURITY LTD,SER-000407771NV,22-Mar-23,10570.81,1761.84,123458,Vestry Hall,260000              Human Resources,A,2022,12
609,Environment and Regeneration,KINGDOM SECURITY LTD,SER-00038513INV,15-Mar-23,11203.87,1867.31,123458,Vestry Hall,260000              Human Resources,A,2022,12
610,Community and Housing,REDACTED PERSONAL DATA,951206,29-Mar-23,1412.4,0,124097,Older People Placements - East,DIRECT PAYMENTS,R,2022,12
611,Community and Housing,UNITED RESPONSE,944417,15-Mar-23,7605.02,1267.5,125227,Learning Disabilities Placemnt,321000              Social Community Care Supplies & Services - Adult,A,2022,12
612,Community and Housing,UNITED RESPONSE,944448,15-Mar-23,7605.02,1267.5,125227,Learning Disabilities Placemnt,321000              Social Community Care Supplies & Services - Adult,A,2022,12
613,Community and Housing,UNITED RESPONSE,944466,15-Mar-23,7605.02,1267.5,125227,Learning Disabilities Placemnt,321000              Social Community Care Supplies & Services - Adult,A,2022,12
614,Community and Housing,UNITED RESPONSE,944519,15-Mar-23,7605.02,1267.5,125227,Learning Disabilities Placemnt,321000              Social Community Care Supplies & Services - Adult,A,2022,12
615,Community and Housing,UNITED RESPONSE,944560,15-Mar-23,7605.02,1267.5,125227,Learning Disabilities Placemnt,321000              Social Community Care Supplies & Services - Adult,A,2022,12
616,Community and Housing,UNITED RESPONSE,944683,15-Mar-23,7605.02,1267.5,125227,Learning Disabilities Placemnt,321000              Social Community Care Supplies & Services - Adult,A,2022,12
617,Community and Housing,REDACTED PERSONAL DATA,951248,29-Mar-23,1336.44,0,125642,Phys/Sens Placements - East,DIRECT PAYMENTS,R,2022,12
618,Community and Housing,REDACTED PERSONAL DATA,951412,29-Mar-23,4900.28,0,126189,Older People Placements - East,DIRECT PAYMENTS,R,2022,12
619,Community and Housing,KELSTONE COURT NURSING HOME,944367,13-Mar-23,1251.43,0,126473,Older People Placements - East,321017              Nursing & Residential Care Homes,A,2022,12
620,Community and Housing,REDACTED PERSONAL DATA,951149,29-Mar-23,668.24,0,127266,Phys/Sens Placements - East,DIRECT PAYMENTS,R,2022,12
621,Community and Housing,CHEQUERS ELECT'L AND BUILD'N SER,3598,31-Mar-23,720.96,120.16,128187,Occupational Therapy,"390000              Works - Construction, Repair & Maintenance",A,2022,12
622,Environment and Regeneration,TRL LIMITED,11617521,20-Mar-23,4345.04,724.17,128700,Wandsworth Air Quality,180000              Environmental Services,A,2022,12
623,Environment and Regeneration,TRL LIMITED,11617520,20-Mar-23,1285.2,214.2,128700,LBR - Pollution,180000              Environmental Services,A,2022,12
624,Environment and Regeneration,TRL LIMITED,11617519,20-Mar-23,630.28,105.05,128700,Environmental Health-Pollution,180000              Environmental Services,A,2022,12
625,Corporate Services,REDACTED PERSONAL DATA,24,31-Mar-23,2175.22,0,128736,SLLP - Disbursements,321100              Social Community Care Supplies & Services - Children,R,2022,12
626,Community and Housing,BUPA CARE HOMES,944416,15-Mar-23,6133.76,0,130491,Phys/Sens Placements - East,321017              Nursing & Residential Care Homes,A,2022,12
627,Community and Housing,BUPA CARE HOMES,944521,15-Mar-23,6050.76,0,130491,Phys/Sens Placements - East,321017              Nursing & Residential Care Homes,A,2022,12
628,"Children, Schools and Family",OAKTREE PRE-SCHOOL NURSERY,P1 23 UPFRONTPAY,30-Mar-23,13763.52,0,131726,EARLY YEARS NURSERY GRANTS,170000              Education,A,2022,12
629,Corporate Services,DOMINO 4 LIMITED,D.44268,20-Mar-23,3375,562.5,132991,Cost of Living Fund,190000              Facilities & Management Services                                                          Confirmed,A,2022,12
630,Corporate Services,DOMINO 4 LIMITED,D.44263,23-Mar-23,1462.5,243.75,132991,Cost of Living Fund,190000              Facilities & Management Services                                                          Confirmed,A,2022,12
631,Community and Housing,DOMINO 4 LIMITED,D.44266,16-Mar-23,624,104,132991,PH - Prevention Resources,190000              Facilities & Management Services                                                          Confirmed,A,2022,12
632,Corporate Services,DOMINO 4 LIMITED,D.44270,28-Mar-23,1016.4,169.4,132991,Marketing & Communication,190000              Facilities & Management Services                                                          Confirmed,A,2022,12
633,Environment and Regeneration,DOMINO 4 LIMITED,D.44269,04-Apr-23,3168,528,132991,Pks Rec Grds (Unloc),190000              Facilities & Management Services                                                          Confirmed,A,2022,12
634,Corporate Services,NU NETWORK PRODUCTS LTD,NUNP/33054Q,20-Mar-23,5692.8,948.8,133164,IT Service Delivery,270000              Information Communication Technology,A,2022,12
635,Community and Housing,VOYAGE CARE LTD,944487,15-Mar-23,6505.28,0,133700,Learning Disabilities Placemnt,321017              Nursing & Residential Care Homes,A,2022,12
636,Community and Housing,VOYAGE CARE LTD,944596,15-Mar-23,7721.6,0,133700,Learning Disabilities Placemnt,321017              Nursing & Residential Care Homes,A,2022,12
637,Community and Housing,VOYAGE CARE LTD,944681,15-Mar-23,7799.4,0,133700,Learning Disabilities Placemnt,321017              Nursing & Residential Care Homes,A,2022,12
638,Community and Housing,HOMECARE SERVICES LTD,28708,22-Mar-23,4454.8,0,134594,Phys/Sens Placements - East,321100              Social Community Care Supplies & Services - Children,A,2022,12
639,Community and Housing,HOMECARE SERVICES LTD,28787,22-Mar-23,4454.8,0,134594,Phys/Sens Placements - East,321100              Social Community Care Supplies & Services - Children,A,2022,12
640,Community and Housing,Sunrise Rehabilitation Centre,944406,15-Mar-23,5213.88,0,135093,Learning Disabilities Placemnt,321017              Nursing & Residential Care Homes,A,2022,12
641,Community and Housing,Sunrise Rehabilitation Centre,944430,15-Mar-23,5213.88,0,135093,Learning Disabilities Placemnt,321017              Nursing & Residential Care Homes,A,2022,12
642,Community and Housing,Sunrise Rehabilitation Centre,944592,15-Mar-23,5161.52,0,135093,Learning Disabilities Placemnt,321017              Nursing & Residential Care Homes,A,2022,12
643,Community and Housing,Sunrise Rehabilitation Centre,944721,15-Mar-23,5043.72,0,135093,Learning Disabilities Placemnt,321017              Nursing & Residential Care Homes,A,2022,12
644,Community and Housing,Sunrise Rehabilitation Centre,944725,15-Mar-23,5174.6,0,135093,Learning Disabilities Placemnt,321017              Nursing & Residential Care Homes,A,2022,12
645,Community and Housing,Sunrise Rehabilitation Centre,944742,15-Mar-23,5213.88,0,135093,Learning Disabilities Placemnt,321017              Nursing & Residential Care Homes,A,2022,12
646,Community and Housing,Sunrise Rehabilitation Centre,944792,15-Mar-23,6102,0,135093,Learning Disabilities Placemnt,321017              Nursing & Residential Care Homes,A,2022,12
647,Community and Housing,Sunrise Rehabilitation Centre,944811,15-Mar-23,4363.08,0,135093,Learning Disabilities Placemnt,321017              Nursing & Residential Care Homes,A,2022,12
648,"Children, Schools and Family",SW LONDON ST GEORGES NHS TRUST,P0070826,29-Mar-23,27853,0,135195,Head - Family Support & Safegd,310000              Healthcare,A,2022,12
649,"Children, Schools and Family",MERTON VISION,INV1944,20-Mar-23,8276.29,0,135428,Sensory Team,260000              Human Resources,A,2022,12
650,Unassigned,DAC BEACHCROFT LLP,03-10195180,02-Mar-23,1636,0,135458,Corporate Accountancy,200000              Financial Services,A,2022,12
651,Community and Housing,REDACTED PERSONAL DATA,951277,29-Mar-23,1420,0,135784,Phys/Sens Placements - East,DIRECT PAYMENTS,R,2022,12
652,Community and Housing,VITALISE,944755,15-Mar-23,1839,0,135823,Learning Disabilities Placemnt,321017              Nursing & Residential Care Homes,A,2022,12
653,Community and Housing,CROYDON HEALTH SERV. NHS TRUST,76683665,04-Apr-23,11208.58,0,136074,PH - Sexual Health,310000              Healthcare,A,2022,12
654,Unassigned,ZURICH INSURANCE GROUP,QLA-01E223 FEB23,01-Mar-23,100000,0,137315,Corporate Services,200000              Financial Services,A,2022,12
655,Unassigned,LB Wandsworth Pension Fund Account,CETV04,29-Mar-23,8957.23,0,137418,London Borough of Merton,PENSIONS,A,2022,12
656,Community and Housing,REDACTED PERSONAL DATA,951525,29-Mar-23,1463.72,0,137843,Phys/Sens Placements - East,DIRECT PAYMENTS,R,2022,12
657,Community and Housing,REDACTED PERSONAL DATA,947390,22-Mar-23,545.76,0,139365,Older People Placements - East,DIRECT PAYMENTS,R,2022,12
658,Community and Housing,REDACTED PERSONAL DATA,951170,29-Mar-23,1078,0,139365,Phys/Sens Placements - East,DIRECT PAYMENTS,R,2022,12
659,"Children, Schools and Family",Building Blocks Childcare,P1 23 UPFRONTPAY,30-Mar-23,16057.44,0,139778,EARLY YEARS NURSERY GRANTS,170000              Education,A,2022,12
660,Community and Housing,REDACTED PERSONAL DATA,951567,29-Mar-23,509.12,0,140662,Phys/Sens Placements - East,DIRECT PAYMENTS,R,2022,12
661,Community and Housing,REDACTED PERSONAL DATA,951186,29-Mar-23,27809.1,0,140759,Phys/Sens Placements - East,DIRECT PAYMENTS,R,2022,12
662,Community and Housing,SURREY AND BORDERS PARTNERSHIP,944550,15-Mar-23,11448.72,0,140911,Learning Disabilities Placemnt,321017              Nursing & Residential Care Homes,A,2022,12
663,Community and Housing,GARWOOD FOUNDATION,944437,15-Mar-23,2755.48,0,142358,Phys/Sens Placements - East,321017              Nursing & Residential Care Homes,A,2022,12
664,Community and Housing,GARWOOD FOUNDATION,944538,15-Mar-23,2755.48,0,142358,Older People Placements - East,321017              Nursing & Residential Care Homes,A,2022,12
665,"Children, Schools and Family",CHUBB FIRE AND SECURITY LTD,9694738,27-Mar-23,702.47,117.07,142411, Children's Centres Support,"390000              Works - Construction, Repair & Maintenance",A,2022,12
666,Community and Housing,CONSENSUS - GRETTON HOMES,944763,15-Mar-23,8431.48,0,142442,Learning Disabilities Placemnt,321017              Nursing & Residential Care Homes,A,2022,12
667,Community and Housing,EVERGREEN PARTNERSHIP,944482,15-Mar-23,9675,0,142455,Learning Disabilities Placemnt,321017              Nursing & Residential Care Homes,A,2022,12
668,Community and Housing,EVERGREEN PARTNERSHIP,944501,15-Mar-23,6629.16,0,142455,Learning Disabilities Placemnt,321017              Nursing & Residential Care Homes,A,2022,12
669,Community and Housing,REDACTED PERSONAL DATA,940489,06-Mar-23,1052.08,0,143597,MH Housing Support Placements,321000              Social Community Care Supplies & Services - Adult,R,2022,12
670,Community and Housing,REDACTED PERSONAL DATA,940499,06-Mar-23,1315.04,0,143597,LD Housing Support Placements,321000              Social Community Care Supplies & Services - Adult,R,2022,12
671,Community and Housing,REDACTED PERSONAL DATA,940518,06-Mar-23,1462.32,0,143597,Learning Disabilities Placemnt,321000              Social Community Care Supplies & Services - Adult,R,2022,12
672,Community and Housing,REDACTED PERSONAL DATA,953392,31-Mar-23,1052.08,0,143597,MH Housing Support Placements,321000              Social Community Care Supplies & Services - Adult,R,2022,12
673,Community and Housing,REDACTED PERSONAL DATA,953404,31-Mar-23,1315.04,0,143597,LD Housing Support Placements,321000              Social Community Care Supplies & Services - Adult,R,2022,12
674,Community and Housing,REDACTED PERSONAL DATA,953428,31-Mar-23,1462.32,0,143597,Learning Disabilities Placemnt,321000              Social Community Care Supplies & Services - Adult,R,2022,12
675,Corporate Services,REDACTED PERSONAL DATA,JR185,03-Mar-23,654,0,143840,Translation Service,TRANSLATIONS,R,2022,12
676,Community and Housing,REDACTED PERSONAL DATA,951497,29-Mar-23,3731.72,0,144689,Learning Disabilities Placemnt,DIRECT PAYMENTS,R,2022,12
677,"Children, Schools and Family",DF20 LTD,4440-600,28-Mar-23,10627.2,1771.2,144747,School Meals,110000              Catering,A,2022,12
678,Community and Housing,CRAEGMOOR FACILITIES - WINDSOR,944532,15-Mar-23,6834.88,0,145152,Learning Disabilities Placemnt,321017              Nursing & Residential Care Homes,A,2022,12
679,"Children, Schools and Family",DATE VALLEY SCHOOL,P3 23 SENDIF,07-Mar-23,1890,0,145171,EARLY YEARS NURSERY GRANTS,170000              Education,A,2022,12
680,Community and Housing,REDACTED PERSONAL DATA,951279,29-Mar-23,4454.8,0,145882,Learning Disabilities Placemnt,DIRECT PAYMENTS,R,2022,12
681,"Children, Schools and Family",REDACTED PERSONAL DATA,P1 23 UPFRONTPAY,30-Mar-23,1702.08,0,146388,EARLY YEARS NURSERY GRANTS,200000              Financial Services,R,2022,12
682,"Children, Schools and Family",ACORN NURSERY,P3 23 LATE START,27-Mar-23,999.9,0,147406,EARLY YEARS NURSERY GRANTS,200000              Financial Services,A,2022,12
683,"Children, Schools and Family",ACORN NURSERY,P1 23 UPFRONTPAY,30-Mar-23,8647.2,0,147406,EARLY YEARS NURSERY GRANTS,200000              Financial Services,A,2022,12
684,"Children, Schools and Family",SPEECH CENTRE,110704,09-Mar-23,5335.38,889.23,147920,Children in Care Team 2,270000              Information Communication Technology,A,2022,12
685,"Children, Schools and Family",SPEECH CENTRE,110731,24-Mar-23,4309.02,718.17,147920,Family Supp SafeGuard - Team,270000              Information Communication Technology,A,2022,12
686,Corporate Services,SPEECH CENTRE,110678,27-Mar-23,1505.39,250.9,147920,Legal Shared Service,270000              Information Communication Technology,A,2022,12
687,Community and Housing,GENERATE,9627,16-Mar-23,2513.2,0,148332,Learning Disabilities Placemnt,321000              Social Community Care Supplies & Services - Adult,A,2022,12
688,Community and Housing,GENERATE,9969,16-Mar-23,3234.2,0,148332,Learning Disabilities Placemnt,321000              Social Community Care Supplies & Services - Adult,A,2022,12
689,Community and Housing,GENERATE,10471,31-Mar-23,659.2,0,148332,Learning Disabilities Placemnt,321000              Social Community Care Supplies & Services - Adult,A,2022,12
690,Community and Housing,GENERATE,10469,31-Mar-23,727.2,0,148332,Learning Disabilities Placemnt,321000              Social Community Care Supplies & Services - Adult,A,2022,12
691,Community and Housing,CHICHESTER HALL CARE HOME LTD,922041,31-Mar-23,2637.2,0,148358,Older People Placements - East,321017              Nursing & Residential Care Homes,A,2022,12
692,Community and Housing,CHICHESTER HALL CARE HOME LTD,934061,31-Mar-23,2637.2,0,148358,Older People Placements - East,321017              Nursing & Residential Care Homes,A,2022,12
693,Community and Housing,CHICHESTER HALL CARE HOME LTD,944753,31-Mar-23,2637.2,0,148358,Older People Placements - East,321017              Nursing & Residential Care Homes,A,2022,12
694,"Children, Schools and Family",MARIA MONTESSORI CHILDREN'S,P1 23 UPFRONTPAY,30-Mar-23,21913.44,0,148568,EARLY YEARS NURSERY GRANTS,200000              Financial Services,A,2022,12
695,"Children, Schools and Family",REDACTED PERSONAL DATA,P1 23 UPFRONTPAY,30-Mar-23,4255.2,0,149524,EARLY YEARS NURSERY GRANTS,321100              Social Community Care Supplies & Services - Children                                      Confirmed,R,2022,12
696,"Children, Schools and Family",DONHEAD SCHOOL,P1 23 UPFRONTPAY,30-Mar-23,8411.04,0,149760,EARLY YEARS NURSERY GRANTS,170000              Education,A,2022,12
697,Unassigned,Canterbury Campus,SCHOOLS 2223/12,07-Mar-23,134909.99,0,150054,Schools,170000              Education,A,2022,12
698,Unassigned,Canterbury Campus,SCHOOLS 2223/13,27-Mar-23,319802.11,0,150054,Schools,170000              Education,A,2022,12
699,Community and Housing,REDACTED PERSONAL DATA,951207,29-Mar-23,2544.32,0,151002,Older People Placements - East,DIRECT PAYMENTS,R,2022,12
700,Community and Housing,AIMS CARE PARTNERSHIP,944485,15-Mar-23,10560,0,151592,Learning Disabilities Placemnt,321017              Nursing & Residential Care Homes,A,2022,12
701,Community and Housing,AIMS CARE PARTNERSHIP,944523,15-Mar-23,3114.72,0,151592,Learning Disabilities Placemnt,321017              Nursing & Residential Care Homes,A,2022,12
702,Community and Housing,REDACTED PERSONAL DATA,951400,29-Mar-23,2333.6,0,151790,Older People Placements - East,DIRECT PAYMENTS,R,2022,12
703,Community and Housing,HOLISTIC COMMUNITY CARE - FC,3420,09-Mar-23,5080,0,151996,Older People Placements - East,321000              Social Community Care Supplies & Services - Adult,A,2022,12
704,Community and Housing,HOLISTIC COMMUNITY CARE - FC,3421,09-Mar-23,4454.8,0,151996,Learning Disabilities Placemnt,321000              Social Community Care Supplies & Services - Adult,A,2022,12
705,Community and Housing,HOLISTIC COMMUNITY CARE - FC,M222312/12,14-Mar-23,654.95,0,151996,Older People Placements - East,321000              Social Community Care Supplies & Services - Adult,A,2022,12
706,Community and Housing,HOLISTIC COMMUNITY CARE - FC,M222312/5,14-Mar-23,890.46,0,151996,Older People Placements - East,321000              Social Community Care Supplies & Services - Adult,A,2022,12
707,Community and Housing,HOLISTIC COMMUNITY CARE - FC,M222312/4,14-Mar-23,2517.02,0,151996,Older People Placements - East,321000              Social Community Care Supplies & Services - Adult,A,2022,12
708,Community and Housing,HOLISTIC COMMUNITY CARE - FC,M222312/10,14-Mar-23,773.89,0,151996,Phys/Sens Placements - East,321000              Social Community Care Supplies & Services - Adult,A,2022,12
709,Community and Housing,HOLISTIC COMMUNITY CARE - FC,M222312/1,14-Mar-23,3035.37,0,151996,Older People Placements - East,321000              Social Community Care Supplies & Services - Adult,A,2022,12
710,Community and Housing,HOLISTIC COMMUNITY CARE - FC,M222312/18,14-Mar-23,1201.12,0,151996,Older People Placements - East,321000              Social Community Care Supplies & Services - Adult,A,2022,12
711,Community and Housing,HOLISTIC COMMUNITY CARE - FC,M222312/3,14-Mar-23,2035.4,0,151996,Older People Placements - East,321000              Social Community Care Supplies & Services - Adult,A,2022,12
712,Community and Housing,HOLISTIC COMMUNITY CARE - FC,M222312/11,14-Mar-23,721.33,0,151996,Older People Placements - East,321000              Social Community Care Supplies & Services - Adult,A,2022,12
713,Community and Housing,HOLISTIC COMMUNITY CARE - FC,M222312/15,14-Mar-23,825.57,0,151996,Older People Placements - East,321000              Social Community Care Supplies & Services - Adult,A,2022,12
714,Community and Housing,HOLISTIC COMMUNITY CARE - FC,M222312/16,14-Mar-23,1360.01,0,151996,Older People Placements - East,321000              Social Community Care Supplies & Services - Adult,A,2022,12
715,Community and Housing,HOLISTIC COMMUNITY CARE - FC,M222312/13,14-Mar-23,782.98,0,151996,Older People Placements - East,321000              Social Community Care Supplies & Services - Adult,A,2022,12
716,Community and Housing,HOLISTIC COMMUNITY CARE - FC,M222312/22,14-Mar-23,765.04,0,151996,Older People Placements - East,321000              Social Community Care Supplies & Services - Adult,A,2022,12
717,Community and Housing,HOLISTIC COMMUNITY CARE - FC,M222312/27,14-Mar-23,982.69,0,151996,Older People Placements - East,321000              Social Community Care Supplies & Services - Adult,A,2022,12
718,Community and Housing,HOLISTIC COMMUNITY CARE - FC,M222312/7,14-Mar-23,1695.06,0,151996,Older People Placements - East,321000              Social Community Care Supplies & Services - Adult,A,2022,12
719,Community and Housing,HOLISTIC COMMUNITY CARE - FC,M222313/13,31-Mar-23,629.72,0,151996,Older People Placements - East,321000              Social Community Care Supplies & Services - Adult,A,2022,12
720,Community and Housing,HOLISTIC COMMUNITY CARE - FC,M222313/5,31-Mar-23,943.51,0,151996,Older People Placements - East,321000              Social Community Care Supplies & Services - Adult,A,2022,12
721,Community and Housing,HOLISTIC COMMUNITY CARE - FC,M222313/9,31-Mar-23,761.52,0,151996,Phys/Sens Placements - East,321000              Social Community Care Supplies & Services - Adult,A,2022,12
722,Community and Housing,HOLISTIC COMMUNITY CARE - FC,M222313/8,31-Mar-23,561.85,0,151996,Older People Placements - East,321000              Social Community Care Supplies & Services - Adult,A,2022,12
723,Community and Housing,HOLISTIC COMMUNITY CARE - FC,M222313/2,31-Mar-23,642.35,0,151996,Older People Placements - East,321000              Social Community Care Supplies & Services - Adult,A,2022,12
724,Community and Housing,HOLISTIC COMMUNITY CARE - FC,M222313/1,31-Mar-23,3006.97,0,151996,Older People Placements - East,321000              Social Community Care Supplies & Services - Adult,A,2022,12
725,Community and Housing,HOLISTIC COMMUNITY CARE - FC,M222313/18,31-Mar-23,938.41,0,151996,Older People Placements - East,321000              Social Community Care Supplies & Services - Adult,A,2022,12
726,Community and Housing,HOLISTIC COMMUNITY CARE - FC,M222313/4,31-Mar-23,2144.08,0,151996,Older People Placements - East,321000              Social Community Care Supplies & Services - Adult,A,2022,12
727,Community and Housing,HOLISTIC COMMUNITY CARE - FC,M222313/11,31-Mar-23,701.15,0,151996,Older People Placements - East,321000              Social Community Care Supplies & Services - Adult,A,2022,12
728,Community and Housing,HOLISTIC COMMUNITY CARE - FC,M222313/15,31-Mar-23,816.28,0,151996,Older People Placements - East,321000              Social Community Care Supplies & Services - Adult,A,2022,12
729,Community and Housing,HOLISTIC COMMUNITY CARE - FC,M222313/16,31-Mar-23,1367.57,0,151996,Older People Placements - East,321000              Social Community Care Supplies & Services - Adult,A,2022,12
730,Community and Housing,HOLISTIC COMMUNITY CARE - FC,M222313/22,31-Mar-23,757.24,0,151996,Older People Placements - East,321000              Social Community Care Supplies & Services - Adult,A,2022,12
731,Community and Housing,HOLISTIC COMMUNITY CARE - FC,M222313/7,31-Mar-23,1733.86,0,151996,Older People Placements - East,321000              Social Community Care Supplies & Services - Adult,A,2022,12
732,Community and Housing,HOLISTIC COMMUNITY CARE - FC,M222313/14,31-Mar-23,1169.45,0,151996,Older People Placements - East,321000              Social Community Care Supplies & Services - Adult,A,2022,12
733,Community and Housing,HOLISTIC COMMUNITY CARE - FC,3468,31-Mar-23,5080,0,151996,Older People Placements - East,321000              Social Community Care Supplies & Services - Adult,A,2022,12
734,Community and Housing,HOLISTIC COMMUNITY CARE - FC,3469,31-Mar-23,4454.8,0,151996,Learning Disabilities Placemnt,321000              Social Community Care Supplies & Services - Adult,A,2022,12
735,Community and Housing,REDACTED PERSONAL DATA,951555,29-Mar-23,7435.76,0,152015,Older People Placements - East,321000              Social Community Care Supplies & Services - Adult,R,2022,12
736,Unassigned,WANDSWORTH CORPORATION,2101138711,31-Mar-23,122452.97,20408.83,152180,Administrative Cost,OLA,A,2022,12
737,Community and Housing,REDACTED PERSONAL DATA,951443,29-Mar-23,954.6,0,152709,Older People Placements - East,DIRECT PAYMENTS,R,2022,12
738,Community and Housing,REDACTED PERSONAL DATA,951287,29-Mar-23,1909.2,0,152990,Learning Disabilities Placemnt,DIRECT PAYMENTS,R,2022,12
739,Community and Housing,LYNTON HALL NURSING HOME,944384,17-Mar-23,3102.04,0,153795,Older People Placements - East,321017              Nursing & Residential Care Homes,A,2022,12
740,Community and Housing,LYNTON HALL NURSING HOME,944389,17-Mar-23,2988.48,0,153795,Older People Placements - East,321017              Nursing & Residential Care Homes,A,2022,12
741,Community and Housing,LYNTON HALL NURSING HOME,944558,17-Mar-23,3249.6,0,153795,Older People Placements - East,321017              Nursing & Residential Care Homes,A,2022,12
742,Unassigned,HARRIS ACADEMY MERTON,SCHOOLS 2223/12,07-Mar-23,6585,0,155274,Schools,170000              Education,A,2022,12
743,Unassigned,HARRIS ACADEMY MERTON,SCHOOLS 2223/13,27-Mar-23,36080.89,0,155274,Schools,170000              Education,A,2022,12
744,Unassigned,CFBT SCHOOLS TRUST,SCHOOLS 2223/12,07-Mar-23,3828,0,155275,Schools,170000              Education,A,2022,12
745,Unassigned,CFBT SCHOOLS TRUST,SCHOOLS 2223/13,27-Mar-23,3123.82,0,155275,Schools,170000              Education,A,2022,12
746,Community and Housing,REDACTED PERSONAL DATA,951330,29-Mar-23,1627.78,0,155411,Learning Disabilities Placemnt,DIRECT PAYMENTS,R,2022,12
747,Community and Housing,REDACTED PERSONAL DATA,951496,29-Mar-23,1750.1,0,155411,Learning Disabilities Placemnt,DIRECT PAYMENTS,R,2022,12
748,Community and Housing,REDACTED PERSONAL DATA,951438,29-Mar-23,2625.26,0,156180,Mental Health Placements,DIRECT PAYMENTS,R,2022,12
749,Corporate Services,Institute Of Family Therapy,TR/8534-24,23-Mar-23,12096,0,158488,Learning and Development,260000              Human Resources,A,2022,12
750,Corporate Services,Institute Of Family Therapy,TR/8535-24,23-Mar-23,6272,0,158488,Learning and Development,260000              Human Resources,A,2022,12
751,Community and Housing,IMAGINE INDEPENDENCE,N00000010586,30-Mar-23,10000,0,158720,PH - Elderly Care Pilot,321000              Social Community Care Supplies & Services - Adult,A,2022,12
752,Community and Housing,REDACTED PERSONAL DATA,951263,29-Mar-23,979.36,0,159542,Phys/Sens Placements - East,DIRECT PAYMENTS,R,2022,12
753,Corporate Services,ADVANCED BUSINESS SOLUTIONS,INV-87733,06-Mar-23,197961.03,32993.51,159966,Business Systems,270000              Information Communication Technology,A,2022,12
754,Community and Housing,REDACTED PERSONAL DATA,951502,29-Mar-23,3220,0,160044,Phys/Sens Placements - East,DIRECT PAYMENTS,R,2022,12
755,Community and Housing,METROPOLITAN THAMES VALLEY,3062282-SM,20-Mar-23,2171,0,160080,Learning Disabilities Placemnt,321017              Nursing & Residential Care Homes,A,2022,12
756,Community and Housing,METROPOLITAN THAMES VALLEY,3062282LD,20-Mar-23,2171,0,160080,Learning Disabilities Placemnt,321017              Nursing & Residential Care Homes,A,2022,12
757,Community and Housing,METROPOLITAN THAMES VALLEY,3062282SC,20-Mar-23,2171,0,160080,Learning Disabilities Placemnt,321017              Nursing & Residential Care Homes,A,2022,12
758,Community and Housing,METROPOLITAN THAMES VALLEY,3062282GB,20-Mar-23,2171,0,160080,Learning Disabilities Placemnt,321017              Nursing & Residential Care Homes,A,2022,12
759,"Children, Schools and Family",REDACTED PERSONAL DATA,951096,28-Mar-23,1082.6,0,160147,Child Disabilities - Placement,CSF-DIRECT PAYMENTS,R,2022,12
760,Community and Housing,REDACTED PERSONAL DATA,951311,29-Mar-23,6894.36,0,160244,Phys/Sens Placements - East,DIRECT PAYMENTS,R,2022,12
761,Community and Housing,REDACTED PERSONAL DATA,951247,29-Mar-23,3325.3,0,160273,Learning Disabilities Placemnt,DIRECT PAYMENTS,R,2022,12
762,Community and Housing,REDACTED PERSONAL DATA,951376,29-Mar-23,5472.04,0,160279,Phys/Sens Placements - East,DIRECT PAYMENTS,R,2022,12
763,"Children, Schools and Family",Fleet Educ.Services Ltd T/A Fleet Tutors,21490,13-Mar-23,1446,241,160300,Non-Delegated Statements,260000              Human Resources,A,2022,12
764,"Children, Schools and Family",THE NATIONAL FOSTERING AGENCY,434591,22-Mar-23,5151.44,0,160464,Placements Under 18,321100              Social Community Care Supplies & Services - Children,A,2022,12
765,"Children, Schools and Family",THE NATIONAL FOSTERING AGENCY,434593,22-Mar-23,3249.96,0,160464,Placements Under 18,321100              Social Community Care Supplies & Services - Children,A,2022,12
766,"Children, Schools and Family",THE NATIONAL FOSTERING AGENCY,434592,22-Mar-23,5151.44,0,160464,Placements Under 18,321100              Social Community Care Supplies & Services - Children,A,2022,12
767,Corporate Services,LEXON LTD,137379,22-Mar-23,2359.09,393.18,160704,Printing,190000              Facilities & Management Services,A,2022,12
768,Community and Housing,CITY OF LONDON CORPORATION,4334591,10-Mar-23,34600.02,0,160895,PH - Sexual Health,180000              Environmental Services,A,2022,12
769,Environment and Regeneration,CITY OF LONDON CORPORATION,4334551,20-Mar-23,4387.49,731.25,160895,Licensing Team,180000              Environmental Services,A,2022,12
770,Environment and Regeneration,CITY OF LONDON CORPORATION,4336213,24-Mar-23,1148.88,191.48,160895,Licensing Team,180000              Environmental Services,A,2022,12
771,Environment and Regeneration,CITY OF LONDON CORPORATION,4334271,23-Mar-23,4965.23,827.54,160895,Waste Disposal,180000              Environmental Services,A,2022,12
772,Community and Housing,CITY OF LONDON CORPORATION,4336361,29-Mar-23,8362.79,0,160895,PH - Sexual Health,180000              Environmental Services,A,2022,12
773,Community and Housing,CITY OF LONDON CORPORATION,4335980,30-Mar-23,3250,0,160895,PH - Substance Misuse,180000              Environmental Services,A,2022,12
774,"Children, Schools and Family",REDACTED PERSONAL DATA,939976,03-Mar-23,514.75,0,161094,UASC LAC Under 18,321100              Social Community Care Supplies & Services - Children,R,2022,12
775,"Children, Schools and Family",REDACTED PERSONAL DATA,943478,10-Mar-23,514.75,0,161094,UASC LAC Under 18,321100              Social Community Care Supplies & Services - Children,R,2022,12
776,"Children, Schools and Family",REDACTED PERSONAL DATA,943540,10-Mar-23,1250.11,0,161094,UASC LAC Under 18,321100              Social Community Care Supplies & Services - Children,R,2022,12
777,"Children, Schools and Family",REDACTED PERSONAL DATA,945978,17-Mar-23,514.75,0,161094,UASC LAC Under 18,321100              Social Community Care Supplies & Services - Children,R,2022,12
778,"Children, Schools and Family",REDACTED PERSONAL DATA,946023,17-Mar-23,514.75,0,161094,UASC LAC Under 18,321100              Social Community Care Supplies & Services - Children,R,2022,12
779,"Children, Schools and Family",REDACTED PERSONAL DATA,950173,24-Mar-23,514.75,0,161094,UASC LAC Under 18,321100              Social Community Care Supplies & Services - Children,R,2022,12
780,"Children, Schools and Family",REDACTED PERSONAL DATA,950217,24-Mar-23,514.75,0,161094,UASC LAC Under 18,321100              Social Community Care Supplies & Services - Children,R,2022,12
781,"Children, Schools and Family",REDACTED PERSONAL DATA,953165,31-Mar-23,514.75,0,161094,UASC LAC Under 18,321100              Social Community Care Supplies & Services - Children,R,2022,12
782,"Children, Schools and Family",REDACTED PERSONAL DATA,953208,31-Mar-23,514.75,0,161094,UASC LAC Under 18,321100              Social Community Care Supplies & Services - Children,R,2022,12
783,"Children, Schools and Family",TTS LTD,DE6998237,28-Mar-23,1726.39,248.6,161734,lavender Locality Child Cent,170000              Education,A,2022,12
784,Community and Housing,CENTRAL AND NW LONDON NHS FT,53507847,21-Mar-23,1065.41,0,162075,PH - Sexual Health,310000              Healthcare,A,2022,12
785,Environment and Regeneration,TRIDENT-UK,INV196218,07-Mar-23,1094.35,182.39,162427,Wimbledon Sailing Base,290000              Arts & Leisure Services,A,2022,12
786,Environment and Regeneration,QUARTIX  LTD,704661,27-Mar-23,1053,175.5,162608,Civil Enforcement Officers,270000              Information Communication Technology,A,2022,12
787,Corporate Services,DATA INTERCHANGE PLC,UKSI-104615,23-Mar-23,652.74,108.79,162623,Local Taxation Bailiffs,270000              Information Communication Technology,A,2022,12
788,Corporate Services,WALLINGTON CARS AND COURIERS LTD,297013,20-Mar-23,1720.19,283.7,162637,PrintUnit-HighVolPhtcopying,300000              Mail Services,A,2022,12
789,"Children, Schools and Family",THE NATIONAL AUTISTIC SOCIETY,VNG8387829,24-Mar-23,12527.89,0,162644,Non-Delegated Statements,260000              Human Resources,A,2022,12
790,Corporate Services,HANDD BUSINESS SOLUTIONS LTD,CE1006703,28-Mar-23,7820.16,1303.36,162826,IT Service Delivery,270000              Information Communication Technology,A,2022,12
791,Unassigned,ROYAL BOR'GH KINGSTON U THAMES,38499904 REFUND,23-Mar-23,4000,0,163013,Corporate Accountancy,OLA,A,2022,12
792,Community and Housing,REDACTED PERSONAL DATA,951202,29-Mar-23,1562.56,0,163392,Learning Disabilities Placemnt,DIRECT PAYMENTS,R,2022,12
793,Environment and Regeneration,D N H PROPERTY MAINTENANCE,2192DNH,29-Mar-23,4651.2,775.2,163395,Notional - Community Centres,"390000              Works - Construction, Repair & Maintenance",C,2022,12
794,Capital,D N H PROPERTY MAINTENANCE,2227DNH,31-Mar-23,576,96,163395,Works to other buildings,"390000              Works - Construction, Repair & Maintenance",C,2022,12
795,Environment and Regeneration,D N H PROPERTY MAINTENANCE,2225DNH,31-Mar-23,1728,288,163395,Vestry Hall,"390000              Works - Construction, Repair & Maintenance",C,2022,12
796,Environment and Regeneration,D N H PROPERTY MAINTENANCE,2226DNH,31-Mar-23,984,164,163395,EDS2,"390000              Works - Construction, Repair & Maintenance",C,2022,12
797,Community and Housing,Tunstall Healthcare (UK) Limited,CD970011094,20-Mar-23,568.8,94.8,163420,Mascot,190000              Facilities & Management Services,A,2022,12
798,Community and Housing,Tunstall Healthcare (UK) Limited,CD970012464,04-Apr-23,29198.08,4866.35,163420,Mascot,190000              Facilities & Management Services,A,2022,12
799,"Children, Schools and Family",REDACTED PERSONAL DATA,940033,03-Mar-23,785.52,0,163471,Placements Under 18,200000              Financial Services,R,2022,12
800,"Children, Schools and Family",REDACTED PERSONAL DATA,940042,03-Mar-23,654.24,0,163471,Placements Under 18,200000              Financial Services,R,2022,12
801,"Children, Schools and Family",REDACTED PERSONAL DATA,943560,10-Mar-23,785.52,0,163471,Placements Under 18,200000              Financial Services,R,2022,12
802,"Children, Schools and Family",REDACTED PERSONAL DATA,943573,10-Mar-23,654.24,0,163471,Placements Under 18,200000              Financial Services,R,2022,12
803,"Children, Schools and Family",REDACTED PERSONAL DATA,946036,17-Mar-23,785.52,0,163471,Placements Under 18,200000              Financial Services,R,2022,12
804,"Children, Schools and Family",REDACTED PERSONAL DATA,946046,17-Mar-23,654.24,0,163471,Placements Under 18,200000              Financial Services,R,2022,12
805,"Children, Schools and Family",REDACTED PERSONAL DATA,950230,24-Mar-23,785.52,0,163471,Placements Under 18,200000              Financial Services,R,2022,12
806,"Children, Schools and Family",REDACTED PERSONAL DATA,950239,24-Mar-23,654.24,0,163471,Placements Under 18,200000              Financial Services,R,2022,12
807,"Children, Schools and Family",REDACTED PERSONAL DATA,953221,31-Mar-23,785.52,0,163471,Placements Under 18,200000              Financial Services,R,2022,12
808,"Children, Schools and Family",REDACTED PERSONAL DATA,953230,31-Mar-23,654.24,0,163471,Placements Under 18,200000              Financial Services,R,2022,12
809,"Children, Schools and Family",LA PETITE FLEUR PRE-SCHOOL,P1 23 UPFRONTPAY,30-Mar-23,14564.16,0,163698,EARLY YEARS NURSERY GRANTS,200000              Financial Services,A,2022,12
810,Community and Housing,Active Prospects,944418,15-Mar-23,6103.76,0,163859,Learning Disabilities Placemnt,321017              Nursing & Residential Care Homes,A,2022,12
811,Community and Housing,REDACTED PERSONAL DATA,951241,29-Mar-23,1058.76,0,163971,Older People Placements - East,DIRECT PAYMENTS,R,2022,12
812,"Children, Schools and Family",BUMBLE BEES'S DAY NURSERY-COCC,P1 23 UPFRONTPAY,30-Mar-23,24576.48,0,164240,EARLY YEARS NURSERY GRANTS,200000              Financial Services,A,2022,12
813,Corporate Services,CLIFFE ENTERPRISE LTD,22445,04-Apr-23,37926,6321,164341,Printing,190000              Facilities & Management Services,A,2022,12
814,Community and Housing,LONDON COUNCILS,4333432,02-Mar-23,5000,0,164343,Housing Strategy,OLA,A,2022,12
815,Community and Housing,ENTERPRISE CARE SUPPORT LTD,20241,16-Mar-23,747.04,0,164431,Older People Placements - East,321000              Social Community Care Supplies & Services - Adult,A,2022,12
816,Community and Housing,ENTERPRISE CARE SUPPORT LTD,20240,16-Mar-23,681.48,0,164431,Older People Placements - East,321000              Social Community Care Supplies & Services - Adult,A,2022,12
817,Community and Housing,ENTERPRISE CARE SUPPORT LTD,20239,16-Mar-23,843.04,0,164431,Older People Placements - East,321000              Social Community Care Supplies & Services - Adult,A,2022,12
818,Community and Housing,ENTERPRISE CARE SUPPORT LTD,20238,16-Mar-23,747.04,0,164431,Older People Placements - East,321000              Social Community Care Supplies & Services - Adult,A,2022,12
819,Community and Housing,ENTERPRISE CARE SUPPORT LTD,20236,16-Mar-23,3197.04,0,164431,Older People Placements - East,321000              Social Community Care Supplies & Services - Adult,A,2022,12
820,Community and Housing,ENTERPRISE CARE SUPPORT LTD,20234,16-Mar-23,2778.72,0,164431,Older People Placements - East,321000              Social Community Care Supplies & Services - Adult,A,2022,12
821,Community and Housing,ENTERPRISE CARE SUPPORT LTD,20233,16-Mar-23,3285.54,0,164431,Older People Placements - East,321000              Social Community Care Supplies & Services - Adult,A,2022,12
822,Community and Housing,ENTERPRISE CARE SUPPORT LTD,20255,22-Mar-23,1252.05,0,164431,Older People Placements - East,321000              Social Community Care Supplies & Services - Adult,A,2022,12
823,Community and Housing,ENTERPRISE CARE SUPPORT LTD,20254,22-Mar-23,1068.2,0,164431,Older People Placements - East,321000              Social Community Care Supplies & Services - Adult,A,2022,12
824,Community and Housing,ENTERPRISE CARE SUPPORT LTD,20251,22-Mar-23,2778.72,0,164431,Older People Placements - East,321000              Social Community Care Supplies & Services - Adult,A,2022,12
825,Community and Housing,ENTERPRISE CARE SUPPORT LTD,20248,22-Mar-23,1068.2,0,164431,Older People Placements - East,321000              Social Community Care Supplies & Services - Adult,A,2022,12
826,Community and Housing,ENTERPRISE CARE SUPPORT LTD,20246,22-Mar-23,2136.4,0,164431,Older People Placements - East,321000              Social Community Care Supplies & Services - Adult,A,2022,12
827,Community and Housing,ENTERPRISE CARE SUPPORT LTD,20245,22-Mar-23,1068.2,0,164431,Older People Placements - East,321000              Social Community Care Supplies & Services - Adult,A,2022,12
828,Community and Housing,ENTERPRISE CARE SUPPORT LTD,20244,22-Mar-23,681.48,0,164431,Learning Disabilities Placemnt,321000              Social Community Care Supplies & Services - Adult,A,2022,12
829,Community and Housing,BUPA CARE SERVICES BACS RECEIP,944608,15-Mar-23,8538.76,0,164629,Older People Placements - East,321017              Nursing & Residential Care Homes,A,2022,12
830,Community and Housing,REDACTED PERSONAL DATA,951468,29-Mar-23,1272.8,0,164694,Older People Placements - East,DIRECT PAYMENTS,R,2022,12
831,Corporate Services,REDACTED PERSONAL DATA,INV762/GC33,16-Mar-23,900,150,164950,SLLP - Disbursements,280000              Legal Services                                                                            Confirmed,R,2022,12
832,Corporate Services,HBINFO LTD,S/017092,21-Mar-23,594,99,164960,Learning and Development,260000              Human Resources,A,2022,12
833,Environment and Regeneration,777 DEMOLITION AND HAULAGE CO,70128,07-Mar-23,23916,3986,165107,Waste Disposal,180000              Environmental Services,A,2022,12
834,"Children, Schools and Family",SYNERGY FOSTERING LTD,INV-4132,10-Mar-23,7175.84,0,165111,Placements Under 18,321100              Social Community Care Supplies & Services - Children,A,2022,12
835,Unassigned,MARSTON GROUP,62604,22-Mar-23,3987.2,0,165202,Corporate Accountancy,200000              Financial Services,A,2022,12
836,Community and Housing,LONDON BOROUGH OF HARINGEY,1801949692,07-Mar-23,6451.51,0,165347,PH - Social Prescribing,OLA,A,2022,12
837,Corporate Services,LONDON BOROUGH OF HARINGEY,1801960437,20-Mar-23,5828.34,0,165347,Recovery Modernisation Progrm,OLA,A,2022,12
838,Environment and Regeneration,LONDON BOROUGH OF HARINGEY,1801988267,29-Mar-23,936.8,156.13,165347,Energy Projects,OLA,A,2022,12
839,"Children, Schools and Family",CHILDREN OF COLOUR,8139,03-Mar-23,4820.4,0,165365,Placements Under 18,321100              Social Community Care Supplies & Services - Children,A,2022,12
840,Community and Housing,REDACTED PERSONAL DATA,951494,29-Mar-23,1349.48,0,165602,Learning Disabilities Placemnt,DIRECT PAYMENTS,R,2022,12
841,Community and Housing,REDACTED PERSONAL DATA,951261,29-Mar-23,2228.4,0,165619,Phys/Sens Placements - East,DIRECT PAYMENTS,R,2022,12
842,Community and Housing,REDACTED PERSONAL DATA,951358,29-Mar-23,3538.2,0,165619,Phys/Sens Placements - East,DIRECT PAYMENTS,R,2022,12
843,Community and Housing,BUPA CARE HOMES (ANS) LTD,944772,15-Mar-23,4749.4,0,165704,Older People Placements - East,321017              Nursing & Residential Care Homes,A,2022,12
844,Community and Housing,REDACTED PERSONAL DATA,951542,29-Mar-23,5649.16,0,165786,Older People Placements - East,DIRECT PAYMENTS,R,2022,12
845,Environment and Regeneration,CASCADE SOFTWARE LIMITED,508697,01-Mar-23,1188,198,166051,Br. H'ways & Struct,270000              Information Communication Technology,A,2022,12
846,Community and Housing,REDACTED PERSONAL DATA,951558,29-Mar-23,700.8,0,166085,Learning Disabilities Placemnt,DIRECT PAYMENTS,R,2022,12
847,Community and Housing,REDACTED PERSONAL DATA,951191,29-Mar-23,1654.64,0,166158,Phys/Sens Placements - East,DIRECT PAYMENTS,R,2022,12
848,Unassigned,COMPLETE ECOLOGY LTD,43/2223,07-Mar-23,6120,1020,166208,Mitcham Common Conservators,240000              Horticultural                                                                             Confirmed,A,2022,12
849,Unassigned,COMPLETE ECOLOGY LTD,45/2223,08-Mar-23,2700,450,166208,Mitcham Common Conservators,240000              Horticultural                                                                             Confirmed,A,2022,12
850,"Children, Schools and Family",REDACTED PERSONAL DATA,P1 23 UPFRONTPAY,30-Mar-23,5106.24,0,166244,EARLY YEARS NURSERY GRANTS,200000              Financial Services,R,2022,12
851,Corporate Services,WEIGHTMANS LLP,2147315,29-Mar-23,865.8,144.3,166459,SLLP - Disbursements,200000              Financial Services                                                                        confirmed,A,2022,12
852,Community and Housing,REDACTED PERSONAL DATA,951226,29-Mar-23,1209.16,0,166547,Learning Disabilities Placemnt,DIRECT PAYMENTS,R,2022,12
853,"Children, Schools and Family",REDACTED PERSONAL DATA,939958,03-Mar-23,1295.53,0,166742,Placements Under 18,321100              Social Community Care Supplies & Services - Children,R,2022,12
854,"Children, Schools and Family",REDACTED PERSONAL DATA,943453,10-Mar-23,1295.53,0,166742,Placements Under 18,321100              Social Community Care Supplies & Services - Children,R,2022,12
855,"Children, Schools and Family",REDACTED PERSONAL DATA,945960,17-Mar-23,1295.53,0,166742,Placements Under 18,321100              Social Community Care Supplies & Services - Children,R,2022,12
856,"Children, Schools and Family",REDACTED PERSONAL DATA,950157,24-Mar-23,1295.53,0,166742,Placements Under 18,321100              Social Community Care Supplies & Services - Children,R,2022,12
857,"Children, Schools and Family",REDACTED PERSONAL DATA,953148,31-Mar-23,1295.53,0,166742,Placements Under 18,321100              Social Community Care Supplies & Services - Children,R,2022,12
858,Corporate Services,REDACTED PERSONAL DATA,0056449153666-B,07-Mar-23,1425,0,166885,Client Finance Affairs,120000              Cemetery & Crematorium,R,2022,12
859,Community and Housing,UNIQUE OFFICE SOLUTIONS LTD,112508,21-Mar-23,810,135,166889,Libraries Service-Civic Centre,210000              Furniture & Soft Furnishings,A,2022,12
860,Corporate Services,UNIQUE OFFICE SOLUTIONS LTD,112509,27-Mar-23,780,130,166889,Legal Shared Service,210000              Furniture & Soft Furnishings,A,2022,12
861,"Children, Schools and Family",REDACTED PERSONAL DATA,951062,28-Mar-23,807.76,0,166972,Child Disabilities - Placement,CSF-DIRECT PAYMENTS,R,2022,12
862,"Children, Schools and Family",WIMBLEDON DAY NURSERY,P1 23 UPFRONTPAY,30-Mar-23,31350.24,0,167298,EARLY YEARS NURSERY GRANTS,170000              Education,A,2022,12
863,Corporate Services,RAINBOW OFFICE SUPPLIES LTD,514868,24-Mar-23,675,112.5,167583,Printing,340000              Stationery,A,2022,12
864,Environment and Regeneration,IMPERIAL CIVIL ENFORC.SOLUT.,INV0000007018,04-Apr-23,1371.5,228.58,167737,Civil Enforcement Officers,270000              Information Communication Technology,A,2022,12
865,"Children, Schools and Family",REDACTED PERSONAL DATA,P1 23 UPFRONTPAY,30-Mar-23,851.04,0,167790,EARLY YEARS NURSERY GRANTS,200000              Financial Services,R,2022,12
866,"Children, Schools and Family",RAINBOW FOSTERING SERVICES LTD,RF2079,24-Mar-23,3379.99,0,167793,Placements Under 18,321100              Social Community Care Supplies & Services - Children,A,2022,12
867,Corporate Services,REDACTED PERSONAL DATA,10186948,10-Mar-23,603.6,100.6,168092,SLLP - Disbursements,280000              Legal Services,R,2022,12
868,Corporate Services,REDACTED PERSONAL DATA,10194027,10-Mar-23,645.6,107.6,168092,SLLP - Disbursements,280000              Legal Services,R,2022,12
869,Corporate Services,REDACTED PERSONAL DATA,10195308,10-Mar-23,1201.2,200.2,168092,SLLP - Disbursements,280000              Legal Services,R,2022,12
870,Corporate Services,REDACTED PERSONAL DATA,10187722,16-Mar-23,1500,250,168092,SLLP - Disbursements,280000              Legal Services,R,2022,12
871,Corporate Services,REDACTED PERSONAL DATA,10190851,16-Mar-23,1128,188,168092,SLLP - Disbursements,280000              Legal Services,R,2022,12
872,Corporate Services,REDACTED PERSONAL DATA,10155304,16-Mar-23,1347.84,224.64,168092,SLLP - Disbursements,280000              Legal Services,R,2022,12
873,Capital,CBS Adaptation Design,1724,01-Mar-23,825.16,108.36,168147,Disabled Facilities Grant,200000              Financial Services,A,2022,12
874,Capital,CBS Adaptation Design,1733,14-Mar-23,1677.64,250.27,168147,Disabled Facilities Grant,200000              Financial Services,A,2022,12
875,Capital,CBS Adaptation Design,1707,14-Mar-23,1193.04,170.17,168147,Disabled Facilities Grant,200000              Financial Services,A,2022,12
876,Capital,CBS Adaptation Design,1720,14-Mar-23,758.71,97.12,168147,Disabled Facilities Grant,200000              Financial Services,A,2022,12
877,Capital,CBS Adaptation Design,1738,23-Mar-23,1863.96,222.66,168147,Disabled Facilities Grant,200000              Financial Services,A,2022,12
878,Capital,CBS Adaptation Design,1737,23-Mar-23,1735.27,201.71,168147,Disabled Facilities Grant,200000              Financial Services,A,2022,12
879,Capital,CBS Adaptation Design,1736,30-Mar-23,1739.33,202.39,168147,Disabled Facilities Grant,200000              Financial Services,A,2022,12
880,Capital,CBS Adaptation Design,1743,30-Mar-23,1276.3,183.38,168147,Disabled Facilities Grant,200000              Financial Services,A,2022,12
881,Capital,CBS Adaptation Design,1740,30-Mar-23,718.32,90.55,168147,Disabled Facilities Grant,200000              Financial Services,A,2022,12
882,Capital,CBS Adaptation Design,1739,30-Mar-23,577.74,67.12,168147,Disabled Facilities Grant,200000              Financial Services,A,2022,12
883,Capital,CBS Adaptation Design,1727,30-Mar-23,2121.13,265.52,168147,Disabled Facilities Grant,200000              Financial Services,A,2022,12
884,Corporate Services,LANGUAGE BANK,MTS-110123,29-Mar-23,858,143,168229,Translation Service,TRANSLATIONS,A,2022,12
885,Corporate Services,LANGUAGE BANK,MTS-080223,10-Mar-23,732,122,168229,Translation Service,TRANSLATIONS,A,2022,12
886,Corporate Services,LANGUAGE BANK,MTS-170223,10-Mar-23,918,153,168229,Translation Service,TRANSLATIONS,A,2022,12
887,Corporate Services,LANGUAGE BANK,MTS-240223,21-Mar-23,906,151,168229,Translation Service,TRANSLATIONS,A,2022,12
888,Corporate Services,LANGUAGE BANK,MTS-010323,27-Mar-23,897,149.5,168229,Translation Service,TRANSLATIONS,A,2022,12
889,Corporate Services,LANGUAGE BANK,MTS-070323,28-Mar-23,663,110.5,168229,Translation Service,TRANSLATIONS,A,2022,12
890,Corporate Services,LANGUAGE BANK,MTS-100323,28-Mar-23,843,140.5,168229,Translation Service,TRANSLATIONS,A,2022,12
891,Corporate Services,LANGUAGE BANK,MTS-050822,30-Mar-23,726,121,168229,Translation Service,TRANSLATIONS,A,2022,12
892,Community and Housing,REDACTED PERSONAL DATA,951231,29-Mar-23,3364.18,0,168403,Learning Disabilities Placemnt,DIRECT PAYMENTS,R,2022,12
893,"Children, Schools and Family",REDACTED PERSONAL DATA,944117,13-Mar-23,3829.69,0,168482,Fostering Recruit/Assessment,321100              Social Community Care Supplies & Services - Children,R,2022,12
894,"Children, Schools and Family",REDACTED PERSONAL DATA,944161,13-Mar-23,2581.24,0,168482,Fostering Recruit/Assessment,321100              Social Community Care Supplies & Services - Children,R,2022,12
895,"Children, Schools and Family",REDACTED PERSONAL DATA,P1 23 UPFRONTPAY,30-Mar-23,1418.4,0,168744,EARLY YEARS NURSERY GRANTS,200000              Financial Services,R,2022,12
896,"Children, Schools and Family",WILLOWS PRE SCHOOL,P3 23 SENDIF,07-Mar-23,1890,0,168752,EARLY YEARS NURSERY GRANTS,170000              Education,A,2022,12
897,"Children, Schools and Family",WILLOWS PRE SCHOOL,P3 23 LATE START,27-Mar-23,928.8,0,168752,EARLY YEARS NURSERY GRANTS,170000              Education,A,2022,12
898,Capital,SYNERGY CPC LLP,2223/2110,22-Mar-23,2016,336,168935,Harris Academy Wimbledon,"390000              Works - Construction, Repair & Maintenance",A,2022,12
899,Environment and Regeneration,AQUILA TRAINING SERVICES LTD,2477,08-Mar-23,588,98,168957,Development Control,260000              Human Resources,A,2022,12
900,Community and Housing,HOUSING21,INV689054-675161,04-Apr-23,617.16,0,169230,Older People Placements - East,321000              Social Community Care Supplies & Services - Adult,A,2022,12
901,Community and Housing,HOUSING21,INV689054-82473,04-Apr-23,2589.57,0,169230,Older People Placements - East,321000              Social Community Care Supplies & Services - Adult,A,2022,12
902,Community and Housing,HOUSING21,INV689054-583114,04-Apr-23,4203.36,0,169230,Older People Placements - East,321000              Social Community Care Supplies & Services - Adult,A,2022,12
903,Community and Housing,HOUSING21,INV689054-534037,04-Apr-23,1113.39,0,169230,Older People Placements - East,321000              Social Community Care Supplies & Services - Adult,A,2022,12
904,Community and Housing,HOUSING21,INV689054-532662,04-Apr-23,1501.2,0,169230,Older People Placements - East,321000              Social Community Care Supplies & Services - Adult,A,2022,12
905,Community and Housing,HOUSING21,INV689054-512370,04-Apr-23,583.8,0,169230,Older People Placements - East,321000              Social Community Care Supplies & Services - Adult,A,2022,12
906,Community and Housing,HOUSING21,INV689054-934625,04-Apr-23,817.32,0,169230,Older People Placements - East,321000              Social Community Care Supplies & Services - Adult,A,2022,12
907,Community and Housing,HOUSING21,INV689054-507687,04-Apr-23,1430.31,0,169230,Phys/Sens Placements - East,321000              Social Community Care Supplies & Services - Adult,A,2022,12
908,Community and Housing,FITZROY SUPPORT,944445,15-Mar-23,6414.52,0,169400,Learning Disabilities Placemnt,321017              Nursing & Residential Care Homes,A,2022,12
909,Corporate Services,THE LUCY FAITHFULL FOUNDATION,10229,29-Mar-23,942.45,0,169410,SLLP - Disbursements,280000              Legal Services                                                                            Confirmed,A,2022,12
910,Corporate Services,THE LUCY FAITHFULL FOUNDATION,10230,29-Mar-23,1776.9,0,169410,SLLP - Disbursements,280000              Legal Services                                                                            Confirmed,A,2022,12
911,Corporate Services,KC Services Group,40122,28-Mar-23,600,100,169420,Buildings Maintenance,"390000              Works - Construction, Repair & Maintenance",A,2022,12
912,Capital,KC Services Group,41323,24-Mar-23,1220.7,203.45,169420,Malmesbury,"390000              Works - Construction, Repair & Maintenance",A,2022,12
913,Capital,KC Services Group,41319,24-Mar-23,2904.74,484.12,169420,Pelham,"390000              Works - Construction, Repair & Maintenance",A,2022,12
914,Capital,KC Services Group,41402,29-Mar-23,2064,344,169420,Works to other buildings,"390000              Works - Construction, Repair & Maintenance",A,2022,12
915,Corporate Services,KC Services Group,41679,28-Mar-23,528,88,169420,C & H Buildings,"390000              Works - Construction, Repair & Maintenance",A,2022,12
916,Corporate Services,KC Services Group,41682,28-Mar-23,528,88,169420,Buildings Maintenance,"390000              Works - Construction, Repair & Maintenance",A,2022,12
917,Corporate Services,KC Services Group,41678,28-Mar-23,2880,480,169420,Corporate Services Buildings,"390000              Works - Construction, Repair & Maintenance",A,2022,12
918,Corporate Services,JULIUS RUTHERFOORD AND CO LTD,INVS146836,09-Mar-23,2296.06,382.68,170092,PDC,130000              Cleaning & Janitorial,A,2022,12
919,Corporate Services,JULIUS RUTHERFOORD AND CO LTD,INVS147300,13-Mar-23,2296.06,382.68,170092,PDC,130000              Cleaning & Janitorial,A,2022,12
920,Corporate Services,JULIUS RUTHERFOORD AND CO LTD,INVS147743,13-Mar-23,2296.06,382.68,170092,PDC,130000              Cleaning & Janitorial,A,2022,12
921,Corporate Services,JULIUS RUTHERFOORD AND CO LTD,INVS148169,13-Mar-23,2296.06,382.68,170092,PDC,130000              Cleaning & Janitorial,A,2022,12
922,Community and Housing,JULIUS RUTHERFOORD AND CO LTD,INVS148584,22-Mar-23,840,140,170092,Galpins Road Support,130000              Cleaning & Janitorial,A,2022,12
923,"Children, Schools and Family",JULIUS RUTHERFOORD AND CO LTD,INVS148606,22-Mar-23,1432.56,238.76,170092,Newminster CC Building Mgt,130000              Cleaning & Janitorial,A,2022,12
924,"Children, Schools and Family",JULIUS RUTHERFOORD AND CO LTD,INVS148427,22-Mar-23,861.12,143.52,170092,Church Road Building,130000              Cleaning & Janitorial,A,2022,12
925,"Children, Schools and Family",JULIUS RUTHERFOORD AND CO LTD,INVS148405,22-Mar-23,1228.1,204.68,170092,Bond Road Building,130000              Cleaning & Janitorial,A,2022,12
926,"Children, Schools and Family",JULIUS RUTHERFOORD AND CO LTD,INVS148377,22-Mar-23,861.12,143.52,170092,Lower Morden CC Building Mgt,130000              Cleaning & Janitorial,A,2022,12
927,"Children, Schools and Family",JULIUS RUTHERFOORD AND CO LTD,INVS148559,22-Mar-23,861.12,143.52,170092,Ivy Garden CC Building,130000              Cleaning & Janitorial,A,2022,12
928,Corporate Services,JULIUS RUTHERFOORD AND CO LTD,INVS148599,22-Mar-23,2296.06,382.68,170092,PDC,130000              Cleaning & Janitorial,A,2022,12
929,"Children, Schools and Family",JULIUS RUTHERFOORD AND CO LTD,INVS148694,22-Mar-23,861.12,143.52,170092,Avenue CC Building Management,130000              Cleaning & Janitorial,A,2022,12
930,"Children, Schools and Family",JULIUS RUTHERFOORD AND CO LTD,INVS148643,29-Mar-23,780,130,170092, PFI Unitary Charges,130000              Cleaning & Janitorial,A,2022,12
931,"Children, Schools and Family",JULIUS RUTHERFOORD AND CO LTD,INVS148585,29-Mar-23,1155.06,192.51,170092, PFI Unitary Charges,130000              Cleaning & Janitorial,A,2022,12
932,"Children, Schools and Family",JULIUS RUTHERFOORD AND CO LTD,INVS147940,31-Mar-23,750.29,125.05,170092, PFI Unitary Charges,130000              Cleaning & Janitorial,A,2022,12
933,"Children, Schools and Family",JULIUS RUTHERFOORD AND CO LTD,INVS148648,29-Mar-23,1531.44,255.24,170092, PFI Unitary Charges,130000              Cleaning & Janitorial,A,2022,12
934,"Children, Schools and Family",JULIUS RUTHERFOORD AND CO LTD,INVS148647,29-Mar-23,23187.59,3864.61,170092, PFI Unitary Charges,130000              Cleaning & Janitorial,A,2022,12
935,"Children, Schools and Family",JULIUS RUTHERFOORD AND CO LTD,INVS148644,29-Mar-23,24164.74,4027.45,170092, PFI Unitary Charges,130000              Cleaning & Janitorial,A,2022,12
936,"Children, Schools and Family",JULIUS RUTHERFOORD AND CO LTD,INVS148649,29-Mar-23,27034.58,4505.77,170092, PFI Unitary Charges,130000              Cleaning & Janitorial,A,2022,12
937,"Children, Schools and Family",JULIUS RUTHERFOORD AND CO LTD,INVS148218,31-Mar-23,2389.01,398.17,170092, PFI Unitary Charges,130000              Cleaning & Janitorial,A,2022,12
938,"Children, Schools and Family",SENSATIONAL KIDS,INV-6471,13-Mar-23,545,0,170195,Non-Delegated Statements,321100              Social Community Care Supplies & Services - Children,A,2022,12
939,Community and Housing,REDACTED PERSONAL DATA,951177,29-Mar-23,2450.14,0,170275,Phys/Sens Placements - East,DIRECT PAYMENTS,R,2022,12
940,Community and Housing,INDEPENDENCE HOMES LTD,944718,15-Mar-23,7935.88,0,170527,Learning Disabilities Placemnt,321017              Nursing & Residential Care Homes,A,2022,12
941,Community and Housing,INDEPENDENCE HOMES LTD,CED00124,28-Mar-23,5662.72,0,170527,Learning Disabilities Placemnt,321017              Nursing & Residential Care Homes,A,2022,12
942,"Children, Schools and Family",GREATER LONDON FOSTERING LTD,INV-0246,22-Mar-23,3339.84,0,170596,Placements Under 18,321100              Social Community Care Supplies & Services - Children,A,2022,12
943,"Children, Schools and Family",GREATER LONDON FOSTERING LTD,INV-0245,22-Mar-23,3176.6,0,170596,Placements Under 18,321100              Social Community Care Supplies & Services - Children,A,2022,12
944,"Children, Schools and Family",CENMAC,CPSI2211,15-Mar-23,2801,0,170767,Non-Delegated Statements,321100              Social Community Care Supplies & Services - Children,A,2022,12
945,Community and Housing,REDACTED PERSONAL DATA,951464,29-Mar-23,8586.9,0,170878,Learning Disabilities Placemnt,DIRECT PAYMENTS,R,2022,12
946,Community and Housing,REDACTED PERSONAL DATA,951284,29-Mar-23,1304.64,0,171056,Phys/Sens Placements - East,DIRECT PAYMENTS,R,2022,12
947,Corporate Services,REDACTED PERSONAL DATA,JS/22C/9A,10-Mar-23,1187,0,171430,SLLP - Disbursements,280000              Legal Services                                                                            Confirmed,R,2022,12
948,Community and Housing,ST GEORGES RES. CARE HOME,944761,15-Mar-23,4871.4,0,171491,Learning Disabilities Placemnt,321017              Nursing & Residential Care Homes,A,2022,12
949,Community and Housing,ST GEORGES RES. CARE HOME,944787,15-Mar-23,4024.2,0,171491,Learning Disabilities Placemnt,321017              Nursing & Residential Care Homes,A,2022,12
950,"Children, Schools and Family",St Christopher's Fellowship,18611,07-Mar-23,5799.92,0,171651,Placements Under 18,321100              Social Community Care Supplies & Services - Children,A,2022,12
951,Capital,SSD LIMITED,SI-526,30-Mar-23,16377.6,2729.6,171736,Works to other buildings,190000              Facilities & Management Services,A,2022,12
952,Environment and Regeneration,SSD LIMITED,SI-527,29-Mar-23,1526.4,254.4,171736,On Street Parking,190000              Facilities & Management Services,A,2022,12
953,"Children, Schools and Family",SSD LIMITED,SI-528,30-Mar-23,775.2,129.2,171736, Children's Centres Support,190000              Facilities & Management Services,A,2022,12
954,Community and Housing,REDACTED PERSONAL DATA,951409,29-Mar-23,588.08,0,172070,Learning Disabilities Placemnt,DIRECT PAYMENTS,R,2022,12
955,Community and Housing,NORBURY PROPERTY SERV LDN LTD,SI-8477,23-Mar-23,10409.56,0,172104,Bed & Breakfast - accomm,321000              Social Community Care Supplies & Services - Adult,A,2022,12
956,Community and Housing,EALING COUNCIL,944408,15-Mar-23,2985.92,0,172129,Mental Health Placements,OLA,A,2022,12
957,Community and Housing,CARRICKS BROOK,944423,15-Mar-23,6536.16,0,172297,Learning Disabilities Placemnt,321017              Nursing & Residential Care Homes,A,2022,12
958,Community and Housing,BROADHAM CARE LTD,944472,15-Mar-23,7386.96,0,172298,Learning Disabilities Placemnt,321017              Nursing & Residential Care Homes,A,2022,12
959,Community and Housing,BROADHAM CARE LTD,944746,15-Mar-23,7638.12,0,172298,Learning Disabilities Placemnt,321017              Nursing & Residential Care Homes,A,2022,12
960,Community and Housing,REDACTED PERSONAL DATA,951183,29-Mar-23,923.76,0,172912,Learning Disabilities Placemnt,DIRECT PAYMENTS,R,2022,12
961,Community and Housing,REDACTED PERSONAL DATA,951343,29-Mar-23,890.96,0,172914,Learning Disabilities Placemnt,DIRECT PAYMENTS,R,2022,12
962,Community and Housing,REDACTED PERSONAL DATA,951433,29-Mar-23,731.88,0,172936,Phys/Sens Placements - East,DIRECT PAYMENTS,R,2022,12
963,Community and Housing,REDACTED PERSONAL DATA,951368,29-Mar-23,1751.38,0,173000,Older People Placements - East,DIRECT PAYMENTS,R,2022,12
964,Community and Housing,GUARDIAN NEWS AND MEDIA LTD,1303227,04-Apr-23,975,0,173136,OP/PS Mgt AD Adult Social Care,260000              Human Resources,A,2022,12
965,Corporate Services,ALTODIGITAL NETWORKS LTD,834772ALTO,20-Mar-23,55755.09,9292.52,173240,Corp Print Strategy,190000              Facilities & Management Services,A,2022,12
966,Community and Housing,HAVERING COURT NURSING HOME,944387,15-Mar-23,4954.12,0,173297,Older People Placements - East,321017              Nursing & Residential Care Homes,A,2022,12
967,Community and Housing,REDACTED PERSONAL DATA,951432,29-Mar-23,795.52,0,173308,Phys/Sens Placements - East,DIRECT PAYMENTS,R,2022,12
968,Environment and Regeneration,SOUTH EAST LEASEHOLD,224,22-Mar-23,1320,220,173335,Property Mgt & Review,150000              Consultancy,A,2022,12
969,"Children, Schools and Family",REDACTED PERSONAL DATA,951030,28-Mar-23,773.48,0,173793,Child Disabilities - Placement,CSF-DIRECT PAYMENTS,R,2022,12
970,Community and Housing,HARBOUR CARE (UK) LTD,944694,15-Mar-23,6448.68,0,173947,Learning Disabilities Placemnt,321017              Nursing & Residential Care Homes,A,2022,12
971,Corporate Services,REDACTED PERSONAL DATA,2725/PP,16-Mar-23,900,150,174105,SLLP - Disbursements,280000              Legal Services,R,2022,12
972,Community and Housing,TOWNSWEB ARCHIVING LTD,ARD8900025,06-Mar-23,2110.13,351.69,174127,Senior Management - Libraries,270000              Information Communication Technology,A,2022,12
973,"Children, Schools and Family",REDACTED PERSONAL DATA,952467,30-Mar-23,2200,0,174212, Statementing-Transport,CSF-DIRECT PAYMENTS,R,2022,12
974,Community and Housing,ASHINGTON HOUSE,944440,15-Mar-23,4406.68,0,174259,Learning Disabilities Placemnt,321017              Nursing & Residential Care Homes,A,2022,12
975,Community and Housing,REDACTED PERSONAL DATA,951328,29-Mar-23,1104.82,0,174330,Phys/Sens Placements - East,DIRECT PAYMENTS,R,2022,12
976,Community and Housing,REDACTED PERSONAL DATA,951223,29-Mar-23,740.72,0,174449,Phys/Sens Placements - East,DIRECT PAYMENTS,R,2022,12
977,Community and Housing,PRECIOUS HOMES LTD,VB002538,22-Mar-23,9414.64,0,174641,Learning Disabilities Placemnt,321017              Nursing & Residential Care Homes,A,2022,12
978,Community and Housing,ALPENBEST LIMITED,5022023-963516,07-Mar-23,557.04,0,174789,Older People Placements - East,321000              Social Community Care Supplies & Services - Adult,A,2022,12
979,Community and Housing,ALPENBEST LIMITED,5022023-994358,07-Mar-23,534.1,0,174789,Older People Placements - East,321000              Social Community Care Supplies & Services - Adult,A,2022,12
980,Community and Housing,ALPENBEST LIMITED,19022023-963516,07-Mar-23,545.57,0,174789,Older People Placements - East,321000              Social Community Care Supplies & Services - Adult,A,2022,12
981,Community and Housing,ALPENBEST LIMITED,19022023-994358,07-Mar-23,534.1,0,174789,Older People Placements - East,321000              Social Community Care Supplies & Services - Adult,A,2022,12
982,Community and Housing,ALPENBEST LIMITED,12022023-963516,07-Mar-23,545.57,0,174789,Older People Placements - East,321000              Social Community Care Supplies & Services - Adult,A,2022,12
983,Community and Housing,ALPENBEST LIMITED,12022023-994358,07-Mar-23,534.1,0,174789,Older People Placements - East,321000              Social Community Care Supplies & Services - Adult,A,2022,12
984,Community and Housing,ALPENBEST LIMITED,26022023-963516,07-Mar-23,545.57,0,174789,Older People Placements - East,321000              Social Community Care Supplies & Services - Adult,A,2022,12
985,Community and Housing,ALPENBEST LIMITED,26022023-994358,07-Mar-23,534.1,0,174789,Older People Placements - East,321000              Social Community Care Supplies & Services - Adult,A,2022,12
986,Community and Housing,SUTTON COURT CARE CENTRE,944456,15-Mar-23,1792.7,0,174833,Older People Placements - East,321017              Nursing & Residential Care Homes,A,2022,12
987,Community and Housing,SUTTON COURT CARE CENTRE,944483,15-Mar-23,2827.36,0,174833,Older People Placements - East,321017              Nursing & Residential Care Homes,A,2022,12
988,Community and Housing,SUTTON COURT CARE CENTRE,944579,15-Mar-23,3163.36,0,174833,Older People Placements - East,321017              Nursing & Residential Care Homes,A,2022,12
989,Community and Housing,SUTTON COURT CARE CENTRE,944610,15-Mar-23,4049.6,0,174833,Phys/Sens Placements - East,321017              Nursing & Residential Care Homes,A,2022,12
990,Community and Housing,SUTTON COURT CARE CENTRE,944766,15-Mar-23,4097.28,0,174833,Phys/Sens Placements - East,321017              Nursing & Residential Care Homes,A,2022,12
991,Community and Housing,SUTTON COURT CARE CENTRE,950370,24-Mar-23,1140.81,0,174833,Older People Placements - East,321017              Nursing & Residential Care Homes,A,2022,12
992,Community and Housing,SUTTON COURT CARE CENTRE,951943,30-Mar-23,1629.73,0,174833,Older People Placements - East,321017              Nursing & Residential Care Homes,A,2022,12
993,Community and Housing,REDACTED PERSONAL DATA,951159,29-Mar-23,3500.2,0,174975,Learning Disabilities Placemnt,DIRECT PAYMENTS,R,2022,12
994,"Children, Schools and Family",PROSPECT EDUC (TECH)TRUST LTD,PETTL1305,23-Mar-23,12368,0,175114,Non-Delegated Statements,170000              Education,A,2022,12
995,Corporate Services,COSMIC EUROPE LIMTED,UK7040,16-Mar-23,810,135,175169,Translation Service,TRANSLATIONS,A,2022,12
996,Corporate Services,COSMIC EUROPE LIMTED,UK7042,16-Mar-23,660,110,175169,Translation Service,TRANSLATIONS,A,2022,12
997,"Children, Schools and Family",GLOBAL MEDIATION LTD,INV-94418,22-Mar-23,3960,660,175270,Non-Delegated Statements,260000              Human Resources                                                                           Confirmed,A,2022,12
998,"Children, Schools and Family",SURREY FIRST AID TRAINING LTD,16022023,23-Mar-23,1530,255,175480, Merton Childcare Service,170000              Education,A,2022,12
999,Community and Housing,KISIMUL SCHOOL,944414,15-Mar-23,12524.72,0,175545,Learning Disabilities Placemnt,321017              Nursing & Residential Care Homes,A,2022,12
1000,Community and Housing,KISIMUL SCHOOL,944655,15-Mar-23,16304,0,175545,Learning Disabilities Placemnt,321017              Nursing & Residential Care Homes,A,2022,12
1001,Corporate Services,UBIQUS UK LTD,1022212,24-Mar-23,6845.94,1140.99,175713,SLLP - Disbursements,TRANSLATIONS                                                                                                  Confirmed,A,2022,12
1002,Community and Housing,REDACTED PERSONAL DATA,951291,29-Mar-23,1781.92,0,175782,Phys/Sens Placements - East,DIRECT PAYMENTS,R,2022,12
1003,Corporate Services,LAVAT CONSULTING LIMITED,INV-110709,24-Mar-23,4020,670,175816,Corporate Accountancy,260000              Human Resources,A,2022,12
1004,Corporate Services,TWOFOLD LTD,11769,13-Mar-23,3507.6,584.6,175861,Customer Contact,270000              Information Communication Technology,A,2022,12
1005,Corporate Services,TWOFOLD LTD,11826,13-Mar-23,3564,594,175861,Customer Contact,270000              Information Communication Technology,A,2022,12
1006,Community and Housing,REDACTED PERSONAL DATA,951362,29-Mar-23,7306.42,0,175960,Learning Disabilities Placemnt,DIRECT PAYMENTS,R,2022,12
1007,Environment and Regeneration,M J MAPP LTD,127000/5790,09-Mar-23,963.18,160.53,176206,Parking - Car Parks,250000              Housing Management,A,2022,12
1008,Environment and Regeneration,M J MAPP LTD,127000/5612,10-Mar-23,7954.7,1325.78,176206,Parking - Car Parks,250000              Housing Management,A,2022,12
1009,Community and Housing,Care for Veterans,944677,15-Mar-23,4294.28,0,176384,Phys/Sens Placements - East,321017              Nursing & Residential Care Homes,A,2022,12
1010,Community and Housing,REDACTED PERSONAL DATA,951373,29-Mar-23,3037.74,0,176619,Phys/Sens Placements - East,DIRECT PAYMENTS,R,2022,12
1011,Community and Housing,REDACTED PERSONAL DATA,951553,29-Mar-23,5345.76,0,176783,Phys/Sens Placements - East,DIRECT PAYMENTS,R,2022,12
1012,Community and Housing,REDACTED PERSONAL DATA,952094,29-Mar-23,29401.68,0,176783,Phys/Sens Placements - East,DIRECT PAYMENTS,R,2022,12
1013,"Children, Schools and Family",THE PRE-SCHOOL GROUP LTD,P3 23 SENDIF,07-Mar-23,1890,0,176785,EARLY YEARS NURSERY GRANTS,200000              Financial Services,A,2022,12
1014,"Children, Schools and Family",THE PRE-SCHOOL GROUP LTD,P3 23 LATE START,27-Mar-23,617.1,0,176785,EARLY YEARS NURSERY GRANTS,200000              Financial Services,A,2022,12
1015,"Children, Schools and Family",THE PRE-SCHOOL GROUP LTD,P1 23 UPFRONTPAY,30-Mar-23,40125.94,0,176785,EARLY YEARS NURSERY GRANTS,200000              Financial Services,A,2022,12
1016,Community and Housing,REDACTED PERSONAL DATA,951469,29-Mar-23,1430.08,0,176868,Phys/Sens Placements - East,DIRECT PAYMENTS,R,2022,12
1017,"Children, Schools and Family",TRIPLE P UK LIMITED,INUK12852,28-Mar-23,7560.02,1260.02,177030, Children's Centres Support,170000              Education,A,2022,12
1018,"Children, Schools and Family",TRIPLE P UK LIMITED,INUK12985,30-Mar-23,1417.49,236.24,177030, Children's Centres Support,170000              Education,A,2022,12
1019,"Children, Schools and Family",TRIPLE P UK LIMITED,SOUK6600,04-Apr-23,1973.99,328.99,177030, Children's Centres Support,170000              Education,A,2022,12
1020,Community and Housing,SPRING LAKE CARE HOME LTD,944548,15-Mar-23,11418,0,177067,Learning Disabilities Placemnt,321017              Nursing & Residential Care Homes,A,2022,12
1021,Community and Housing,SPRING LAKE CARE HOME LTD,944759,15-Mar-23,6468,0,177067,Learning Disabilities Placemnt,321017              Nursing & Residential Care Homes,A,2022,12
1022,Community and Housing,REDACTED PERSONAL DATA,951458,29-Mar-23,652.32,0,177115,Older People Placements - East,DIRECT PAYMENTS,R,2022,12
1023,"Children, Schools and Family",HA TUTORS LTD,INV-13343,06-Mar-23,1092,182,177219,Non-Delegated Statements,170000              Education,A,2022,12
1024,"Children, Schools and Family",HA TUTORS LTD,INV-13344,06-Mar-23,4443.6,740.6,177219,Non-Delegated Statements,170000              Education,A,2022,12
1025,"Children, Schools and Family",HA TUTORS LTD,INV-13347,06-Mar-23,1845.6,307.6,177219,Non-Delegated Statements,170000              Education,A,2022,12
1026,"Children, Schools and Family",HA TUTORS LTD,INV-13349,06-Mar-23,1752.6,292.1,177219,Non-Delegated Statements,170000              Education,A,2022,12
1027,"Children, Schools and Family",HA TUTORS LTD,INV-13348,06-Mar-23,2138.4,356.4,177219,Non-Delegated Statements,170000              Education,A,2022,12
1028,"Children, Schools and Family",HA TUTORS LTD,INV-13350,06-Mar-23,2226,371,177219,Non-Delegated Statements,170000              Education,A,2022,12
1029,"Children, Schools and Family",HA TUTORS LTD,INV-13346,06-Mar-23,1288.8,214.8,177219,Non-Delegated Statements,170000              Education,A,2022,12
1030,"Children, Schools and Family",HA TUTORS LTD,INV-13345,06-Mar-23,5242.8,873.8,177219,Non-Delegated Statements,170000              Education,A,2022,12
1031,"Children, Schools and Family",HA TUTORS LTD,INV-13351,06-Mar-23,4184.8,697.47,177219,Non-Delegated Statements,170000              Education,A,2022,12
1032,"Children, Schools and Family",HA TUTORS LTD,INV-13402,04-Apr-23,1482,247,177219,Non-Delegated Statements,170000              Education,A,2022,12
1033,"Children, Schools and Family",HA TUTORS LTD,INV-13403,04-Apr-23,4858.2,809.7,177219,Non-Delegated Statements,170000              Education,A,2022,12
1034,"Children, Schools and Family",HA TUTORS LTD,INV-13404,04-Apr-23,2435.4,405.9,177219,Non-Delegated Statements,170000              Education,A,2022,12
1035,"Children, Schools and Family",HA TUTORS LTD,INV-13406,04-Apr-23,2344.8,390.8,177219,Non-Delegated Statements,170000              Education,A,2022,12
1036,"Children, Schools and Family",HA TUTORS LTD,INV-13407,04-Apr-23,5918.4,986.4,177219,Non-Delegated Statements,170000              Education,A,2022,12
1037,"Children, Schools and Family",HA TUTORS LTD,INV-13410,04-Apr-23,3866.4,644.4,177219,Non-Delegated Statements,170000              Education,A,2022,12
1038,"Children, Schools and Family",HA TUTORS LTD,INV-13405,04-Apr-23,1933.2,322.2,177219,Non-Delegated Statements,170000              Education,A,2022,12
1039,"Children, Schools and Family",HA TUTORS LTD,INV-13408,04-Apr-23,5150,858.33,177219,Non-Delegated Statements,170000              Education,A,2022,12
1040,"Children, Schools and Family",HA TUTORS LTD,INV-13444,04-Apr-23,5253.6,875.6,177219,Non-Delegated Statements,170000              Education,A,2022,12
1041,Unassigned,UK POWER NETWORKS (OPERATIONS),92157094,04-Apr-23,1281.6,213.6,177333,Environment and Regeneration,180000              Environmental Services,A,2022,12
1042,Capital,UK POWER NETWORKS (OPERATIONS),92157104,04-Apr-23,4575.6,762.6,177333,Highways & Footways,180000              Environmental Services,A,2022,12
1043,Corporate Services,EXPERT IN MIND,39066,22-Mar-23,1312.45,218.74,177342,SLLP - Disbursements,280000              Legal Services                                                                            Confirmed,A,2022,12
1044,Corporate Services,EXPERT IN MIND,38901,22-Mar-23,1069.2,178.2,177342,SLLP - Disbursements,280000              Legal Services                                                                            Confirmed,A,2022,12
1045,Corporate Services,EXPERT IN MIND,39002,30-Mar-23,550.76,91.79,177342,SLLP - Disbursements,280000              Legal Services                                                                            Confirmed,A,2022,12
1046,"Children, Schools and Family",HYTYME B AND B,26787,08-Mar-23,1176,196,177425,Family Supp SafeGuard - Place,321000              Social Community Care Supplies & Services - Adult,A,2022,12
1047,"Children, Schools and Family",HYTYME B AND B,26785,10-Mar-23,1176,196,177425,Family Assessmt & Intervention,321000              Social Community Care Supplies & Services - Adult,A,2022,12
1048,"Children, Schools and Family",HYTYME B AND B,26620,10-Mar-23,1260,210,177425,Family Assessmt & Intervention,321000              Social Community Care Supplies & Services - Adult,A,2022,12
1049,"Children, Schools and Family",HYTYME B AND B,26780,10-Mar-23,1176,196,177425,Family Assessmt & Intervention,321000              Social Community Care Supplies & Services - Adult,A,2022,12
1050,"Children, Schools and Family",HYTYME B AND B,26611,10-Mar-23,1260,210,177425,Family Assessmt & Intervention,321000              Social Community Care Supplies & Services - Adult,A,2022,12
1051,Community and Housing,HYTYME B AND B,26755,17-Mar-23,11587.2,1931.2,177425,Bed & Breakfast - accomm,321000              Social Community Care Supplies & Services - Adult,A,2022,12
1052,"Children, Schools and Family",HYTYME B AND B,26624,22-Mar-23,1260,210,177425,Family Supp SafeGuard - Place,321000              Social Community Care Supplies & Services - Adult,A,2022,12
1053,Community and Housing,HYTYME B AND B,26825,29-Mar-23,12114,2019,177425,Bed & Breakfast - accomm,321000              Social Community Care Supplies & Services - Adult,A,2022,12
1054,Community and Housing,REDACTED PERSONAL DATA,951228,29-Mar-23,710.2,0,177453,Phys/Sens Placements - East,DIRECT PAYMENTS,R,2022,12
1055,Community and Housing,REDACTED PERSONAL DATA,951211,29-Mar-23,724.72,0,177476,Learning Disabilities Placemnt,DIRECT PAYMENTS,R,2022,12
1056,Community and Housing,REDACTED PERSONAL DATA,951161,29-Mar-23,1197.28,0,177502,Phys/Sens Placements - East,DIRECT PAYMENTS,R,2022,12
1057,"Children, Schools and Family",BUTTERFLIES CHILDCARE LIMITED,P1 23 UPFRONTPAY,30-Mar-23,22939.2,0,177504,EARLY YEARS NURSERY GRANTS,200000              Financial Services,A,2022,12
1058,Environment and Regeneration,SUSTAINABLE MERTON,CIL GRT THE WHEE,23-Mar-23,8500,0,177594,Reg & Partnerhips Staffing,190000              Facilities & Management Services,A,2022,12
1059,Community and Housing,VOICEABILITY,11468,02-Mar-23,3345,0,177608,Adult Safeguarding,321000              Social Community Care Supplies & Services - Adult,A,2022,12
1060,Community and Housing,VOICEABILITY,11662,30-Mar-23,3622.5,0,177608,Com Care Placement Contingency,321000              Social Community Care Supplies & Services - Adult,A,2022,12
1061,Community and Housing,VOICEABILITY,11663,30-Mar-23,2846.26,0,177608,Com Care Placement Contingency,321000              Social Community Care Supplies & Services - Adult,A,2022,12
1062,Community and Housing,VOICEABILITY,11661,30-Mar-23,3462.2,0,177608,Com Care Placement Contingency,321000              Social Community Care Supplies & Services - Adult,A,2022,12
1063,Community and Housing,VOICEABILITY,11664,30-Mar-23,3208.5,0,177608,Com Care Placement Contingency,321000              Social Community Care Supplies & Services - Adult,A,2022,12
1064,Community and Housing,VOICEABILITY,11665,30-Mar-23,12834,0,177608,Com Care Placement Contingency,321000              Social Community Care Supplies & Services - Adult,A,2022,12
1065,Corporate Services,HPI LIMITED,6160-001675028,20-Mar-23,961.1,160.18,177649,Local Taxation Bailiffs,200000              Financial Services,A,2022,12
1066,Corporate Services,HPI LIMITED,6.16E+12,21-Mar-23,818.57,136.43,177649,Local Taxation Bailiffs,200000              Financial Services,A,2022,12
1067,"Children, Schools and Family",Catch 22 Charity Ltd,CSI0000913,08-Mar-23,10500,0,177705, Young Person Substance Misuse,321100              Social Community Care Supplies & Services - Children,A,2022,12
1068,Community and Housing,REDACTED PERSONAL DATA,951237,29-Mar-23,3150.18,0,177739,Phys/Sens Placements - East,DIRECT PAYMENTS,R,2022,12
1069,Community and Housing,GREENHAM,01/458888,27-Mar-23,892.68,148.78,177744,Libraries Service-Civic Centre,130000              Cleaning & Janitorial,A,2022,12
1070,Community and Housing,REDACTED PERSONAL DATA,951249,29-Mar-23,3675.32,0,177785,Phys/Sens Placements - East,DIRECT PAYMENTS,R,2022,12
1071,"Children, Schools and Family",REDACTED PERSONAL DATA,P1 23 UPFRONTPAY,30-Mar-23,2042.5,0,177813,EARLY YEARS NURSERY GRANTS,200000              Financial Services,R,2022,12
1072,"Children, Schools and Family",MM-ICT LIMITED,4356,16-Mar-23,1140,190,177830,Head of Corporate Parenting,270000              Information Communication Technology,A,2022,12
1073,Unassigned,EDENRED (UK GROUP) LTD,CV SEV CHG APR23,06-Mar-23,800.4,0,177846,Corporate Accountancy,321100              Social Community Care Supplies & Services - Children,A,2022,12
1074,Corporate Services,REDACTED PERSONAL DATA,430/SHA,20-Mar-23,1050,175,177872,SLLP - Disbursements,280000              Legal Services                                                                            Confirmed,R,2022,12
1075,Corporate Services,REDACTED PERSONAL DATA,432/SHA,20-Mar-23,900,150,177872,SLLP - Disbursements,280000              Legal Services                                                                            Confirmed,R,2022,12
1076,"Children, Schools and Family",MINI TREASURES DAY NURSERY,P3 23 SENDIF,07-Mar-23,1008,0,177930,EARLY YEARS NURSERY GRANTS,200000              Financial Services,A,2022,12
1077,Community and Housing,WORKSHOP 305,AGAR162,01-Mar-23,538.4,0,177941,Learning Disabilities Placemnt,321000              Social Community Care Supplies & Services - Adult,A,2022,12
1078,Community and Housing,WORKSHOP 305,SLAP162,01-Mar-23,538.32,0,177941,Learning Disabilities Placemnt,321000              Social Community Care Supplies & Services - Adult,A,2022,12
1079,Community and Housing,WORKSHOP 305,IALA162,01-Mar-23,538.4,0,177941,Learning Disabilities Placemnt,321000              Social Community Care Supplies & Services - Adult,A,2022,12
1080,Community and Housing,WORKSHOP 305,ASCO162,01-Mar-23,807.6,0,177941,Learning Disabilities Placemnt,321000              Social Community Care Supplies & Services - Adult,A,2022,12
1081,Community and Housing,WORKSHOP 305,RAG163,31-Mar-23,807.6,0,177941,Learning Disabilities Placemnt,321000              Social Community Care Supplies & Services - Adult,A,2022,12
1082,Community and Housing,WORKSHOP 305,SLAP163,31-Mar-23,538.32,0,177941,Learning Disabilities Placemnt,321000              Social Community Care Supplies & Services - Adult,A,2022,12
1083,Community and Housing,WORKSHOP 305,IALA163,31-Mar-23,538.4,0,177941,Learning Disabilities Placemnt,321000              Social Community Care Supplies & Services - Adult,A,2022,12
1084,Community and Housing,WORKSHOP 305,RAG162,31-Mar-23,807.6,0,177941,Learning Disabilities Placemnt,321000              Social Community Care Supplies & Services - Adult,A,2022,12
1085,Community and Housing,WORKSHOP 305,AGAR163,31-Mar-23,538.4,0,177941,Learning Disabilities Placemnt,321000              Social Community Care Supplies & Services - Adult,A,2022,12
1086,Community and Housing,WORKSHOP 305,ASCO163,31-Mar-23,807.6,0,177941,Learning Disabilities Placemnt,321000              Social Community Care Supplies & Services - Adult,A,2022,12
1087,Community and Housing,REDACTED PERSONAL DATA,951153,29-Mar-23,731.4,0,177967,Learning Disabilities Placemnt,DIRECT PAYMENTS,R,2022,12
1088,Community and Housing,REDACTED PERSONAL DATA,951295,29-Mar-23,890.96,0,177999,Learning Disabilities Placemnt,DIRECT PAYMENTS,R,2022,12
1089,"Children, Schools and Family",ISLINGTON COUNCIL,HP01036,27-Mar-23,1500,0,178323, SD LSCB Development,260000              Human Resources,A,2022,12
1090,Community and Housing,REDACTED PERSONAL DATA,951217,29-Mar-23,3824,0,178412,Learning Disabilities Placemnt,DIRECT PAYMENTS,R,2022,12
1091,"Children, Schools and Family",Little Hearts Pre School,P3 23 LATE START,27-Mar-23,642.6,0,178454,EARLY YEARS NURSERY GRANTS,200000              Financial Services,A,2022,12
1092,"Children, Schools and Family",Little Hearts Pre School,P1 23 UPFRONTPAY,30-Mar-23,20152.8,0,178454,EARLY YEARS NURSERY GRANTS,200000              Financial Services,A,2022,12
1093,Community and Housing,BRAMBLEDOWN CARE HOME,944559,15-Mar-23,7448.8,0,178465,Phys/Sens Placements - East,321017              Nursing & Residential Care Homes,A,2022,12
1094,Community and Housing,SPEAR,1034,14-Mar-23,36250,0,178524,Supporting People (HRS),321000              Social Community Care Supplies & Services - Adult,A,2022,12
1095,Corporate Services,THOMSON REUTERS,6153067633,27-Mar-23,513.6,85.6,178554,SLLP - Disbursements,260000              Human Resources,A,2022,12
1096,Community and Housing,LOVE WALK RESIDENTIAL HOME,944557,15-Mar-23,3381.4,0,178620,Phys/Sens Placements - East,321017              Nursing & Residential Care Homes,A,2022,12
1097,Community and Housing,KEW HOUSE,944567,15-Mar-23,3289.24,0,178621,Older People Placements - East,321017              Nursing & Residential Care Homes,A,2022,12
1098,Community and Housing,KEW HOUSE,944652,15-Mar-23,5800,0,178621,Older People Placements - East,321017              Nursing & Residential Care Homes,A,2022,12
1099,Community and Housing,KEW HOUSE,944800,15-Mar-23,3220.32,0,178621,Older People Placements - East,321017              Nursing & Residential Care Homes,A,2022,12
1100,Community and Housing,REDACTED PERSONAL DATA,952109,29-Mar-23,4710.56,0,178802,Learning Disabilities Placemnt,DIRECT PAYMENTS,R,2022,12
1101,Community and Housing,REDACTED PERSONAL DATA,951378,29-Mar-23,1812.28,0,178874,Learning Disabilities Placemnt,DIRECT PAYMENTS,R,2022,12
1102,"Children, Schools and Family",MODERN MONTESSORI INTL. LTD,P1 23 UPFRONTPAY,30-Mar-23,12434.4,0,178883,EARLY YEARS NURSERY GRANTS,200000              Financial Services,A,2022,12
1103,Community and Housing,REDACTED PERSONAL DATA,951574,29-Mar-23,7275.82,0,179049,Learning Disabilities Placemnt,DIRECT PAYMENTS,R,2022,12
1104,Community and Housing,REDACTED PERSONAL DATA,951131,29-Mar-23,1750.1,0,179142,Learning Disabilities Placemnt,DIRECT PAYMENTS,R,2022,12
1105,"Children, Schools and Family",JUST FOR KIDS LAW LTD,JFKL2223/087,04-Apr-23,2950,0,179164,CSC Social Workers Training,170000              Education,A,2022,12
1106,Environment and Regeneration,HAYS SPECIALIST RECRUITM'T LTD,1012738410,09-Mar-23,2400,400,179169,Crime and Strategy Team,260000              Human Resources,A,2022,12
1107,"Children, Schools and Family",GRAVENEY SCHOOL,GA646,30-Mar-23,23208.45,0,179267,Non-Delegated Statements,170000              Education,A,2022,12
1108,Community and Housing,REDACTED PERSONAL DATA,951240,29-Mar-23,825.04,0,179299,Older People Placements - East,DIRECT PAYMENTS,R,2022,12
1109,Community and Housing,REDACTED PERSONAL DATA,951404,29-Mar-23,1739.6,0,179332,Phys/Sens Placements - East,DIRECT PAYMENTS,R,2022,12
1110,Community and Housing,REDACTED PERSONAL DATA,951466,29-Mar-23,4276.8,0,179383,Learning Disabilities Placemnt,DIRECT PAYMENTS,R,2022,12
1111,"Children, Schools and Family",REDACTED PERSONAL DATA,3YE,03-Mar-23,1115.88,0,179598,Placements Over 18,321000              Social Community Care Supplies & Services - Adult,R,2022,12
1112,Community and Housing,ELYSIUM CARE PARTNERSHIPS LTD,944470,15-Mar-23,10202.48,0,179734,Learning Disabilities Placemnt,321017              Nursing & Residential Care Homes,A,2022,12
1113,Community and Housing,ELYSIUM CARE PARTNERSHIPS LTD,944597,15-Mar-23,9049.16,0,179734,Learning Disabilities Placemnt,321017              Nursing & Residential Care Homes,A,2022,12
1114,Community and Housing,ELYSIUM CARE PARTNERSHIPS LTD,944616,15-Mar-23,3462.2,0,179734,Learning Disabilities Placemnt,321017              Nursing & Residential Care Homes,A,2022,12
1115,Community and Housing,ELYSIUM CARE PARTNERSHIPS LTD,944738,15-Mar-23,9821,0,179734,Learning Disabilities Placemnt,321017              Nursing & Residential Care Homes,A,2022,12
1116,Community and Housing,WESTHOPE LTD,944563,15-Mar-23,6350.78,1058.46,179748,Learning Disabilities Placemnt,321017              Nursing & Residential Care Homes,A,2022,12
1117,Environment and Regeneration,BARKLANDS TREE SPECIALISTS,333,13-Mar-23,1215,202.5,179780,Pks Rec Grds (Unloc),240000              Horticultural,A,2022,12
1118,Environment and Regeneration,BARKLANDS TREE SPECIALISTS,334,13-Mar-23,2048.9,341.48,179780,Pks Rec Grds (Unloc),240000              Horticultural,A,2022,12
1119,Environment and Regeneration,BARKLANDS TREE SPECIALISTS,330,06-Mar-23,2115,352.5,179780,Highways GM Contract,240000              Horticultural,A,2022,12
1120,Unassigned,BARKLANDS TREE SPECIALISTS,338,21-Mar-23,2664,444,179780,Mitcham Common Conservators,240000              Horticultural,A,2022,12
1121,Environment and Regeneration,BARKLANDS TREE SPECIALISTS,323,29-Mar-23,945,157.5,179780,Tree Safety (Schools),240000              Horticultural,A,2022,12
1122,Environment and Regeneration,BARKLANDS TREE SPECIALISTS,319,29-Mar-23,3825.82,637.64,179780,Pks Rec Grds (Unloc),240000              Horticultural,A,2022,12
1123,Community and Housing,SUNNINGDALE HOUSE CARE HOME,944731,15-Mar-23,2575,0,179794,Learning Disabilities Placemnt,321017              Nursing & Residential Care Homes,A,2022,12
1124,Community and Housing,SUNLIGHT HOUSE,944503,15-Mar-23,7667.6,0,179813,Learning Disabilities Placemnt,321017              Nursing & Residential Care Homes,A,2022,12
1125,Community and Housing,SUNLIGHT HOUSE,944623,15-Mar-23,5140,0,179813,Learning Disabilities Placemnt,321017              Nursing & Residential Care Homes,A,2022,12
1126,"Children, Schools and Family",COLLIERS WOOD VILLAGE DAY NUR.,P3 23 LATE START,27-Mar-23,928.8,0,179896,EARLY YEARS NURSERY GRANTS,200000              Financial Services,A,2022,12
1127,"Children, Schools and Family",COLLIERS WOOD VILLAGE DAY NUR.,P1 23 UPFRONTPAY,30-Mar-23,16657.92,0,179896,EARLY YEARS NURSERY GRANTS,200000              Financial Services,A,2022,12
1128,Community and Housing,BHAKTI SHYAMA CARE CENTRE,944797,15-Mar-23,2985.6,0,179993,Older People Placements - East,321017              Nursing & Residential Care Homes,A,2022,12
1129,"Children, Schools and Family",REAMCARE LTD,LHRPAM022301,07-Mar-23,20105.67,0,180045,Placements Under 18,321100              Social Community Care Supplies & Services - Children Residential,A,2022,12
1130,"Children, Schools and Family",REAMCARE LTD,LHSRPAM052201,10-Mar-23,19457.1,0,180045,Placements Under 18,321100              Social Community Care Supplies & Services - Children Residential,A,2022,12
1131,"Children, Schools and Family",REAMCARE LTD,LHRPAM032301,31-Mar-23,18159.96,0,180045,Placements Under 18,321100              Social Community Care Supplies & Services - Children Residential,A,2022,12
1132,"Children, Schools and Family",ST CATHERINE'S SCHOOL,145,24-Mar-23,25199.13,0,180147,SEN Residential (DSG),170000              Education,A,2022,12
1133,Community and Housing,REDACTED PERSONAL DATA,951552,29-Mar-23,1104.76,0,180174,Older People Placements - East,DIRECT PAYMENTS,R,2022,12
1134,Community and Housing,SUNRISE DAY CARE,4459,03-Mar-23,510.24,0,180196,Older People Placements - East,321000              Social Community Care Supplies & Services - Adult,A,2022,12
1135,Community and Housing,SUNRISE DAY CARE,4450,03-Mar-23,680.32,0,180196,Learning Disabilities Placemnt,321000              Social Community Care Supplies & Services - Adult,A,2022,12
1136,Community and Housing,SUNRISE DAY CARE,4458,03-Mar-23,510.24,0,180196,Older People Placements - East,321000              Social Community Care Supplies & Services - Adult,A,2022,12
1137,Community and Housing,SUNRISE DAY CARE,DP4852,03-Mar-23,1437.84,0,180196,Older People Placements - East,321000              Social Community Care Supplies & Services - Adult,A,2022,12
1138,Community and Housing,SUNRISE DAY CARE,DP4854,03-Mar-23,3013.08,0,180196,Phys/Sens Placements - East,321000              Social Community Care Supplies & Services - Adult,A,2022,12
1139,Community and Housing,SUNRISE DAY CARE,DP4853,03-Mar-23,1961.12,0,180196,Older People Placements - East,321000              Social Community Care Supplies & Services - Adult,A,2022,12
1140,Community and Housing,SUNRISE DAY CARE,4446,03-Mar-23,510.24,0,180196,Older People Placements - East,321000              Social Community Care Supplies & Services - Adult,A,2022,12
1141,Community and Housing,SUNRISE DAY CARE,4449,08-Mar-23,510.24,0,180196,Older People Placements - East,321000              Social Community Care Supplies & Services - Adult,A,2022,12
1142,Community and Housing,SUNRISE DAY CARE,4460,08-Mar-23,510.24,0,180196,Older People Placements - East,321000              Social Community Care Supplies & Services - Adult,A,2022,12
1143,Community and Housing,SUNRISE DAY CARE,DP4874,31-Mar-23,3013.08,0,180196,Phys/Sens Placements - East,321000              Social Community Care Supplies & Services - Adult,A,2022,12
1144,Community and Housing,SUNRISE DAY CARE,4473,31-Mar-23,510.24,0,180196,Older People Placements - East,321000              Social Community Care Supplies & Services - Adult,A,2022,12
1145,Community and Housing,SUNRISE DAY CARE,DP4872,31-Mar-23,1437.84,0,180196,Older People Placements - East,321000              Social Community Care Supplies & Services - Adult,A,2022,12
1146,Corporate Services,REDACTED PERSONAL DATA,INVMHU938,21-Mar-23,9000,1500,180217,SLLP - Disbursements,280000              Legal Services                                                                            Confirmed,R,2022,12
1147,Community and Housing,REDACTED PERSONAL DATA,951289,29-Mar-23,509.12,0,180242,Phys/Sens Placements - East,DIRECT PAYMENTS,R,2022,12
1148,Community and Housing,REDACTED PERSONAL DATA,951157,29-Mar-23,1177.36,0,180282,Phys/Sens Placements - East,DIRECT PAYMENTS,R,2022,12
1149,Community and Housing,REDACTED PERSONAL DATA,951163,29-Mar-23,2839.28,0,180285,Older People Placements - East,DIRECT PAYMENTS,R,2022,12
1150,Community and Housing,SEVACARE,19.02.23/9,20-Mar-23,2011.36,0,180307,Older People Placements - East,321000              Social Community Care Supplies & Services - Adult,A,2022,12
1151,Community and Housing,SEVACARE,19.02.23/4,20-Mar-23,1134.12,0,180307,Older People Placements - East,321000              Social Community Care Supplies & Services - Adult,A,2022,12
1152,Community and Housing,SEVACARE,19.02.23/2,20-Mar-23,654.94,0,180307,Older People Placements - East,321000              Social Community Care Supplies & Services - Adult,A,2022,12
1153,Community and Housing,SEVACARE,19.02.23/5,20-Mar-23,529.47,0,180307,Older People Placements - East,321000              Social Community Care Supplies & Services - Adult,A,2022,12
1154,Community and Housing,SEVACARE,69014-514140,27-Mar-23,1251,0,180307,Older People Placements - East,321000              Social Community Care Supplies & Services - Adult,A,2022,12
1155,Community and Housing,SEVACARE,69014-752403,27-Mar-23,934.08,0,180307,Older People Placements - East,321000              Social Community Care Supplies & Services - Adult,A,2022,12
1156,Community and Housing,SEVACARE,69014-791266,27-Mar-23,583.8,0,180307,Older People Placements - East,321000              Social Community Care Supplies & Services - Adult,A,2022,12
1157,Community and Housing,SEVACARE,69014-869265,27-Mar-23,717.24,0,180307,Older People Placements - East,321000              Social Community Care Supplies & Services - Adult,A,2022,12
1158,Community and Housing,SEVACARE,69014-14419,27-Mar-23,917.4,0,180307,Older People Placements - East,321000              Social Community Care Supplies & Services - Adult,A,2022,12
1159,Community and Housing,SEVACARE,69014-994084,27-Mar-23,600.48,0,180307,Older People Placements - East,321000              Social Community Care Supplies & Services - Adult,A,2022,12
1160,Community and Housing,SEVACARE,69014-958939,27-Mar-23,817.32,0,180307,Older People Placements - East,321000              Social Community Care Supplies & Services - Adult,A,2022,12
1161,Community and Housing,SEVACARE,69014-982561,27-Mar-23,900.72,0,180307,Older People Placements - East,321000              Social Community Care Supplies & Services - Adult,A,2022,12
1162,Community and Housing,SEVACARE,69014-79481,27-Mar-23,1438.48,0,180307,Older People Placements - East,321000              Social Community Care Supplies & Services - Adult,A,2022,12
1163,Community and Housing,SEVACARE,69014-506355,27-Mar-23,867.36,0,180307,Phys/Sens Placements - East,321000              Social Community Care Supplies & Services - Adult,A,2022,12
1164,Community and Housing,SEVACARE,69014-569458,27-Mar-23,1367.76,0,180307,Phys/Sens Placements - East,321000              Social Community Care Supplies & Services - Adult,A,2022,12
1165,Community and Housing,SEVACARE,69014-52108,27-Mar-23,600.48,0,180307,Learning Disabilities Placemnt,321000              Social Community Care Supplies & Services - Adult,A,2022,12
1166,Community and Housing,SEVACARE,69014-872605,27-Mar-23,617.16,0,180307,Older People Placements - East,321000              Social Community Care Supplies & Services - Adult,A,2022,12
1167,Community and Housing,SEVACARE,69014-867847,27-Mar-23,1050.84,0,180307,Older People Placements - East,321000              Social Community Care Supplies & Services - Adult,A,2022,12
1168,Community and Housing,SEVACARE,69014-565513,27-Mar-23,2852.28,0,180307,Phys/Sens Placements - East,321000              Social Community Care Supplies & Services - Adult,A,2022,12
1169,Community and Housing,SEVACARE,69014-78739,27-Mar-23,667.2,0,180307,Learning Disabilities Placemnt,321000              Social Community Care Supplies & Services - Adult,A,2022,12
